Organisation Code,Organisation Label,Effective Date,Organisational Unit,Service Division Label,Category Internal Name,Purpose,Detailed Expenditure Code,Payment Date,Transaction Number,Irrecoverable VAT Amount,Amount,Capital Or Revenue,Benificiary Name,Procurement Card
Http://opendatacommunities.org/id/metropolitan-district-council/leeds,Leeds City Council,31/08/2018,Resources and Housing,Finance  ,Supplies and Services,Telephones,213,16/07/2018,1805-00001,0.00,45.00,R,(Aq) Limited,Yes
Http://opendatacommunities.org/id/metropolitan-district-council/leeds,Leeds City Council,31/08/2018,Communities and Environment,Benefits  Wlefare And Poverty  ,Supplies and Services,Telephones,213,18/07/2018,1805-00002,0.00,80.00,R,(Aq) Limited,Yes
Http://opendatacommunities.org/id/metropolitan-district-council/leeds,Leeds City Council,31/08/2018,Adults and Health,Public Health,Employees,Training & Development,70,08/08/2018,1805-00003,0.00,180.00,R,(Aso) Association For The Study Of,No
Http://opendatacommunities.org/id/metropolitan-district-council/leeds,Leeds City Council,31/08/2018,Resources and Housing,Leeds Building Services,Supplies and Services,Operational Materials,205,07/08/2018,1805-00004,0.00,235.27,R,A & A Electrical Distributors Ltd,No
Http://opendatacommunities.org/id/metropolitan-district-council/leeds,Leeds City Council,31/08/2018,Resources and Housing,Leeds Building Services,Supplies and Services,Operational Materials,205,21/08/2018,1805-00005,0.00,6.36,R,A & A Electrical Distributors Ltd,No
Http://opendatacommunities.org/id/metropolitan-district-council/leeds,Leeds City Council,31/08/2018,Communities and Environment,Parks And Countryside  ,Supplies and Services,Office Furniture & Equipment,201,26/07/2018,1805-00006,0.00,54.00,R,A & E Appliances Ltd,Yes
Http://opendatacommunities.org/id/metropolitan-district-council/leeds,Leeds City Council,31/08/2018,Resources and Housing,Leeds Building Services,Supplies and Services,Operational Materials,205,06/08/2018,1805-00007,0.00,223.14,R,A Andrews & Sons (Marbles & Tiles),No
Http://opendatacommunities.org/id/metropolitan-district-council/leeds,Leeds City Council,31/08/2018,Resources and Housing,Leeds Building Services,Supplies and Services,Operational Materials,205,24/08/2018,1805-00008,0.00,49.34,R,A Andrews & Sons (Marbles & Tiles),No
Http://opendatacommunities.org/id/metropolitan-district-council/leeds,Leeds City Council,31/08/2018,Resources and Housing,Leeds Building Services,Supplies and Services,Operational Materials,205,24/08/2018,1805-00009,0.00,262.34,R,A Andrews & Sons (Marbles & Tiles),No
Http://opendatacommunities.org/id/metropolitan-district-council/leeds,Leeds City Council,31/08/2018,Resources and Housing,Leeds Building Services,Supplies and Services,Operational Materials,205,24/08/2018,1805-00010,0.00,18.33,R,A Andrews & Sons (Marbles & Tiles),No
Http://opendatacommunities.org/id/metropolitan-district-council/leeds,Leeds City Council,31/08/2018,Resources and Housing,Leeds Building Services,Supplies and Services,Operational Materials,205,24/08/2018,1805-00011,0.00,46.96,R,A Andrews & Sons (Marbles & Tiles),No
Http://opendatacommunities.org/id/metropolitan-district-council/leeds,Leeds City Council,31/08/2018,Communities and Environment,Parks and Countryside,Supplies and Services,Other Hired And Contracted Services,265,01/08/2018,1805-00012,0.00,135.00,R,A B Jones,No
Http://opendatacommunities.org/id/metropolitan-district-council/leeds,Leeds City Council,31/08/2018,Children and Families,Social Care,Third Party Payments,Allowances,546,16/08/2018,1805-00013,0.00,180.03,R,REDACTED PERSONAL DATA,No
Http://opendatacommunities.org/id/metropolitan-district-council/leeds,Leeds City Council,31/08/2018,City Development,Highways,Capital,Construction,3,29/08/2018,1805-00014,0.00,389025.53,C,A E Yates Ltd,No
Http://opendatacommunities.org/id/metropolitan-district-council/leeds,Leeds City Council,31/08/2018,Resources and Housing,Commercial Services  ,Supplies and Services,Catering Service,233,03/07/2018,1805-00015,0.00,144.22,R,A F Blakemore & Son Ltd,Yes
Http://opendatacommunities.org/id/metropolitan-district-council/leeds,Leeds City Council,31/08/2018,Resources and Housing,HRA Housing Leeds,Capital,Other Costs,7,30/08/2018,1805-00016,0.00,65.00,C,REDACTED PERSONAL DATA,No
Http://opendatacommunities.org/id/metropolitan-district-council/leeds,Leeds City Council,31/08/2018,Resources and Housing,Leeds Building Services,Supplies and Services,Operational Materials,205,02/08/2018,1805-00017,0.00,790.00,R,A J H  Pump Supply & Repair Ltd,No
Http://opendatacommunities.org/id/metropolitan-district-council/leeds,Leeds City Council,31/08/2018,Resources and Housing,Leeds Building Services,Supplies and Services,Operational Materials,205,02/08/2018,1805-00018,0.00,197.60,R,A J H  Pump Supply & Repair Ltd,No
Http://opendatacommunities.org/id/metropolitan-district-council/leeds,Leeds City Council,31/08/2018,Resources and Housing,Leeds Building Services,Supplies and Services,Operational Materials,205,06/08/2018,1805-00019,0.00,27.21,R,A J H  Pump Supply & Repair Ltd,No
Http://opendatacommunities.org/id/metropolitan-district-council/leeds,Leeds City Council,31/08/2018,Resources and Housing,Leeds Building Services,Supplies and Services,Operational Materials,205,06/08/2018,1805-00020,0.00,401.00,R,A J H  Pump Supply & Repair Ltd,No
Http://opendatacommunities.org/id/metropolitan-district-council/leeds,Leeds City Council,31/08/2018,Resources and Housing,Leeds Building Services,Supplies and Services,Operational Materials,205,06/08/2018,1805-00021,0.00,514.10,R,A J H  Pump Supply & Repair Ltd,No
Http://opendatacommunities.org/id/metropolitan-district-council/leeds,Leeds City Council,31/08/2018,Resources and Housing,Leeds Building Services,Supplies and Services,Operational Materials,205,06/08/2018,1805-00022,0.00,268.25,R,A J H  Pump Supply & Repair Ltd,No
Http://opendatacommunities.org/id/metropolitan-district-council/leeds,Leeds City Council,31/08/2018,Resources and Housing,Leeds Building Services,Supplies and Services,Operational Materials,205,06/08/2018,1805-00023,0.00,99.45,R,A J H  Pump Supply & Repair Ltd,No
Http://opendatacommunities.org/id/metropolitan-district-council/leeds,Leeds City Council,31/08/2018,Resources and Housing,Leeds Building Services,Supplies and Services,Operational Materials,205,06/08/2018,1805-00024,0.00,215.00,R,A J H  Pump Supply & Repair Ltd,No
Http://opendatacommunities.org/id/metropolitan-district-council/leeds,Leeds City Council,31/08/2018,Resources and Housing,Leeds Building Services,Supplies and Services,Operational Materials,205,06/08/2018,1805-00025,0.00,15.80,R,A J H  Pump Supply & Repair Ltd,No
Http://opendatacommunities.org/id/metropolitan-district-council/leeds,Leeds City Council,31/08/2018,Resources and Housing,Leeds Building Services,Supplies and Services,Operational Materials,205,06/08/2018,1805-00026,0.00,2547.00,R,A J H  Pump Supply & Repair Ltd,No
Http://opendatacommunities.org/id/metropolitan-district-council/leeds,Leeds City Council,31/08/2018,Resources and Housing,Leeds Building Services,Supplies and Services,Operational Materials,205,09/08/2018,1805-00027,0.00,209.75,R,A J H  Pump Supply & Repair Ltd,No
Http://opendatacommunities.org/id/metropolitan-district-council/leeds,Leeds City Council,31/08/2018,Resources and Housing,Leeds Building Services,Supplies and Services,Operational Materials,205,09/08/2018,1805-00028,0.00,27.45,R,A J H  Pump Supply & Repair Ltd,No
Http://opendatacommunities.org/id/metropolitan-district-council/leeds,Leeds City Council,31/08/2018,Resources and Housing,Leeds Building Services,Supplies and Services,Operational Materials,205,09/08/2018,1805-00029,0.00,91.88,R,A J H  Pump Supply & Repair Ltd,No
Http://opendatacommunities.org/id/metropolitan-district-council/leeds,Leeds City Council,31/08/2018,Resources and Housing,Leeds Building Services,Supplies and Services,Operational Materials,205,09/08/2018,1805-00030,0.00,289.30,R,A J H  Pump Supply & Repair Ltd,No
Http://opendatacommunities.org/id/metropolitan-district-council/leeds,Leeds City Council,31/08/2018,Resources and Housing,Leeds Building Services,Supplies and Services,Operational Materials,205,09/08/2018,1805-00031,0.00,27.25,R,A J H  Pump Supply & Repair Ltd,No
Http://opendatacommunities.org/id/metropolitan-district-council/leeds,Leeds City Council,31/08/2018,Resources and Housing,Leeds Building Services,Supplies and Services,Other Hired And Contracted Services,265,09/08/2018,1805-00032,0.00,3024.00,R,A J H  Pump Supply & Repair Ltd,No
Http://opendatacommunities.org/id/metropolitan-district-council/leeds,Leeds City Council,31/08/2018,Resources and Housing,Leeds Building Services,Supplies and Services,Operational Materials,205,17/08/2018,1805-00033,0.00,902.00,R,A J H  Pump Supply & Repair Ltd,No
Http://opendatacommunities.org/id/metropolitan-district-council/leeds,Leeds City Council,31/08/2018,Resources and Housing,Leeds Building Services,Supplies and Services,Operational Materials,205,17/08/2018,1805-00034,0.00,117.35,R,A J H  Pump Supply & Repair Ltd,No
Http://opendatacommunities.org/id/metropolitan-district-council/leeds,Leeds City Council,31/08/2018,Resources and Housing,Leeds Building Services,Supplies and Services,Operational Materials,205,17/08/2018,1805-00035,0.00,380.00,R,A J H  Pump Supply & Repair Ltd,No
Http://opendatacommunities.org/id/metropolitan-district-council/leeds,Leeds City Council,31/08/2018,Resources and Housing,Leeds Building Services,Supplies and Services,Operational Materials,205,17/08/2018,1805-00036,0.00,375.00,R,A J H  Pump Supply & Repair Ltd,No
Http://opendatacommunities.org/id/metropolitan-district-council/leeds,Leeds City Council,31/08/2018,Resources and Housing,Leeds Building Services,Supplies and Services,Operational Materials,205,17/08/2018,1805-00037,0.00,12.50,R,A J H  Pump Supply & Repair Ltd,No
Http://opendatacommunities.org/id/metropolitan-district-council/leeds,Leeds City Council,31/08/2018,Resources and Housing,Leeds Building Services,Supplies and Services,Operational Materials,205,17/08/2018,1805-00038,0.00,39.61,R,A J H  Pump Supply & Repair Ltd,No
Http://opendatacommunities.org/id/metropolitan-district-council/leeds,Leeds City Council,31/08/2018,Resources and Housing,Leeds Building Services,Supplies and Services,Operational Materials,205,17/08/2018,1805-00039,0.00,112.50,R,A J H  Pump Supply & Repair Ltd,No
Http://opendatacommunities.org/id/metropolitan-district-council/leeds,Leeds City Council,31/08/2018,Resources and Housing,Leeds Building Services,Supplies and Services,Operational Materials,205,17/08/2018,1805-00040,0.00,65.85,R,A J H  Pump Supply & Repair Ltd,No
Http://opendatacommunities.org/id/metropolitan-district-council/leeds,Leeds City Council,31/08/2018,Resources and Housing,Leeds Building Services,Supplies and Services,Operational Materials,205,17/08/2018,1805-00041,0.00,331.02,R,A J H  Pump Supply & Repair Ltd,No
Http://opendatacommunities.org/id/metropolitan-district-council/leeds,Leeds City Council,31/08/2018,Resources and Housing,Leeds Building Services,Supplies and Services,Operational Materials,205,17/08/2018,1805-00042,0.00,98.81,R,A J H  Pump Supply & Repair Ltd,No
Http://opendatacommunities.org/id/metropolitan-district-council/leeds,Leeds City Council,31/08/2018,Resources and Housing,Leeds Building Services,Supplies and Services,Operational Materials,205,17/08/2018,1805-00043,0.00,375.00,R,A J H  Pump Supply & Repair Ltd,No
Http://opendatacommunities.org/id/metropolitan-district-council/leeds,Leeds City Council,31/08/2018,Resources and Housing,Leeds Building Services,Supplies and Services,Operational Materials,205,17/08/2018,1805-00044,0.00,377.50,R,A J H  Pump Supply & Repair Ltd,No
Http://opendatacommunities.org/id/metropolitan-district-council/leeds,Leeds City Council,31/08/2018,Resources and Housing,Leeds Building Services,Supplies and Services,Operational Materials,205,17/08/2018,1805-00045,0.00,27.00,R,A J H  Pump Supply & Repair Ltd,No
Http://opendatacommunities.org/id/metropolitan-district-council/leeds,Leeds City Council,31/08/2018,Resources and Housing,Leeds Building Services,Supplies and Services,Operational Materials,205,17/08/2018,1805-00046,0.00,42.00,R,A J H  Pump Supply & Repair Ltd,No
Http://opendatacommunities.org/id/metropolitan-district-council/leeds,Leeds City Council,31/08/2018,Resources and Housing,Leeds Building Services,Supplies and Services,Operational Materials,205,17/08/2018,1805-00047,0.00,60.07,R,A J H  Pump Supply & Repair Ltd,No
Http://opendatacommunities.org/id/metropolitan-district-council/leeds,Leeds City Council,31/08/2018,Resources and Housing,Leeds Building Services,Supplies and Services,Operational Materials,205,17/08/2018,1805-00048,0.00,69.50,R,A J H  Pump Supply & Repair Ltd,No
Http://opendatacommunities.org/id/metropolitan-district-council/leeds,Leeds City Council,31/08/2018,Resources and Housing,Leeds Building Services,Supplies and Services,Operational Materials,205,17/08/2018,1805-00049,0.00,179.55,R,A J H  Pump Supply & Repair Ltd,No
Http://opendatacommunities.org/id/metropolitan-district-council/leeds,Leeds City Council,31/08/2018,Resources and Housing,Leeds Building Services,Supplies and Services,Operational Materials,205,24/08/2018,1805-00050,0.00,272.76,R,A J H  Pump Supply & Repair Ltd,No
Http://opendatacommunities.org/id/metropolitan-district-council/leeds,Leeds City Council,31/08/2018,Resources and Housing,Leeds Building Services,Supplies and Services,Operational Materials,205,24/08/2018,1805-00051,0.00,52.60,R,A J H  Pump Supply & Repair Ltd,No
Http://opendatacommunities.org/id/metropolitan-district-council/leeds,Leeds City Council,31/08/2018,Resources and Housing,Leeds Building Services,Supplies and Services,Operational Materials,205,24/08/2018,1805-00052,0.00,79.25,R,A J H  Pump Supply & Repair Ltd,No
Http://opendatacommunities.org/id/metropolitan-district-council/leeds,Leeds City Council,31/08/2018,Resources and Housing,Leeds Building Services,Supplies and Services,Operational Materials,205,24/08/2018,1805-00053,0.00,122.76,R,A J H  Pump Supply & Repair Ltd,No
Http://opendatacommunities.org/id/metropolitan-district-council/leeds,Leeds City Council,31/08/2018,Resources and Housing,Leeds Building Services,Supplies and Services,Operational Materials,205,24/08/2018,1805-00054,0.00,577.00,R,A J H  Pump Supply & Repair Ltd,No
Http://opendatacommunities.org/id/metropolitan-district-council/leeds,Leeds City Council,31/08/2018,Resources and Housing,Leeds Building Services,Supplies and Services,Operational Materials,205,24/08/2018,1805-00055,0.00,35.32,R,A J H  Pump Supply & Repair Ltd,No
Http://opendatacommunities.org/id/metropolitan-district-council/leeds,Leeds City Council,31/08/2018,Resources and Housing,Leeds Building Services,Supplies and Services,Operational Materials,205,24/08/2018,1805-00056,0.00,10.00,R,A J H  Pump Supply & Repair Ltd,No
Http://opendatacommunities.org/id/metropolitan-district-council/leeds,Leeds City Council,31/08/2018,Resources and Housing,Leeds Building Services,Supplies and Services,Operational Materials,205,24/08/2018,1805-00057,0.00,47.50,R,A J H  Pump Supply & Repair Ltd,No
Http://opendatacommunities.org/id/metropolitan-district-council/leeds,Leeds City Council,31/08/2018,Resources and Housing,Leeds Building Services,Supplies and Services,Operational Materials,205,24/08/2018,1805-00058,0.00,34.75,R,A J H  Pump Supply & Repair Ltd,No
Http://opendatacommunities.org/id/metropolitan-district-council/leeds,Leeds City Council,31/08/2018,Resources and Housing,Leeds Building Services,Supplies and Services,Operational Materials,205,24/08/2018,1805-00059,0.00,35.13,R,A J H  Pump Supply & Repair Ltd,No
Http://opendatacommunities.org/id/metropolitan-district-council/leeds,Leeds City Council,31/08/2018,Resources and Housing,Leeds Building Services,Supplies and Services,Operational Materials,205,24/08/2018,1805-00060,0.00,28.92,R,A J H  Pump Supply & Repair Ltd,No
Http://opendatacommunities.org/id/metropolitan-district-council/leeds,Leeds City Council,31/08/2018,Resources and Housing,Leeds Building Services,Supplies and Services,Operational Materials,205,24/08/2018,1805-00061,0.00,17.75,R,A J H  Pump Supply & Repair Ltd,No
Http://opendatacommunities.org/id/metropolitan-district-council/leeds,Leeds City Council,31/08/2018,Resources and Housing,Leeds Building Services,Supplies and Services,Operational Materials,205,30/08/2018,1805-00062,0.00,274.75,R,A J H  Pump Supply & Repair Ltd,No
Http://opendatacommunities.org/id/metropolitan-district-council/leeds,Leeds City Council,31/08/2018,Resources and Housing,Leeds Building Services,Supplies and Services,Operational Materials,205,30/08/2018,1805-00063,0.00,95.38,R,A J H  Pump Supply & Repair Ltd,No
Http://opendatacommunities.org/id/metropolitan-district-council/leeds,Leeds City Council,31/08/2018,Resources and Housing,Leeds Building Services,Supplies and Services,Operational Materials,205,30/08/2018,1805-00064,0.00,535.00,R,A J H  Pump Supply & Repair Ltd,No
Http://opendatacommunities.org/id/metropolitan-district-council/leeds,Leeds City Council,31/08/2018,Resources and Housing,Leeds Building Services,Supplies and Services,Operational Materials,205,30/08/2018,1805-00065,0.00,70.00,R,A J H  Pump Supply & Repair Ltd,No
Http://opendatacommunities.org/id/metropolitan-district-council/leeds,Leeds City Council,31/08/2018,Resources and Housing,Leeds Building Services,Supplies and Services,Operational Materials,205,30/08/2018,1805-00066,0.00,79.72,R,A J H  Pump Supply & Repair Ltd,No
Http://opendatacommunities.org/id/metropolitan-district-council/leeds,Leeds City Council,31/08/2018,Resources and Housing,Leeds Building Services,Supplies and Services,Operational Materials,205,30/08/2018,1805-00067,0.00,156.70,R,A J H  Pump Supply & Repair Ltd,No
Http://opendatacommunities.org/id/metropolitan-district-council/leeds,Leeds City Council,31/08/2018,Resources and Housing,Leeds Building Services,Supplies and Services,Operational Materials,205,30/08/2018,1805-00068,0.00,262.95,R,A J H  Pump Supply & Repair Ltd,No
Http://opendatacommunities.org/id/metropolitan-district-council/leeds,Leeds City Council,31/08/2018,Resources and Housing,Leeds Building Services,Supplies and Services,Operational Materials,205,30/08/2018,1805-00069,0.00,250.00,R,A J H  Pump Supply & Repair Ltd,No
Http://opendatacommunities.org/id/metropolitan-district-council/leeds,Leeds City Council,31/08/2018,Resources and Housing,Leeds Building Services,Supplies and Services,Operational Materials,205,30/08/2018,1805-00070,0.00,440.00,R,A J H  Pump Supply & Repair Ltd,No
Http://opendatacommunities.org/id/metropolitan-district-council/leeds,Leeds City Council,31/08/2018,Resources and Housing,Leeds Building Services,Supplies and Services,Operational Materials,205,30/08/2018,1805-00071,0.00,88.00,R,A J H  Pump Supply & Repair Ltd,No
Http://opendatacommunities.org/id/metropolitan-district-council/leeds,Leeds City Council,31/08/2018,Resources and Housing,Leeds Building Services,Supplies and Services,Operational Materials,205,30/08/2018,1805-00072,0.00,207.96,R,A J H  Pump Supply & Repair Ltd,No
Http://opendatacommunities.org/id/metropolitan-district-council/leeds,Leeds City Council,31/08/2018,Resources and Housing,Leeds Building Services,Supplies and Services,Operational Materials,205,30/08/2018,1805-00073,0.00,260.00,R,A J H  Pump Supply & Repair Ltd,No
Http://opendatacommunities.org/id/metropolitan-district-council/leeds,Leeds City Council,31/08/2018,Resources and Housing,Leeds Building Services,Supplies and Services,Operational Materials,205,31/08/2018,1805-00074,0.00,270.91,R,A J H  Pump Supply & Repair Ltd,No
Http://opendatacommunities.org/id/metropolitan-district-council/leeds,Leeds City Council,31/08/2018,Resources and Housing,Leeds Building Services,Supplies and Services,Operational Materials,205,31/08/2018,1805-00075,0.00,54.14,R,A J H  Pump Supply & Repair Ltd,No
Http://opendatacommunities.org/id/metropolitan-district-council/leeds,Leeds City Council,31/08/2018,Resources and Housing,Leeds Building Services,Supplies and Services,Operational Materials,205,31/08/2018,1805-00076,0.00,690.00,R,A J H  Pump Supply & Repair Ltd,No
Http://opendatacommunities.org/id/metropolitan-district-council/leeds,Leeds City Council,31/08/2018,Resources and Housing,Leeds Building Services,Supplies and Services,Operational Materials,205,31/08/2018,1805-00077,0.00,110.63,R,A J H  Pump Supply & Repair Ltd,No
Http://opendatacommunities.org/id/metropolitan-district-council/leeds,Leeds City Council,31/08/2018,Resources and Housing,Leeds Building Services,Supplies and Services,Operational Materials,205,31/08/2018,1805-00078,0.00,167.08,R,A J H  Pump Supply & Repair Ltd,No
Http://opendatacommunities.org/id/metropolitan-district-council/leeds,Leeds City Council,31/08/2018,Resources and Housing,Leeds Building Services,Supplies and Services,Operational Materials,205,31/08/2018,1805-00079,0.00,22.00,R,A J H  Pump Supply & Repair Ltd,No
Http://opendatacommunities.org/id/metropolitan-district-council/leeds,Leeds City Council,31/08/2018,Resources and Housing,Leeds Building Services,Supplies and Services,Operational Materials,205,31/08/2018,1805-00080,0.00,42.25,R,A J H  Pump Supply & Repair Ltd,No
Http://opendatacommunities.org/id/metropolitan-district-council/leeds,Leeds City Council,31/08/2018,Resources and Housing,Leeds Building Services,Supplies and Services,Operational Materials,205,31/08/2018,1805-00081,0.00,118.45,R,A J H  Pump Supply & Repair Ltd,No
Http://opendatacommunities.org/id/metropolitan-district-council/leeds,Leeds City Council,31/08/2018,Resources and Housing,Leeds Building Services,Supplies and Services,Operational Materials,205,31/08/2018,1805-00082,0.00,24.24,R,A J H  Pump Supply & Repair Ltd,No
Http://opendatacommunities.org/id/metropolitan-district-council/leeds,Leeds City Council,31/08/2018,Resources and Housing,Leeds Building Services,Supplies and Services,Operational Materials,205,31/08/2018,1805-00083,0.00,316.85,R,A J H  Pump Supply & Repair Ltd,No
Http://opendatacommunities.org/id/metropolitan-district-council/leeds,Leeds City Council,31/08/2018,City Development,Libraries  Arts & Heritage,Supplies and Services,Art Galleries Total Stores,003,03/08/2018,1805-00084,0.00,150.00,R,A J Promotions,No
Http://opendatacommunities.org/id/metropolitan-district-council/leeds,Leeds City Council,31/08/2018,City Development,Libraries  Arts & Heritage,Supplies and Services,Art Galleries Total Stores,003,13/08/2018,1805-00085,0.00,270.70,R,A J Promotions,No
Http://opendatacommunities.org/id/metropolitan-district-council/leeds,Leeds City Council,31/08/2018,Communities and Environment,Parks and Countryside,Supplies and Services,Resaleable Materials,204,16/08/2018,1805-00086,0.00,570.00,R,A J Promotions,No
Http://opendatacommunities.org/id/metropolitan-district-council/leeds,Leeds City Council,31/08/2018,Communities and Environment,Parks and Countryside,Supplies and Services,Resaleable Materials,204,22/08/2018,1805-00087,0.00,1654.20,R,A J Promotions,No
Http://opendatacommunities.org/id/metropolitan-district-council/leeds,Leeds City Council,31/08/2018,Communities and Environment,Parks and Countryside,Supplies and Services,Resaleable Materials,204,24/08/2018,1805-00088,0.00,180.00,R,A J Promotions,No
Http://opendatacommunities.org/id/metropolitan-district-council/leeds,Leeds City Council,31/08/2018,City Development,Libraries  Arts & Heritage,Supplies and Services,Art Galleries Total Stores,003,24/08/2018,1805-00089,0.00,200.30,R,A J Promotions,No
Http://opendatacommunities.org/id/metropolitan-district-council/leeds,Leeds City Council,31/08/2018,Communities and Environment,Customer Access,Supplies and Services,Resaleable Materials,204,24/08/2018,1805-00090,0.00,116.10,R,A J Promotions,No
Http://opendatacommunities.org/id/metropolitan-district-council/leeds,Leeds City Council,31/08/2018,City Development,Libraries  Arts & Heritage,Supplies and Services,Art Galleries Total Stores,003,30/08/2018,1805-00091,0.00,47.90,R,A J Promotions,No
Http://opendatacommunities.org/id/metropolitan-district-council/leeds,Leeds City Council,31/08/2018,Adults and Health,Public Health,Third Party Payments,Public Health Commissioned Services,526,20/08/2018,1805-00092,0.00,160.00,R,A Khan & K Muneer,No
Http://opendatacommunities.org/id/metropolitan-district-council/leeds,Leeds City Council,31/08/2018,Children and Families,Social Care,Third Party Payments,Services Rendered By Other Organisations,511,07/08/2018,1805-00093,0.00,1225.00,R,A Little Something Extra Ltd,No
Http://opendatacommunities.org/id/metropolitan-district-council/leeds,Leeds City Council,31/08/2018,Children and Families,Social Care,Third Party Payments,Services Rendered By Other Organisations,511,07/08/2018,1805-00094,0.00,1443.75,R,A Little Something Extra Ltd,No
Http://opendatacommunities.org/id/metropolitan-district-council/leeds,Leeds City Council,31/08/2018,Children and Families,Social Care,Third Party Payments,Services Rendered By Other Organisations,511,09/08/2018,1805-00095,0.00,612.50,R,A Little Something Extra Ltd,No
Http://opendatacommunities.org/id/metropolitan-district-council/leeds,Leeds City Council,31/08/2018,Children and Families,Social Care,Third Party Payments,Services Rendered By Other Organisations,511,09/08/2018,1805-00096,0.00,962.50,R,A Little Something Extra Ltd,No
Http://opendatacommunities.org/id/metropolitan-district-council/leeds,Leeds City Council,31/08/2018,Children and Families,Social Care,Third Party Payments,Services Rendered By Voluntary Sector,505,17/08/2018,1805-00097,0.00,875.00,R,A Little Something Extra Ltd,No
Http://opendatacommunities.org/id/metropolitan-district-council/leeds,Leeds City Council,31/08/2018,Children and Families,Social Care,Third Party Payments,Services Rendered By Voluntary Sector,505,31/08/2018,1805-00098,0.00,756.88,R,A Little Something Extra Ltd,No
Http://opendatacommunities.org/id/metropolitan-district-council/leeds,Leeds City Council,31/08/2018,Communities and Environment,Customer Access,Supplies and Services,Other Hired And Contracted Services,265,03/08/2018,1805-00099,0.00,820.15,R,A Mohammed,No
Http://opendatacommunities.org/id/metropolitan-district-council/leeds,Leeds City Council,31/08/2018,Communities and Environment,Customer Access,Supplies and Services,Other Hired And Contracted Services,265,02/08/2018,1805-00100,0.00,39.25,R,A Musalam,No
Http://opendatacommunities.org/id/metropolitan-district-council/leeds,Leeds City Council,31/08/2018,Communities and Environment,Customer Access,Supplies and Services,Other Hired And Contracted Services,265,03/08/2018,1805-00101,0.00,284.75,R,A Namaki,No
Http://opendatacommunities.org/id/metropolitan-district-council/leeds,Leeds City Council,31/08/2018,Resources and Housing,HRA Housing Leeds,Capital,Other Costs,7,09/08/2018,1805-00102,0.00,151.27,C,REDACTED PERSONAL DATA,No
Http://opendatacommunities.org/id/metropolitan-district-council/leeds,Leeds City Council,31/08/2018,City Development,Libraries  Arts & Heritage,Supplies and Services,Bought In Professional Services,277,06/08/2018,1805-00103,0.00,5000.00,R,A P Holden,No
Http://opendatacommunities.org/id/metropolitan-district-council/leeds,Leeds City Council,31/08/2018,City Development,Economic Development,Supplies and Services,Other Hired And Contracted Services,265,13/08/2018,1805-00104,0.00,20000.00,R,A Q Limited,No
Http://opendatacommunities.org/id/metropolitan-district-council/leeds,Leeds City Council,31/08/2018,Children and Families,Learning,Supplies and Services,Bought In Professional Services,277,07/08/2018,1805-00105,0.00,160.00,R,A Robling,No
Http://opendatacommunities.org/id/metropolitan-district-council/leeds,Leeds City Council,31/08/2018,Resources and Housing,Shared Services,Supplies and Services,Other Hired And Contracted Services,265,16/08/2018,1805-00106,0.00,72.00,R,A Star Couriers Ltd,No
Http://opendatacommunities.org/id/metropolitan-district-council/leeds,Leeds City Council,31/08/2018,Resources and Housing,Shared Services,Supplies and Services,Operational Materials,205,30/08/2018,1805-00107,0.00,46.25,R,A Star Couriers Ltd,No
Http://opendatacommunities.org/id/metropolitan-district-council/leeds,Leeds City Council,31/08/2018,City Development,Markets & City Centre Management,Supplies and Services,Publication And Promotion,267,10/08/2018,1805-00108,0.00,450.00,R,A T Graphics Limited,No
Http://opendatacommunities.org/id/metropolitan-district-council/leeds,Leeds City Council,31/08/2018,City Development,Markets & City Centre Management,Supplies and Services,Publication And Promotion,267,17/08/2018,1805-00109,0.00,200.00,R,A T Graphics Limited,No
Http://opendatacommunities.org/id/metropolitan-district-council/leeds,Leeds City Council,31/08/2018,Communities and Environment,Waste Management,Supplies and Services,Other Hired And Contracted Services,265,31/08/2018,1805-00110,0.00,134.50,R,A T Nerac Ltd,No
Http://opendatacommunities.org/id/metropolitan-district-council/leeds,Leeds City Council,31/08/2018,City Development,Highways,Capital,Land,1,09/08/2018,1805-00111,0.00,13000.00,C,REDACTED PERSONAL DATA,No
Http://opendatacommunities.org/id/metropolitan-district-council/leeds,Leeds City Council,31/08/2018,Children and Families,Social Care,Third Party Payments,General External Residential Placements,507,10/08/2018,1805-00112,0.00,1065.75,R,A Wilderness Way Ltd,No
Http://opendatacommunities.org/id/metropolitan-district-council/leeds,Leeds City Council,31/08/2018,Children and Families,Social Care,Third Party Payments,General External Residential Placements,507,20/08/2018,1805-00113,0.00,18422.68,R,A Wilderness Way Ltd,No
Http://opendatacommunities.org/id/metropolitan-district-council/leeds,Leeds City Council,31/08/2018,Children and Families,Social Care,Third Party Payments,General External Residential Placements,507,20/08/2018,1805-00114,0.00,107.10,R,A Wilderness Way Ltd,No
Http://opendatacommunities.org/id/metropolitan-district-council/leeds,Leeds City Council,31/08/2018,Children and Families,Social Care,Third Party Payments,General External Residential Placements,507,31/08/2018,1805-00115,0.00,18422.44,R,A Wilderness Way Ltd,No
Http://opendatacommunities.org/id/metropolitan-district-council/leeds,Leeds City Council,31/08/2018,Adults and Health,Public Health,Third Party Payments,Public Health Commissioned Services,526,29/08/2018,1805-00116,0.00,1570.00,R,A&R Engineering Ltd,No
Http://opendatacommunities.org/id/metropolitan-district-council/leeds,Leeds City Council,31/08/2018,Children and Families,Learning,Supplies and Services,Office Furniture & Equipment,201,29/08/2018,1805-00117,0.00,321.00,R,A0 Print Solutions Ltd,No
Http://opendatacommunities.org/id/metropolitan-district-council/leeds,Leeds City Council,31/08/2018,Resources and Housing,Leeds Building Services,Supplies and Services,Other Hired And Contracted Services,265,28/08/2018,1805-00118,0.00,850.00,R,A1 Stair Lift Services,No
Http://opendatacommunities.org/id/metropolitan-district-council/leeds,Leeds City Council,31/08/2018,Children and Families,Social Care  ,Supplies and Services,Office Consumables,210,12/07/2018,1805-00119,0.00,72.09,R,Aardvark Archery,Yes
Http://opendatacommunities.org/id/metropolitan-district-council/leeds,Leeds City Council,31/08/2018,Adults and Health,Social Services Support Services,Transport,Public Transport Expenses,310,21/08/2018,1805-00120,0.00,-85.00,R,Ab Cars,No
Http://opendatacommunities.org/id/metropolitan-district-council/leeds,Leeds City Council,31/08/2018,Adults and Health,Social Services Support Services,Transport,Public Transport Expenses,310,21/08/2018,1805-00121,0.00,238.00,R,Ab Cars,No
Http://opendatacommunities.org/id/metropolitan-district-council/leeds,Leeds City Council,31/08/2018,Adults and Health,Social Services Support Services,Transport,Public Transport Expenses,310,28/08/2018,1805-00122,0.00,85.00,R,Ab Cars,No
Http://opendatacommunities.org/id/metropolitan-district-council/leeds,Leeds City Council,31/08/2018,Communities and Environment,Car Parking Services  ,Supplies and Services,Postages,212,17/07/2018,1805-00123,0.00,14.50,R,Abacus Express,Yes
Http://opendatacommunities.org/id/metropolitan-district-council/leeds,Leeds City Council,31/08/2018,Children and Families,Social Care,Support Services,Legal Disbursements,411,03/08/2018,1805-00124,0.00,31.02,R,Abacus Express Limited,No
Http://opendatacommunities.org/id/metropolitan-district-council/leeds,Leeds City Council,31/08/2018,City Development,Planning & Sustainable Development,Supplies and Services,Other Hired And Contracted Services,265,03/08/2018,1805-00125,0.00,15.59,R,Abacus Express Limited,No
Http://opendatacommunities.org/id/metropolitan-district-council/leeds,Leeds City Council,31/08/2018,Children and Families,Social Care,Support Services,Legal Disbursements,411,17/08/2018,1805-00126,0.00,31.02,R,Abacus Express Limited,No
Http://opendatacommunities.org/id/metropolitan-district-council/leeds,Leeds City Council,31/08/2018,Children and Families,Social Care,Support Services,Legal Disbursements,411,17/08/2018,1805-00127,0.00,31.02,R,Abacus Express Limited,No
Http://opendatacommunities.org/id/metropolitan-district-council/leeds,Leeds City Council,31/08/2018,Children and Families,Social Care,Support Services,Legal Disbursements,411,17/08/2018,1805-00128,0.00,60.00,R,Abacus Express Limited,No
Http://opendatacommunities.org/id/metropolitan-district-council/leeds,Leeds City Council,31/08/2018,Children and Families,Social Care,Support Services,Legal Disbursements,411,17/08/2018,1805-00129,0.00,79.55,R,Abacus Express Limited,No
Http://opendatacommunities.org/id/metropolitan-district-council/leeds,Leeds City Council,31/08/2018,Adults and Health,Services For Older People - 65 And Over,Third Party Payments,Nursing Care Dementia,574,22/08/2018,1805-00130,0.00,1556.00,R,Abbendon Nursing Home,No
Http://opendatacommunities.org/id/metropolitan-district-council/leeds,Leeds City Council,31/08/2018,Adults and Health,Public Health,Third Party Payments,Public Health Commissioned Services,526,20/08/2018,1805-00131,0.00,985.00,R,Abbey Grange Medical Practice,No
Http://opendatacommunities.org/id/metropolitan-district-council/leeds,Leeds City Council,31/08/2018,Adults and Health,Services For Adults Under 65 Mental/Dis,Third Party Payments,Nursing Home,570,22/08/2018,1805-00132,0.00,1852.00,R,Abbey Grange Nursing Home,No
Http://opendatacommunities.org/id/metropolitan-district-council/leeds,Leeds City Council,31/08/2018,Communities and Environment,Cleaner Neighbourhood Teams,Supplies and Services,Bought In Professional Services,277,06/08/2018,1805-00133,0.00,131.58,R,Abbey House Veterinary Hospital,No
Http://opendatacommunities.org/id/metropolitan-district-council/leeds,Leeds City Council,31/08/2018,Communities and Environment,Customer Access,Supplies and Services,Other Hired And Contracted Services,265,03/08/2018,1805-00134,0.00,15.00,R,Abdul Wadood Kazizadha,No
Http://opendatacommunities.org/id/metropolitan-district-council/leeds,Leeds City Council,31/08/2018,Communities and Environment,Customer Access,Supplies and Services,Other Hired And Contracted Services,265,03/08/2018,1805-00135,0.00,561.00,R,Abdulahad Denha,No
Http://opendatacommunities.org/id/metropolitan-district-council/leeds,Leeds City Council,31/08/2018,Adults and Health,Services For Older People - 65 And Over,Third Party Payments,Nursing Home,570,16/08/2018,1805-00136,0.00,9061.80,R,Aberford Hall,No
Http://opendatacommunities.org/id/metropolitan-district-council/leeds,Leeds City Council,31/08/2018,Adults and Health,Services For Older People - 65 And Over,Third Party Payments,Nursing Home,570,22/08/2018,1805-00137,0.00,41283.23,R,Aberford Hall,No
Http://opendatacommunities.org/id/metropolitan-district-council/leeds,Leeds City Council,31/08/2018,Adults and Health,Services For Older People - 65 And Over,Third Party Payments,Nursing Care Dementia,574,22/08/2018,1805-00138,0.00,3517.84,R,Aberford Hall,No
Http://opendatacommunities.org/id/metropolitan-district-council/leeds,Leeds City Council,31/08/2018,Adults and Health,Services For Older People - 65 And Over,Third Party Payments,Residential,580,22/08/2018,1805-00139,0.00,1531.12,R,Aberford Hall,No
Http://opendatacommunities.org/id/metropolitan-district-council/leeds,Leeds City Council,31/08/2018,Resources and Housing,Leeds Building Services,Supplies and Services,Operational Materials,205,03/08/2018,1805-00140,0.00,250.45,R,Abi Garage Doors Ltd,No
Http://opendatacommunities.org/id/metropolitan-district-council/leeds,Leeds City Council,31/08/2018,Resources and Housing,Leeds Building Services,Supplies and Services,Operational Materials,205,03/08/2018,1805-00141,0.00,6.67,R,Abi Garage Doors Ltd,No
Http://opendatacommunities.org/id/metropolitan-district-council/leeds,Leeds City Council,31/08/2018,Resources and Housing,Leeds Building Services,Supplies and Services,Operational Materials,205,20/08/2018,1805-00142,0.00,260.46,R,Abi Garage Doors Ltd,No
Http://opendatacommunities.org/id/metropolitan-district-council/leeds,Leeds City Council,31/08/2018,Resources and Housing,Leeds Building Services,Supplies and Services,Operational Materials,205,20/08/2018,1805-00143,0.00,15.00,R,Abi Garage Doors Ltd,No
Http://opendatacommunities.org/id/metropolitan-district-council/leeds,Leeds City Council,31/08/2018,Resources and Housing,Leeds Building Services,Supplies and Services,Operational Materials,205,24/08/2018,1805-00144,0.00,260.46,R,Abi Garage Doors Ltd,No
Http://opendatacommunities.org/id/metropolitan-district-council/leeds,Leeds City Council,31/08/2018,Resources and Housing,Leeds Building Services,Supplies and Services,Operational Materials,205,24/08/2018,1805-00145,0.00,260.45,R,Abi Garage Doors Ltd,No
Http://opendatacommunities.org/id/metropolitan-district-council/leeds,Leeds City Council,31/08/2018,Children and Families,Social Care,Employees,Training & Development,70,14/08/2018,1805-00146,0.00,2154.00,R,Ability Smart Limited,No
Http://opendatacommunities.org/id/metropolitan-district-council/leeds,Leeds City Council,31/08/2018,Children and Families,Social Care  ,Transfer Payments,Young Peoples Rewards,653,19/07/2018,1805-00147,0.00,170.00,R,Abu 2 Go Ltd,Yes
Http://opendatacommunities.org/id/metropolitan-district-council/leeds,Leeds City Council,31/08/2018,Children and Families,Social Care  ,Transfer Payments,Young Peoples Rewards,653,19/07/2018,1805-00148,0.00,170.00,R,Abu 2 Go Ltd,Yes
Http://opendatacommunities.org/id/metropolitan-district-council/leeds,Leeds City Council,31/08/2018,Children and Families,Social Care,Employees,Agency Staff,8,24/08/2018,1805-00149,0.00,282.00,R,Academic Appointments Ltd,No
Http://opendatacommunities.org/id/metropolitan-district-council/leeds,Leeds City Council,31/08/2018,Children and Families,Social Care,Employees,Agency Staff,8,29/08/2018,1805-00150,0.00,945.00,R,Academic Appointments Ltd,No
Http://opendatacommunities.org/id/metropolitan-district-council/leeds,Leeds City Council,31/08/2018,Children and Families,Social Care,Employees,Agency Staff,8,29/08/2018,1805-00151,0.00,1410.00,R,Academic Appointments Ltd,No
Http://opendatacommunities.org/id/metropolitan-district-council/leeds,Leeds City Council,31/08/2018,Children and Families,Learning,Supplies and Services,Other Hired And Contracted Services,265,20/08/2018,1805-00152,0.00,1400.00,R,Academies Enterprise Trust (Aet),No
Http://opendatacommunities.org/id/metropolitan-district-council/leeds,Leeds City Council,31/08/2018,Resources and Housing,Strategic Housing Partnership & Support,Supplies and Services,Other Hired And Contracted Services,265,13/08/2018,1805-00153,0.00,197.30,R,Accent Foundation Ltd,No
Http://opendatacommunities.org/id/metropolitan-district-council/leeds,Leeds City Council as Accountable Body,31/08/2018,Social Services Pooled Budgets,Jcs For People With Learning Disabilitie,Third Party Payments,Home Care,568,29/08/2018,1805-00154,0.00,1259.21,R,Accent Foundation Ltd,No
Http://opendatacommunities.org/id/metropolitan-district-council/leeds,Leeds City Council as Accountable Body,31/08/2018,Social Services Pooled Budgets,Jcs For People With Learning Disabilitie,Third Party Payments,Home Care,568,29/08/2018,1805-00155,0.00,3951.94,R,Accent Foundation Ltd,No
Http://opendatacommunities.org/id/metropolitan-district-council/leeds,Leeds City Council,31/08/2018,Resources and Housing,Strategic Housing Partnerships,Capital,Construction,3,09/08/2018,1805-00156,0.00,2268.00,C,Accent Homes Ltd,No
Http://opendatacommunities.org/id/metropolitan-district-council/leeds,Leeds City Council,31/08/2018,Communities and Environment,Community Safety,Transport,Hire Of Movable Plant & Machinery,315,02/08/2018,1805-00157,0.00,1268.57,R,Access Hire Nationwide Ltd,No
Http://opendatacommunities.org/id/metropolitan-district-council/leeds,Leeds City Council,31/08/2018,Communities and Environment,Community Safety,Transport,Hire Of Movable Plant & Machinery,315,24/08/2018,1805-00158,0.00,1310.86,R,Access Hire Nationwide Ltd,No
Http://opendatacommunities.org/id/metropolitan-district-council/leeds,Leeds City Council,31/08/2018,Resources and Housing,Shared Services  ,Premises,Maintenance Of Buildings,101,03/07/2018,1805-00159,0.00,21.19,R,Access Locksmiths,Yes
Http://opendatacommunities.org/id/metropolitan-district-council/leeds,Leeds City Council,31/08/2018,Resources and Housing,Commercial Services  ,Supplies and Services,Operational Materials,205,19/07/2018,1805-00160,0.00,425.34,R,Access Locksmiths,Yes
Http://opendatacommunities.org/id/metropolitan-district-council/leeds,Leeds City Council,31/08/2018,Strategic Landlord,Housing Management,Supplies and Services,Grant Related Expenditure,298,06/08/2018,1805-00161,0.00,68.40,R,Access Locksmiths (Leeds) Limited,No
Http://opendatacommunities.org/id/metropolitan-district-council/leeds,Leeds City Council,31/08/2018,Strategic Landlord,Housing Management,Premises,General Maintenance,104,07/08/2018,1805-00162,0.00,60.54,R,Access Locksmiths (Leeds) Limited,No
Http://opendatacommunities.org/id/metropolitan-district-council/leeds,Leeds City Council,31/08/2018,Strategic Landlord,Property and Contracts,Premises,General Maintenance,104,09/08/2018,1805-00163,0.00,143.51,R,Access Locksmiths (Leeds) Limited,No
Http://opendatacommunities.org/id/metropolitan-district-council/leeds,Leeds City Council,31/08/2018,Strategic Landlord,Property and Contracts,Premises,General Maintenance,104,09/08/2018,1805-00164,0.00,77.56,R,Access Locksmiths (Leeds) Limited,No
Http://opendatacommunities.org/id/metropolitan-district-council/leeds,Leeds City Council,31/08/2018,Resources and Housing,Leeds Building Services,Supplies and Services,Operational Materials,205,17/08/2018,1805-00165,0.00,3.36,R,Access Locksmiths (Leeds) Limited,No
Http://opendatacommunities.org/id/metropolitan-district-council/leeds,Leeds City Council,31/08/2018,Resources and Housing,Leeds Building Services,Supplies and Services,Operational Materials,205,17/08/2018,1805-00166,0.00,117.27,R,Access Locksmiths (Leeds) Limited,No
Http://opendatacommunities.org/id/metropolitan-district-council/leeds,Leeds City Council,31/08/2018,Resources and Housing,Leeds Building Services,Supplies and Services,Operational Materials,205,17/08/2018,1805-00167,0.00,34.38,R,Access Locksmiths (Leeds) Limited,No
Http://opendatacommunities.org/id/metropolitan-district-council/leeds,Leeds City Council,31/08/2018,Resources and Housing,Leeds Building Services,Supplies and Services,Operational Materials,205,17/08/2018,1805-00168,0.00,85.26,R,Access Locksmiths (Leeds) Limited,No
Http://opendatacommunities.org/id/metropolitan-district-council/leeds,Leeds City Council,31/08/2018,Resources and Housing,Leeds Building Services,Supplies and Services,Operational Materials,205,17/08/2018,1805-00169,0.00,98.00,R,Access Locksmiths (Leeds) Limited,No
Http://opendatacommunities.org/id/metropolitan-district-council/leeds,Leeds City Council,31/08/2018,Resources and Housing,Leeds Building Services,Supplies and Services,Operational Materials,205,17/08/2018,1805-00170,0.00,130.62,R,Access Locksmiths (Leeds) Limited,No
Http://opendatacommunities.org/id/metropolitan-district-council/leeds,Leeds City Council,31/08/2018,Resources and Housing,Leeds Building Services,Supplies and Services,Operational Materials,205,17/08/2018,1805-00171,0.00,48.49,R,Access Locksmiths (Leeds) Limited,No
Http://opendatacommunities.org/id/metropolitan-district-council/leeds,Leeds City Council,31/08/2018,Resources and Housing,Leeds Building Services,Supplies and Services,Operational Materials,205,17/08/2018,1805-00172,0.00,16.83,R,Access Locksmiths (Leeds) Limited,No
Http://opendatacommunities.org/id/metropolitan-district-council/leeds,Leeds City Council,31/08/2018,Strategic Landlord,Property and Contracts,Premises,General Maintenance,104,22/08/2018,1805-00173,0.00,158.67,R,Access Locksmiths (Leeds) Limited,No
Http://opendatacommunities.org/id/metropolitan-district-council/leeds,Leeds City Council,31/08/2018,Strategic Landlord,Housing Management,Supplies and Services,Grant Related Expenditure,298,24/08/2018,1805-00174,0.00,57.00,R,Access Locksmiths (Leeds) Limited,No
Http://opendatacommunities.org/id/metropolitan-district-council/leeds,Leeds City Council,31/08/2018,Strategic Landlord,Housing Management,Supplies and Services,Grant Related Expenditure,298,24/08/2018,1805-00175,0.00,114.00,R,Access Locksmiths (Leeds) Limited,No
Http://opendatacommunities.org/id/metropolitan-district-council/leeds,Leeds City Council,31/08/2018,Strategic Landlord,Property and Contracts,Premises,General Maintenance,104,24/08/2018,1805-00176,0.00,413.20,R,Access Locksmiths (Leeds) Limited,No
Http://opendatacommunities.org/id/metropolitan-district-council/leeds,Leeds City Council,31/08/2018,Resources and Housing,HRA Housing Leeds,Capital,Construction,3,24/08/2018,1805-00177,0.00,42.64,C,Access Locksmiths (Leeds) Limited,No
Http://opendatacommunities.org/id/metropolitan-district-council/leeds,Leeds City Council,31/08/2018,Strategic Landlord,Housing Management,Supplies and Services,Resaleable Materials,204,24/08/2018,1805-00178,0.00,5.00,R,Access Locksmiths (Leeds) Limited,No
Http://opendatacommunities.org/id/metropolitan-district-council/leeds,Leeds City Council,31/08/2018,Strategic Landlord,Housing Management,Supplies and Services,Resaleable Materials,204,24/08/2018,1805-00179,0.00,239.40,R,Access Locksmiths (Leeds) Limited,No
Http://opendatacommunities.org/id/metropolitan-district-council/leeds,Leeds City Council,31/08/2018,Resources and Housing,HRA Housing Leeds,Capital,Construction,3,24/08/2018,1805-00180,0.00,95.52,C,Access Locksmiths (Leeds) Limited,No
Http://opendatacommunities.org/id/metropolitan-district-council/leeds,Leeds City Council,31/08/2018,Resources and Housing,Commercial Services,Supplies and Services,Operational Furniture And Equipment,203,28/08/2018,1805-00181,0.00,240.00,R,Access Locksmiths (Leeds) Limited,No
Http://opendatacommunities.org/id/metropolitan-district-council/leeds,Leeds City Council,31/08/2018,Resources and Housing,Leeds Building Services,Supplies and Services,Operational Materials,205,29/08/2018,1805-00182,0.00,88.60,R,Access Locksmiths (Leeds) Limited,No
Http://opendatacommunities.org/id/metropolitan-district-council/leeds,Leeds City Council,31/08/2018,Resources and Housing,Leeds Building Services,Supplies and Services,Operational Materials,205,29/08/2018,1805-00183,0.00,11.72,R,Access Locksmiths (Leeds) Limited,No
Http://opendatacommunities.org/id/metropolitan-district-council/leeds,Leeds City Council,31/08/2018,Resources and Housing,Leeds Building Services,Supplies and Services,Operational Materials,205,30/08/2018,1805-00184,0.00,37.00,R,Access Locksmiths (Leeds) Limited,No
Http://opendatacommunities.org/id/metropolitan-district-council/leeds,Leeds City Council,31/08/2018,Resources and Housing,Leeds Building Services,Supplies and Services,Operational Materials,205,30/08/2018,1805-00185,0.00,13.70,R,Access Locksmiths (Leeds) Limited,No
Http://opendatacommunities.org/id/metropolitan-district-council/leeds,Leeds City Council,31/08/2018,Resources and Housing,Leeds Building Services,Supplies and Services,Operational Materials,205,30/08/2018,1805-00186,0.00,28.25,R,Access Locksmiths (Leeds) Limited,No
Http://opendatacommunities.org/id/metropolitan-district-council/leeds,Leeds City Council,31/08/2018,Resources and Housing,Leeds Building Services,Supplies and Services,Operational Materials,205,31/08/2018,1805-00187,0.00,38.61,R,Access Locksmiths (Leeds) Limited,No
Http://opendatacommunities.org/id/metropolitan-district-council/leeds,Leeds City Council,31/08/2018,Resources and Housing,Leeds Building Services,Supplies and Services,Operational Materials,205,31/08/2018,1805-00188,0.00,55.68,R,Access Locksmiths (Leeds) Limited,No
Http://opendatacommunities.org/id/metropolitan-district-council/leeds,Leeds City Council,31/08/2018,Resources and Housing,Leeds Building Services,Supplies and Services,Other Hired And Contracted Services,265,31/08/2018,1805-00189,0.00,19.85,R,Access Locksmiths (Leeds) Limited,No
Http://opendatacommunities.org/id/metropolitan-district-council/leeds,Leeds City Council,31/08/2018,Resources and Housing,Leeds Building Services,Supplies and Services,Operational Materials,205,31/08/2018,1805-00190,0.00,5.40,R,Access Locksmiths (Leeds) Limited,No
Http://opendatacommunities.org/id/metropolitan-district-council/leeds,Leeds City Council,31/08/2018,Resources and Housing,Leeds Building Services,Supplies and Services,Operational Materials,205,31/08/2018,1805-00191,0.00,58.77,R,Access Locksmiths (Leeds) Limited,No
Http://opendatacommunities.org/id/metropolitan-district-council/leeds,Leeds City Council,31/08/2018,Resources and Housing,Leeds Building Services,Supplies and Services,Operational Materials,205,31/08/2018,1805-00192,0.00,32.50,R,Access Locksmiths (Leeds) Limited,No
Http://opendatacommunities.org/id/metropolitan-district-council/leeds,Leeds City Council,31/08/2018,City Development,Libraries  Arts & Heritage,Supplies and Services,Bought In Professional Services,277,03/08/2018,1805-00193,0.00,750.00,R,Access Moving Image Ltd,No
Http://opendatacommunities.org/id/metropolitan-district-council/leeds,Leeds City Council,31/08/2018,Communities and Environment,Customer Access,Supplies and Services,Other Hired And Contracted Services,265,03/08/2018,1805-00194,0.00,3550.00,R,Access Moving Image Ltd,No
Http://opendatacommunities.org/id/metropolitan-district-council/leeds,Leeds City Council,31/08/2018,City Development,Libraries  Arts & Heritage,Supplies and Services,Bought In Professional Services,277,08/08/2018,1805-00195,0.00,1000.00,R,Access Moving Image Ltd,No
Http://opendatacommunities.org/id/metropolitan-district-council/leeds,Leeds City Council,31/08/2018,Resources and Housing,Leeds Building Services,Supplies and Services,Operational Materials,205,06/08/2018,1805-00196,0.00,175.00,R,Access Opening Systems,No
Http://opendatacommunities.org/id/metropolitan-district-council/leeds,Leeds City Council,31/08/2018,Resources and Housing,Leeds Building Services,Supplies and Services,Operational Materials,205,06/08/2018,1805-00197,0.00,162.50,R,Access Opening Systems,No
Http://opendatacommunities.org/id/metropolitan-district-council/leeds,Leeds City Council,31/08/2018,Resources and Housing,Leeds Building Services,Supplies and Services,Operational Materials,205,06/08/2018,1805-00198,0.00,32.50,R,Access Opening Systems,No
Http://opendatacommunities.org/id/metropolitan-district-council/leeds,Leeds City Council,31/08/2018,Resources and Housing,Leeds Building Services,Supplies and Services,Operational Materials,205,06/08/2018,1805-00199,0.00,97.50,R,Access Opening Systems,No
Http://opendatacommunities.org/id/metropolitan-district-council/leeds,Leeds City Council,31/08/2018,Resources and Housing,Leeds Building Services,Supplies and Services,Operational Materials,205,06/08/2018,1805-00200,0.00,147.50,R,Access Opening Systems,No
Http://opendatacommunities.org/id/metropolitan-district-council/leeds,Leeds City Council,31/08/2018,Resources and Housing,Leeds Building Services,Supplies and Services,Operational Materials,205,09/08/2018,1805-00201,0.00,285.00,R,Access Opening Systems,No
Http://opendatacommunities.org/id/metropolitan-district-council/leeds,Leeds City Council,31/08/2018,Resources and Housing,Leeds Building Services,Supplies and Services,Other Hired And Contracted Services,265,10/08/2018,1805-00202,0.00,95.00,R,Access Opening Systems,No
Http://opendatacommunities.org/id/metropolitan-district-council/leeds,Leeds City Council,31/08/2018,Resources and Housing,Leeds Building Services,Supplies and Services,Operational Materials,205,10/08/2018,1805-00203,0.00,222.50,R,Access Opening Systems,No
Http://opendatacommunities.org/id/metropolitan-district-council/leeds,Leeds City Council,31/08/2018,Resources and Housing,Leeds Building Services,Supplies and Services,Operational Materials,205,14/08/2018,1805-00204,0.00,110.00,R,Access Opening Systems,No
Http://opendatacommunities.org/id/metropolitan-district-council/leeds,Leeds City Council,31/08/2018,Resources and Housing,Leeds Building Services,Supplies and Services,Operational Materials,205,21/08/2018,1805-00205,0.00,819.00,R,Access Opening Systems,No
Http://opendatacommunities.org/id/metropolitan-district-council/leeds,Leeds City Council,31/08/2018,Resources and Housing,Leeds Building Services,Supplies and Services,Operational Materials,205,21/08/2018,1805-00206,0.00,115.00,R,Access Opening Systems,No
Http://opendatacommunities.org/id/metropolitan-district-council/leeds,Leeds City Council,31/08/2018,Resources and Housing,Leeds Building Services,Supplies and Services,Operational Materials,205,21/08/2018,1805-00207,0.00,24.74,R,Access Opening Systems,No
Http://opendatacommunities.org/id/metropolitan-district-council/leeds,Leeds City Council,31/08/2018,Resources and Housing,Leeds Building Services,Supplies and Services,Operational Materials,205,21/08/2018,1805-00208,0.00,162.50,R,Access Opening Systems,No
Http://opendatacommunities.org/id/metropolitan-district-council/leeds,Leeds City Council,31/08/2018,Resources and Housing,Leeds Building Services,Supplies and Services,Operational Materials,205,24/08/2018,1805-00209,0.00,22.50,R,Access Opening Systems,No
Http://opendatacommunities.org/id/metropolitan-district-council/leeds,Leeds City Council,31/08/2018,Resources and Housing,Leeds Building Services,Supplies and Services,Operational Materials,205,31/08/2018,1805-00210,0.00,112.50,R,Access Opening Systems,No
Http://opendatacommunities.org/id/metropolitan-district-council/leeds,Leeds City Council,31/08/2018,Resources and Housing,Leeds Building Services,Supplies and Services,Other Hired And Contracted Services,265,31/08/2018,1805-00211,0.00,512.50,R,Access Opening Systems,No
Http://opendatacommunities.org/id/metropolitan-district-council/leeds,Leeds City Council,31/08/2018,Resources and Housing,Leeds Building Services,Supplies and Services,Other Hired And Contracted Services,265,31/08/2018,1805-00212,0.00,225.00,R,Access Opening Systems,No
Http://opendatacommunities.org/id/metropolitan-district-council/leeds,Leeds City Council as Accountable Body,31/08/2018,Social Services Pooled Budgets,Jcs For People With Learning Disabilitie,Supplies and Services,Other Equipment,203,31/08/2018,1805-00213,0.00,1469.00,R,Accora,No
Http://opendatacommunities.org/id/metropolitan-district-council/leeds,Leeds City Council,31/08/2018,Insurance,Insurance,Supplies and Services,Insurance Claims,248,02/08/2018,1805-00214,0.00,2521.20,R,Accountant General Of The Senior Courts,No
Http://opendatacommunities.org/id/metropolitan-district-council/leeds,Leeds City Council,31/08/2018,Insurance,Insurance,Supplies and Services,Insurance Claims,248,03/08/2018,1805-00215,0.00,1620.00,R,Accountant General Of The Senior Courts,No
Http://opendatacommunities.org/id/metropolitan-district-council/leeds,Leeds City Council,31/08/2018,Insurance,Insurance,Supplies and Services,Insurance Claims,248,23/08/2018,1805-00216,0.00,30000.00,R,Accountant General Of The Senior Courts,No
Http://opendatacommunities.org/id/metropolitan-district-council/leeds,Leeds City Council,31/08/2018,City Development,Recreation,Supplies and Services,Other Hired And Contracted Services,265,14/08/2018,1805-00217,0.00,93.00,R,Ace Container Services Limited,No
Http://opendatacommunities.org/id/metropolitan-district-council/leeds,Leeds City Council,31/08/2018,City Development,Recreation,Supplies and Services,Other Hired And Contracted Services,265,14/08/2018,1805-00218,0.00,93.00,R,Ace Container Services Limited,No
Http://opendatacommunities.org/id/metropolitan-district-council/leeds,Leeds City Council,31/08/2018,City Development,Recreation,Transport,External Hire -Occasional,304,30/08/2018,1805-00219,0.00,128.65,R,Ace Container Services Limited,No
Http://opendatacommunities.org/id/metropolitan-district-council/leeds,Leeds City Council,31/08/2018,City Development,Recreation,Supplies and Services,Other Hired And Contracted Services,265,31/08/2018,1805-00220,0.00,93.00,R,Ace Container Services Limited,No
Http://opendatacommunities.org/id/metropolitan-district-council/leeds,Leeds City Council,31/08/2018,Communities and Environment,Waste Management,Supplies and Services,Advertising,211,22/08/2018,1805-00221,0.00,11375.00,R,Ace Leaflet Distribution & Print Ltd,No
Http://opendatacommunities.org/id/metropolitan-district-council/leeds,Leeds City Council,31/08/2018,Children and Families,Partnerships & Health,Third Party Payments,SEN Placements,566,10/08/2018,1805-00222,0.00,17476.47,R,Ackworth School,No
Http://opendatacommunities.org/id/metropolitan-district-council/leeds,Leeds City Council,31/08/2018,Children and Families,Partnerships & Health,Third Party Payments,SEN Placements,566,10/08/2018,1805-00223,0.00,17476.47,R,Ackworth School,No
Http://opendatacommunities.org/id/metropolitan-district-council/leeds,Leeds City Council,31/08/2018,Children and Families,Partnerships & Health,Third Party Payments,SEN Placements,566,24/08/2018,1805-00224,0.00,18472.00,R,Acorn Care And Education Ltd,No
Http://opendatacommunities.org/id/metropolitan-district-council/leeds,Leeds City Council,31/08/2018,Children and Families,Partnerships & Health,Third Party Payments,SEN Placements,566,24/08/2018,1805-00225,0.00,18138.66,R,Acorn Care And Education Ltd,No
Http://opendatacommunities.org/id/metropolitan-district-council/leeds,Leeds City Council,31/08/2018,Children and Families,Partnerships & Health,Third Party Payments,SEN Placements,566,24/08/2018,1805-00226,0.00,18138.66,R,Acorn Care And Education Ltd,No
Http://opendatacommunities.org/id/metropolitan-district-council/leeds,Leeds City Council,31/08/2018,Children and Families,Partnerships & Health,Third Party Payments,SEN Placements,566,24/08/2018,1805-00227,0.00,18138.66,R,Acorn Care And Education Ltd,No
Http://opendatacommunities.org/id/metropolitan-district-council/leeds,Leeds City Council,31/08/2018,Children and Families,Partnerships & Health,Third Party Payments,SEN Placements,566,24/08/2018,1805-00228,0.00,18138.66,R,Acorn Care And Education Ltd,No
Http://opendatacommunities.org/id/metropolitan-district-council/leeds,Leeds City Council,31/08/2018,Children and Families,Partnerships & Health,Third Party Payments,SEN Placements,566,24/08/2018,1805-00229,0.00,18138.66,R,Acorn Care And Education Ltd,No
Http://opendatacommunities.org/id/metropolitan-district-council/leeds,Leeds City Council,31/08/2018,Children and Families,Partnerships & Health,Third Party Payments,SEN Placements,566,24/08/2018,1805-00230,0.00,18138.66,R,Acorn Care And Education Ltd,No
Http://opendatacommunities.org/id/metropolitan-district-council/leeds,Leeds City Council,31/08/2018,Children and Families,Partnerships & Health,Third Party Payments,SEN Placements,566,24/08/2018,1805-00231,0.00,18138.66,R,Acorn Care And Education Ltd,No
Http://opendatacommunities.org/id/metropolitan-district-council/leeds,Leeds City Council,31/08/2018,Children and Families,Partnerships & Health,Third Party Payments,SEN Placements,566,24/08/2018,1805-00232,0.00,18138.66,R,Acorn Care And Education Ltd,No
Http://opendatacommunities.org/id/metropolitan-district-council/leeds,Leeds City Council,31/08/2018,Children and Families,Partnerships & Health,Third Party Payments,SEN Placements,566,24/08/2018,1805-00233,0.00,18138.66,R,Acorn Care And Education Ltd,No
Http://opendatacommunities.org/id/metropolitan-district-council/leeds,Leeds City Council,31/08/2018,Children and Families,Partnerships & Health,Third Party Payments,SEN Placements,566,24/08/2018,1805-00234,0.00,18138.66,R,Acorn Care And Education Ltd,No
Http://opendatacommunities.org/id/metropolitan-district-council/leeds,Leeds City Council,31/08/2018,Children and Families,Partnerships & Health,Third Party Payments,SEN Placements,566,24/08/2018,1805-00235,0.00,18472.00,R,Acorn Care And Education Ltd,No
Http://opendatacommunities.org/id/metropolitan-district-council/leeds,Leeds City Council,31/08/2018,Children and Families,Partnerships & Health,Third Party Payments,SEN Placements,566,24/08/2018,1805-00236,0.00,18472.00,R,Acorn Care And Education Ltd,No
Http://opendatacommunities.org/id/metropolitan-district-council/leeds,Leeds City Council,31/08/2018,Children and Families,Partnerships & Health,Third Party Payments,SEN Placements,566,24/08/2018,1805-00237,0.00,18472.00,R,Acorn Care And Education Ltd,No
Http://opendatacommunities.org/id/metropolitan-district-council/leeds,Leeds City Council,31/08/2018,Children and Families,Partnerships & Health,Third Party Payments,SEN Placements,566,24/08/2018,1805-00238,0.00,18472.00,R,Acorn Care And Education Ltd,No
Http://opendatacommunities.org/id/metropolitan-district-council/leeds,Leeds City Council,31/08/2018,Children and Families,Partnerships & Health,Third Party Payments,SEN Placements,566,24/08/2018,1805-00239,0.00,8500.00,R,Acorn Care And Education Ltd,No
Http://opendatacommunities.org/id/metropolitan-district-council/leeds,Leeds City Council,31/08/2018,Children and Families,Partnerships & Health,Third Party Payments,SEN Placements,566,24/08/2018,1805-00240,0.00,7000.00,R,Acorn Care And Education Ltd,No
Http://opendatacommunities.org/id/metropolitan-district-council/leeds,Leeds City Council,31/08/2018,Children and Families,Partnerships & Health,Third Party Payments,SEN Placements,566,24/08/2018,1805-00241,0.00,8500.00,R,Acorn Care And Education Ltd,No
Http://opendatacommunities.org/id/metropolitan-district-council/leeds,Leeds City Council,31/08/2018,Adults and Health,Services For Older People - 65 And Over,Third Party Payments,Nursing Care Dementia,574,22/08/2018,1805-00242,0.00,1610.80,R,Acorn Nursing Home,No
Http://opendatacommunities.org/id/metropolitan-district-council/leeds,Leeds City Council,31/08/2018,City Development,Libraries  Arts & Heritage,Supplies and Services,Other Hired And Contracted Services,265,02/08/2018,1805-00243,0.00,812.98,R,Acorn Scaffolding (Yorkshire) Ltd,No
Http://opendatacommunities.org/id/metropolitan-district-council/leeds,Leeds City Council,31/08/2018,Resources and Housing,Strategy and Improvement,Supplies and Services,Other Hired And Contracted Services,265,09/08/2018,1805-00244,0.00,350.00,R,Acorn Scaffolding (Yorkshire) Ltd,No
Http://opendatacommunities.org/id/metropolitan-district-council/leeds,Leeds City Council,31/08/2018,Communities and Environment,Environmental Health,Supplies and Services,Other Hired And Contracted Services,265,30/08/2018,1805-00245,0.00,697.00,R,Acoustic Calibration Services Limited,No
Http://opendatacommunities.org/id/metropolitan-district-council/leeds,Leeds City Council,31/08/2018,Adults and Health,Services For Older People - 65 And Over,Third Party Payments,Nursing Home,570,22/08/2018,1805-00246,0.00,8679.64,R,Acre Green,No
Http://opendatacommunities.org/id/metropolitan-district-council/leeds,Leeds City Council,31/08/2018,Adults and Health,Services For Older People - 65 And Over,Third Party Payments,Residential,580,22/08/2018,1805-00247,0.00,6435.87,R,Acre Green,No
Http://opendatacommunities.org/id/metropolitan-district-council/leeds,Leeds City Council,31/08/2018,Adults and Health,Services For Older People Under 65 P/Dis,Third Party Payments,Nursing Home,570,22/08/2018,1805-00248,0.00,2135.48,R,Acre Green,No
Http://opendatacommunities.org/id/metropolitan-district-council/leeds,Leeds City Council,31/08/2018,Adults and Health,Services For Older People Under 65 P/Dis,Third Party Payments,Residential,580,22/08/2018,1805-00249,0.00,1898.80,R,Acre Green,No
Http://opendatacommunities.org/id/metropolitan-district-council/leeds,Leeds City Council,31/08/2018,Resources and Housing,Technology  ,Supplies and Services,Books & Audio-Visual Materials,206,12/07/2018,1805-00250,0.00,249.90,R,Act Now Training Limit,Yes
Http://opendatacommunities.org/id/metropolitan-district-council/leeds,Leeds City Council,31/08/2018,Resources and Housing,Technology  ,Employees,Best Value Training,70,20/07/2018,1805-00251,0.00,1995.00,R,Act Now Training Limit,Yes
Http://opendatacommunities.org/id/metropolitan-district-council/leeds,Leeds City Council,31/08/2018,Resources and Housing,Leeds Building Services,Supplies and Services,Operational Materials,205,07/08/2018,1805-00252,0.00,40.50,R,Actavo (Leeds H & S),No
Http://opendatacommunities.org/id/metropolitan-district-council/leeds,Leeds City Council as Accountable Body,31/08/2018,Social Services Pooled Budgets,Leeds Community Equip Store Pooled Budgt,Supplies and Services,Other Equipment,203,01/08/2018,1805-00253,0.00,200.00,R,Action Assist Ltd,No
Http://opendatacommunities.org/id/metropolitan-district-council/leeds,Leeds City Council,31/08/2018,Adults and Health,Services For Adults Under 65 Mental/Dis,Third Party Payments,Fees - Level 4,520,31/08/2018,1805-00254,0.00,250.00,R,Action First Recruitment Ltd,No
Http://opendatacommunities.org/id/metropolitan-district-council/leeds,Leeds City Council,31/08/2018,Adults and Health,Services For Adults Under 65 Mental/Dis,Third Party Payments,Fees - Level 4,520,31/08/2018,1805-00255,0.00,250.00,R,Action First Recruitment Ltd,No
Http://opendatacommunities.org/id/metropolitan-district-council/leeds,Leeds City Council,31/08/2018,Children and Families,Social Care,Third Party Payments,Independent Fostering Agencies,509,24/08/2018,1805-00256,0.00,4776.48,R,Action For Children,No
Http://opendatacommunities.org/id/metropolitan-district-council/leeds,Leeds City Council,31/08/2018,Children and Families,Social Care,Third Party Payments,Independent Fostering Agencies,509,24/08/2018,1805-00257,0.00,4776.48,R,Action For Children,No
Http://opendatacommunities.org/id/metropolitan-district-council/leeds,Leeds City Council,31/08/2018,Children and Families,Social Care,Third Party Payments,Independent Fostering Agencies,509,24/08/2018,1805-00258,0.00,4776.48,R,Action For Children,No
Http://opendatacommunities.org/id/metropolitan-district-council/leeds,Leeds City Council,31/08/2018,Children and Families,Social Care,Third Party Payments,Independent Fostering Agencies,509,24/08/2018,1805-00259,0.00,4776.48,R,Action For Children,No
Http://opendatacommunities.org/id/metropolitan-district-council/leeds,Leeds City Council,31/08/2018,Children and Families,Social Care,Third Party Payments,Independent Fostering Agencies,509,24/08/2018,1805-00260,0.00,5060.44,R,Action For Children Services Ltd,No
Http://opendatacommunities.org/id/metropolitan-district-council/leeds,Leeds City Council,31/08/2018,Communities and Environment,Communities,Supplies and Services,'Well Being' Large Grants Projects,230,08/08/2018,1805-00261,0.00,2829.77,R,Active Community Education In Sport Ltd,No
Http://opendatacommunities.org/id/metropolitan-district-council/leeds,Leeds City Council,31/08/2018,Communities and Environment,Waste Management  ,Supplies and Services,Clothing & Uniforms,241,20/07/2018,1805-00262,0.00,2275.00,R,Active Workwear,Yes
Http://opendatacommunities.org/id/metropolitan-district-council/leeds,Leeds City Council,31/08/2018,Communities and Environment,Waste Management,Supplies and Services,Recycling & Reuse Charges,234,02/08/2018,1805-00263,0.00,4722.83,R,Acumen Waste Services Ltd,No
Http://opendatacommunities.org/id/metropolitan-district-council/leeds,Leeds City Council,31/08/2018,Communities and Environment,Waste Management,Supplies and Services,Recycling & Reuse Charges,234,09/08/2018,1805-00264,0.00,6680.57,R,Acumen Waste Services Ltd,No
Http://opendatacommunities.org/id/metropolitan-district-council/leeds,Leeds City Council,31/08/2018,Communities and Environment,Waste Management,Supplies and Services,Recycling & Reuse Charges,234,16/08/2018,1805-00265,0.00,4706.75,R,Acumen Waste Services Ltd,No
Http://opendatacommunities.org/id/metropolitan-district-council/leeds,Leeds City Council,31/08/2018,Communities and Environment,Cleaner Neighbourhood Teams,Premises,Removal Of Workplace Waste,126,17/08/2018,1805-00266,0.00,110.00,R,Acumen Waste Services Ltd,No
Http://opendatacommunities.org/id/metropolitan-district-council/leeds,Leeds City Council,31/08/2018,Communities and Environment,Cleaner Neighbourhood Teams,Premises,Removal Of Workplace Waste,126,17/08/2018,1805-00267,0.00,110.00,R,Acumen Waste Services Ltd,No
Http://opendatacommunities.org/id/metropolitan-district-council/leeds,Leeds City Council,31/08/2018,Communities and Environment,Cleaner Neighbourhood Teams,Premises,Removal Of Workplace Waste,126,17/08/2018,1805-00268,0.00,110.00,R,Acumen Waste Services Ltd,No
Http://opendatacommunities.org/id/metropolitan-district-council/leeds,Leeds City Council,31/08/2018,Communities and Environment,Cleaner Neighbourhood Teams,Premises,Removal Of Workplace Waste,126,17/08/2018,1805-00269,0.00,110.00,R,Acumen Waste Services Ltd,No
Http://opendatacommunities.org/id/metropolitan-district-council/leeds,Leeds City Council,31/08/2018,Communities and Environment,Cleaner Neighbourhood Teams,Premises,Removal Of Workplace Waste,126,22/08/2018,1805-00270,0.00,110.00,R,Acumen Waste Services Ltd,No
Http://opendatacommunities.org/id/metropolitan-district-council/leeds,Leeds City Council,31/08/2018,Communities and Environment,Waste Management,Supplies and Services,Recycling & Reuse Charges,234,22/08/2018,1805-00271,0.00,5694.33,R,Acumen Waste Services Ltd,No
Http://opendatacommunities.org/id/metropolitan-district-council/leeds,Leeds City Council,31/08/2018,Communities and Environment,Waste Management,Supplies and Services,Recycling & Reuse Charges,234,29/08/2018,1805-00272,0.00,3820.34,R,Acumen Waste Services Ltd,No
Http://opendatacommunities.org/id/metropolitan-district-council/leeds,Leeds City Council,31/08/2018,Communities and Environment,Cleaner Neighbourhood Teams,Premises,Removal Of Workplace Waste,126,30/08/2018,1805-00273,0.00,110.00,R,Acumen Waste Services Ltd,No
Http://opendatacommunities.org/id/metropolitan-district-council/leeds,Leeds City Council,31/08/2018,Communities and Environment,Waste Management,Supplies and Services,Recycling & Reuse Charges,234,31/08/2018,1805-00274,0.00,2878.32,R,Acumen Waste Services Ltd,No
Http://opendatacommunities.org/id/metropolitan-district-council/leeds,Leeds City Council,31/08/2018,Resources and Housing,Shared Services,Supplies and Services,Other Hired And Contracted Services,265,03/08/2018,1805-00275,0.00,96.44,R,Ad3 Envelope Printers Limited,No
Http://opendatacommunities.org/id/metropolitan-district-council/leeds,Leeds City Council,31/08/2018,Resources and Housing,Shared Services,Supplies and Services,Operational Materials,205,30/08/2018,1805-00276,0.00,705.00,R,Ad3 Envelope Printers Limited,No
Http://opendatacommunities.org/id/metropolitan-district-council/leeds,Leeds City Council,31/08/2018,City Development,Recreation,Income,Swimming Bath Charges,923,17/08/2018,1805-00277,0.00,114.50,R,REDACTED PERSONAL DATA,No
Http://opendatacommunities.org/id/metropolitan-district-council/leeds,Leeds City Council,31/08/2018,Adults and Health,Services For Older People - 65 And Over,Third Party Payments,Nursing Home,570,22/08/2018,1805-00278,0.00,3897.12,R,Adbolton Hall,No
Http://opendatacommunities.org/id/metropolitan-district-council/leeds,Leeds City Council,31/08/2018,City Development,Libraries  Arts & Heritage,Supplies and Services,Other Hired And Contracted Services,265,06/08/2018,1805-00279,0.00,1350.00,R,Add-A-Tone Productions Ltd,No
Http://opendatacommunities.org/id/metropolitan-district-council/leeds,Leeds City Council,31/08/2018,Strategic Landlord,Property and Contracts,Support Services,Legal Disbursements,411,31/08/2018,1805-00280,0.00,2860.68,R,Addleshaw Goddard Llp,No
Http://opendatacommunities.org/id/metropolitan-district-council/leeds,Leeds City Council,31/08/2018,Resources and Housing,Sustainable Energy & Climate Change,Capital,Other Costs,7,31/08/2018,1805-00281,0.00,1184.20,C,Addleshaw Goddard Llp,No
Http://opendatacommunities.org/id/metropolitan-district-council/leeds,Leeds City Council,31/08/2018,Resources and Housing,Technology  ,Employees,Agency Staff,8,13/07/2018,1805-00282,0.00,47151.35,R,Adecco Alfred Marks,Yes
Http://opendatacommunities.org/id/metropolitan-district-council/leeds,Leeds City Council,31/08/2018,Resources and Housing,Technology  ,Employees,Agency Staff,8,24/07/2018,1805-00283,0.00,33090.87,R,Adecco Alfred Marks,Yes
Http://opendatacommunities.org/id/metropolitan-district-council/leeds,Leeds City Council,31/08/2018,Children and Families,Social Care,Third Party Payments,Services Rendered By Voluntary Sector,505,03/08/2018,1805-00284,0.00,615.00,R,Adel Pre School,No
Http://opendatacommunities.org/id/metropolitan-district-council/leeds,Leeds City Council,31/08/2018,Strategic Landlord,Housing Management,Supplies and Services,Compensation Claims,200,30/08/2018,1805-00285,0.00,429.32,R,REDACTED PERSONAL DATA,No
Http://opendatacommunities.org/id/metropolitan-district-council/leeds,Leeds City Council,31/08/2018,Adults and Health,Services For Older People - 65 And Over,Third Party Payments,Nursing Home,570,22/08/2018,1805-00286,0.00,1184.76,R,Aden House,No
Http://opendatacommunities.org/id/metropolitan-district-council/leeds,Leeds City Council,31/08/2018,City Development,Support Services,Supplies and Services,Memberships,226,17/08/2018,1805-00287,0.00,2040.00,R,Adept,No
Http://opendatacommunities.org/id/metropolitan-district-council/leeds,Leeds City Council,31/08/2018,Communities and Environment,Customer Access  ,Supplies and Services,Office Furniture & Equipment,201,13/07/2018,1805-00288,0.00,849.00,R,Adexa Direct,Yes
Http://opendatacommunities.org/id/metropolitan-district-council/leeds,Leeds City Council,31/08/2018,Resources and Housing,Leeds Building Services,Supplies and Services,Operational Materials,205,02/08/2018,1805-00289,0.00,47.39,R,Adi Global,No
Http://opendatacommunities.org/id/metropolitan-district-council/leeds,Leeds City Council,31/08/2018,Resources and Housing,Leeds Building Services,Supplies and Services,Operational Materials,205,06/08/2018,1805-00290,0.00,136.62,R,Adi Global,No
Http://opendatacommunities.org/id/metropolitan-district-council/leeds,Leeds City Council,31/08/2018,Resources and Housing,Leeds Building Services,Supplies and Services,Operational Materials,205,06/08/2018,1805-00291,0.00,46.97,R,Adi Global,No
Http://opendatacommunities.org/id/metropolitan-district-council/leeds,Leeds City Council,31/08/2018,Resources and Housing,Leeds Building Services,Supplies and Services,Operational Materials,205,14/08/2018,1805-00292,0.00,36.59,R,Adi Global,No
Http://opendatacommunities.org/id/metropolitan-district-council/leeds,Leeds City Council,31/08/2018,Resources and Housing,Leeds Building Services,Supplies and Services,Operational Materials,205,14/08/2018,1805-00293,0.00,75.49,R,Adi Global,No
Http://opendatacommunities.org/id/metropolitan-district-council/leeds,Leeds City Council,31/08/2018,Resources and Housing,Leeds Building Services,Supplies and Services,Operational Materials,205,14/08/2018,1805-00294,0.00,405.74,R,Adi Global,No
Http://opendatacommunities.org/id/metropolitan-district-council/leeds,Leeds City Council,31/08/2018,Resources and Housing,Leeds Building Services,Supplies and Services,Operational Materials,205,17/08/2018,1805-00295,0.00,255.90,R,Adi Global,No
Http://opendatacommunities.org/id/metropolitan-district-council/leeds,Leeds City Council,31/08/2018,Resources and Housing,Leeds Building Services,Supplies and Services,Operational Materials,205,17/08/2018,1805-00296,0.00,2549.96,R,Adi Global,No
Http://opendatacommunities.org/id/metropolitan-district-council/leeds,Leeds City Council,31/08/2018,Resources and Housing,Leeds Building Services,Supplies and Services,Operational Materials,205,17/08/2018,1805-00297,0.00,63.79,R,Adi Global,No
Http://opendatacommunities.org/id/metropolitan-district-council/leeds,Leeds City Council,31/08/2018,Resources and Housing,Leeds Building Services,Supplies and Services,Operational Materials,205,21/08/2018,1805-00298,0.00,32.89,R,Adi Global,No
Http://opendatacommunities.org/id/metropolitan-district-council/leeds,Leeds City Council,31/08/2018,Resources and Housing,Leeds Building Services,Supplies and Services,Operational Materials,205,21/08/2018,1805-00299,0.00,8.06,R,Adi Global,No
Http://opendatacommunities.org/id/metropolitan-district-council/leeds,Leeds City Council,31/08/2018,Resources and Housing,Leeds Building Services,Supplies and Services,Operational Materials,205,31/08/2018,1805-00300,0.00,2596.04,R,Adi Global,No
Http://opendatacommunities.org/id/metropolitan-district-council/leeds,Leeds City Council,31/08/2018,Communities and Environment,Community Safety  ,Supplies and Services,Other Hired And Contracted Services,265,06/07/2018,1805-00301,0.00,12.00,R,Adi-Gardiner Ltd,Yes
Http://opendatacommunities.org/id/metropolitan-district-council/leeds,Leeds City Council,31/08/2018,Adults and Health,Services For Older People - 65 And Over,Third Party Payments,Home Care,568,03/08/2018,1805-00302,0.00,11172.40,R,Adjuvo (North) Support For Living Ltd,No
Http://opendatacommunities.org/id/metropolitan-district-council/leeds,Leeds City Council,31/08/2018,Adults and Health,Services For Older People Under 65 P/Dis,Third Party Payments,Home Care,568,03/08/2018,1805-00303,0.00,1802.00,R,Adjuvo (North) Support For Living Ltd,No
Http://opendatacommunities.org/id/metropolitan-district-council/leeds,Leeds City Council,31/08/2018,Adults and Health,Services For Adults Under 65 Mental/Dis,Third Party Payments,Home Care,568,24/08/2018,1805-00304,0.00,1328.00,R,Adjuvo (North) Support For Living Ltd,No
Http://opendatacommunities.org/id/metropolitan-district-council/leeds,Leeds City Council,31/08/2018,Adults and Health,Services For Older People - 65 And Over,Third Party Payments,Home Care,568,31/08/2018,1805-00305,0.00,14632.75,R,Adjuvo (North) Support For Living Ltd,No
Http://opendatacommunities.org/id/metropolitan-district-council/leeds,Leeds City Council,31/08/2018,Adults and Health,Services For Older People Under 65 P/Dis,Third Party Payments,Home Care,568,31/08/2018,1805-00306,0.00,4292.50,R,Adjuvo (North) Support For Living Ltd,No
Http://opendatacommunities.org/id/metropolitan-district-council/leeds,Leeds City Council,31/08/2018,Insurance,Insurance,Supplies and Services,Insurance Claims,248,16/08/2018,1805-00307,0.00,122.30,R,Admiral Insurance,No
Http://opendatacommunities.org/id/metropolitan-district-council/leeds,Leeds City Council,31/08/2018,Children and Families,Social Care,Third Party Payments,Independent Fostering Agencies,509,01/08/2018,1805-00308,0.00,3120.00,R,Adolescent And Childrens Trust,No
Http://opendatacommunities.org/id/metropolitan-district-council/leeds,Leeds City Council,31/08/2018,Children and Families,Social Care,Third Party Payments,Independent Fostering Agencies,509,02/08/2018,1805-00309,0.00,2850.00,R,Adolescent And Childrens Trust,No
Http://opendatacommunities.org/id/metropolitan-district-council/leeds,Leeds City Council,31/08/2018,Children and Families,Social Care,Third Party Payments,Independent Fostering Agencies,509,02/08/2018,1805-00310,0.00,2850.00,R,Adolescent And Childrens Trust,No
Http://opendatacommunities.org/id/metropolitan-district-council/leeds,Leeds City Council,31/08/2018,Children and Families,Social Care,Third Party Payments,Independent Fostering Agencies,509,02/08/2018,1805-00311,0.00,2850.00,R,Adolescent And Childrens Trust,No
Http://opendatacommunities.org/id/metropolitan-district-council/leeds,Leeds City Council,31/08/2018,Children and Families,Social Care,Third Party Payments,Independent Fostering Agencies,509,02/08/2018,1805-00312,0.00,2850.00,R,Adolescent And Childrens Trust,No
Http://opendatacommunities.org/id/metropolitan-district-council/leeds,Leeds City Council,31/08/2018,Children and Families,Social Care,Third Party Payments,Placement Support,550,03/08/2018,1805-00313,0.00,142.86,R,REDACTED PERSONAL DATA,No
Http://opendatacommunities.org/id/metropolitan-district-council/leeds,Leeds City Council,31/08/2018,Children and Families,Social Care,Third Party Payments,Placement Support,550,06/08/2018,1805-00314,0.00,142.86,R,REDACTED PERSONAL DATA,No
Http://opendatacommunities.org/id/metropolitan-district-council/leeds,Leeds City Council,31/08/2018,Children and Families,Social Care,Third Party Payments,Placement Support,550,14/08/2018,1805-00315,0.00,142.86,R,REDACTED PERSONAL DATA,No
Http://opendatacommunities.org/id/metropolitan-district-council/leeds,Leeds City Council,31/08/2018,Children and Families,Social Care,Third Party Payments,Placement Support,550,24/08/2018,1805-00316,0.00,142.86,R,REDACTED PERSONAL DATA,No
Http://opendatacommunities.org/id/metropolitan-district-council/leeds,Leeds City Council,31/08/2018,Children and Families,Social Care,Third Party Payments,Placement Support,550,29/08/2018,1805-00317,0.00,142.86,R,REDACTED PERSONAL DATA,No
Http://opendatacommunities.org/id/metropolitan-district-council/leeds,Leeds City Council as Accountable Body,31/08/2018,Social Services Pooled Budgets,Jcs For People With Learning Disabilitie,Third Party Payments,Residential,580,09/08/2018,1805-00318,0.00,2609.36,R,Adrian House,No
Http://opendatacommunities.org/id/metropolitan-district-council/leeds,Leeds City Council,31/08/2018,Communities and Environment,Communities  ,Supplies and Services,Other Hired And Contracted Services,265,13/07/2018,1805-00319,0.00,90.00,R,Adrienne Florist Limit,Yes
Http://opendatacommunities.org/id/metropolitan-district-council/leeds,Leeds City Council,31/08/2018,Resources and Housing,Corporate Property Management,Premises,Maintenance Of Buildings,101,23/08/2018,1805-00320,0.00,178.00,R,Adt Fire And Security Plc,No
Http://opendatacommunities.org/id/metropolitan-district-council/leeds,Leeds City Council as Accountable Body,31/08/2018,Social Services Pooled Budgets,Jcs For People With Learning Disabilitie,Third Party Payments,Sheltered Accommodation,569,06/08/2018,1805-00321,0.00,1332.20,R,Adult Placement Services,No
Http://opendatacommunities.org/id/metropolitan-district-council/leeds,Leeds City Council as Accountable Body,31/08/2018,Social Services Pooled Budgets,Jcs For People With Learning Disabilitie,Third Party Payments,Sheltered Accommodation,569,06/08/2018,1805-00322,0.00,1332.20,R,Adult Placement Services,No
Http://opendatacommunities.org/id/metropolitan-district-council/leeds,Leeds City Council as Accountable Body,31/08/2018,Social Services Pooled Budgets,Jcs For People With Learning Disabilitie,Third Party Payments,Sheltered Accommodation,569,06/08/2018,1805-00323,0.00,466.27,R,Adult Placement Services,No
Http://opendatacommunities.org/id/metropolitan-district-council/leeds,Leeds City Council as Accountable Body,31/08/2018,Social Services Pooled Budgets,Jcs For People With Learning Disabilitie,Third Party Payments,Sheltered Accommodation,569,10/08/2018,1805-00324,0.00,1332.20,R,Adult Placement Services,No
Http://opendatacommunities.org/id/metropolitan-district-council/leeds,Leeds City Council as Accountable Body,31/08/2018,Social Services Pooled Budgets,Jcs For People With Learning Disabilitie,Third Party Payments,Sheltered Accommodation,569,21/08/2018,1805-00325,0.00,823.81,R,Adult Placement Services,No
Http://opendatacommunities.org/id/metropolitan-district-council/leeds,Leeds City Council,31/08/2018,City Development,Recreation,Supplies and Services,External Audit Fees,261,01/08/2018,1805-00326,0.00,135.00,R,Advance Stocks Ltd,No
Http://opendatacommunities.org/id/metropolitan-district-council/leeds,Leeds City Council,31/08/2018,City Development,Recreation,Supplies and Services,External Audit Fees,261,01/08/2018,1805-00327,0.00,85.00,R,Advance Stocks Ltd,No
Http://opendatacommunities.org/id/metropolitan-district-council/leeds,Leeds City Council,31/08/2018,City Development,Libraries  Arts & Heritage,Supplies and Services,External Audit Fees,261,01/08/2018,1805-00328,0.00,90.00,R,Advance Stocks Ltd,No
Http://opendatacommunities.org/id/metropolitan-district-council/leeds,Leeds City Council,31/08/2018,City Development,Libraries  Arts & Heritage,Supplies and Services,Other Hired And Contracted Services,265,03/08/2018,1805-00329,0.00,85.00,R,Advance Stocks Ltd,No
Http://opendatacommunities.org/id/metropolitan-district-council/leeds,Leeds City Council,31/08/2018,City Development,Libraries  Arts & Heritage,Supplies and Services,External Audit Fees,261,28/08/2018,1805-00330,0.00,85.00,R,Advance Stocks Ltd,No
Http://opendatacommunities.org/id/metropolitan-district-council/leeds,Leeds City Council,31/08/2018,City Development,Recreation,Supplies and Services,External Audit Fees,261,31/08/2018,1805-00331,0.00,135.00,R,Advance Stocks Ltd,No
Http://opendatacommunities.org/id/metropolitan-district-council/leeds,Leeds City Council,31/08/2018,City Development,Recreation,Supplies and Services,External Audit Fees,261,31/08/2018,1805-00332,0.00,85.00,R,Advance Stocks Ltd,No
Http://opendatacommunities.org/id/metropolitan-district-council/leeds,Leeds City Council,31/08/2018,Children and Families,Social Care,Support Services,Legal Disbursements,411,24/08/2018,1805-00333,0.00,97.48,R,Advanced Child Care Assessments Ltd,No
Http://opendatacommunities.org/id/metropolitan-district-council/leeds,Leeds City Council,31/08/2018,Children and Families,Social Care,Support Services,Legal Disbursements,411,31/08/2018,1805-00334,0.00,402.45,R,Advanced Child Care Assessments Ltd,No
Http://opendatacommunities.org/id/metropolitan-district-council/leeds,Leeds City Council,31/08/2018,Resources and Housing,Corporate Property Management,Premises,Plant and Machinery,102,16/08/2018,1805-00335,0.00,460.00,R,Advanced Diesel Engineering,No
Http://opendatacommunities.org/id/metropolitan-district-council/leeds,Leeds City Council,31/08/2018,Adults and Health,Home Care Services,Supplies and Services,Telephones,213,21/08/2018,1805-00336,0.00,1652.50,R,Advanced Health And Care Ltd,No
Http://opendatacommunities.org/id/metropolitan-district-council/leeds,Leeds City Council,31/08/2018,Communities and Environment,Parks And Countryside  ,Supplies and Services,Teaching Materials,202,04/07/2018,1805-00337,0.00,158.11,R,Advanced Moulds Ltd,Yes
Http://opendatacommunities.org/id/metropolitan-district-council/leeds,Leeds City Council as Accountable Body,31/08/2018,Social Services Pooled Budgets,Jcs For People With Learning Disabilitie,Third Party Payments,Residential,580,22/08/2018,1805-00338,0.00,17782.08,R,Advitam Ltd,No
Http://opendatacommunities.org/id/metropolitan-district-council/leeds,Leeds City Council as Accountable Body,31/08/2018,Social Services Pooled Budgets,Jcs For People With Learning Disabilitie,Third Party Payments,Day Centre,564,31/08/2018,1805-00339,0.00,492.05,R,Advitam Ltd,No
Http://opendatacommunities.org/id/metropolitan-district-council/leeds,Leeds City Council,31/08/2018,Adults and Health,Services For Older People - 65 And Over,Third Party Payments,Payments To Voluntary Organisations,561,02/08/2018,1805-00340,0.00,103916.67,R,Advonet,No
Http://opendatacommunities.org/id/metropolitan-district-council/leeds,Leeds City Council as Accountable Body,31/08/2018,Social Services Pooled Budgets,Jcs For People With Learning Disabilitie,Third Party Payments,Other Agency Services,561,06/08/2018,1805-00341,0.00,6567.66,R,Advonet,No
Http://opendatacommunities.org/id/metropolitan-district-council/leeds,Leeds City Council as Accountable Body,31/08/2018,Social Services Pooled Budgets,Jcs For People With Learning Disabilitie,Third Party Payments,Other Agency Services,561,06/08/2018,1805-00342,0.00,11372.30,R,Advonet,No
Http://opendatacommunities.org/id/metropolitan-district-council/leeds,Leeds City Council as Accountable Body,31/08/2018,Social Services Pooled Budgets,Jcs For People With Learning Disabilitie,Third Party Payments,Other Agency Services,561,10/08/2018,1805-00343,0.00,230.10,R,Advonet,No
Http://opendatacommunities.org/id/metropolitan-district-council/leeds,Leeds City Council as Accountable Body,31/08/2018,Social Services Pooled Budgets,Jcs For People With Learning Disabilitie,Third Party Payments,Other Agency Services,561,10/08/2018,1805-00344,0.00,277.50,R,Advonet,No
Http://opendatacommunities.org/id/metropolitan-district-council/leeds,Leeds City Council as Accountable Body,31/08/2018,Social Services Pooled Budgets,Jcs For People With Learning Disabilitie,Third Party Payments,Other Agency Services,561,10/08/2018,1805-00345,0.00,172.50,R,Advonet,No
Http://opendatacommunities.org/id/metropolitan-district-council/leeds,Leeds City Council as Accountable Body,31/08/2018,Social Services Pooled Budgets,Jcs For People With Learning Disabilitie,Third Party Payments,Other Agency Services,561,10/08/2018,1805-00346,0.00,134.70,R,Advonet,No
Http://opendatacommunities.org/id/metropolitan-district-council/leeds,Leeds City Council,31/08/2018,City Development,Asset Management Services,Supplies and Services,Other Hired And Contracted Services,265,20/08/2018,1805-00347,0.00,22024.00,R,Aecom Limited,No
Http://opendatacommunities.org/id/metropolitan-district-council/leeds,Leeds City Council,31/08/2018,City Development,Highways,Capital,Other Costs,7,29/08/2018,1805-00348,0.00,23933.83,C,Aecom Limited,No
Http://opendatacommunities.org/id/metropolitan-district-council/leeds,Leeds City Council,31/08/2018,City Development,Economic Development  ,Transport,Public Transport Expenses,310,23/07/2018,1805-00349,0.00,27.00,R,Aer Linguse2msitn,Yes
Http://opendatacommunities.org/id/metropolitan-district-council/leeds,Leeds City Council,31/08/2018,Adults and Health,Services For Adults Under 65 Mental/Dis,Third Party Payments,Home Care,568,02/08/2018,1805-00350,0.00,191.76,R,Affinity Trust,No
Http://opendatacommunities.org/id/metropolitan-district-council/leeds,Leeds City Council,31/08/2018,Adults and Health,Services For Older People - 65 And Over,Third Party Payments,Home Care,568,02/08/2018,1805-00351,0.00,1579.85,R,Affinity Trust,No
Http://opendatacommunities.org/id/metropolitan-district-council/leeds,Leeds City Council,31/08/2018,Adults and Health,Services For Older People Under 65 P/Dis,Third Party Payments,Home Care,568,02/08/2018,1805-00352,0.00,1470.16,R,Affinity Trust,No
Http://opendatacommunities.org/id/metropolitan-district-council/leeds,Leeds City Council as Accountable Body,31/08/2018,Social Services Pooled Budgets,Jcs For People With Learning Disabilitie,Third Party Payments,Home Care,568,06/08/2018,1805-00353,0.00,423.63,R,Affinity Trust,No
Http://opendatacommunities.org/id/metropolitan-district-council/leeds,Leeds City Council as Accountable Body,31/08/2018,Social Services Pooled Budgets,Jcs For People With Learning Disabilitie,Third Party Payments,Home Care,568,06/08/2018,1805-00354,0.00,1500.00,R,Affinity Trust,No
Http://opendatacommunities.org/id/metropolitan-district-council/leeds,Leeds City Council as Accountable Body,31/08/2018,Social Services Pooled Budgets,Jcs For People With Learning Disabilitie,Third Party Payments,Home Care,568,06/08/2018,1805-00355,0.00,2512.80,R,Affinity Trust,No
Http://opendatacommunities.org/id/metropolitan-district-council/leeds,Leeds City Council as Accountable Body,31/08/2018,Social Services Pooled Budgets,Jcs For People With Learning Disabilitie,Third Party Payments,Home Care,568,06/08/2018,1805-00356,0.00,1830.84,R,Affinity Trust,No
Http://opendatacommunities.org/id/metropolitan-district-council/leeds,Leeds City Council as Accountable Body,31/08/2018,Social Services Pooled Budgets,Jcs For People With Learning Disabilitie,Third Party Payments,Home Care,568,06/08/2018,1805-00357,0.00,945.99,R,Affinity Trust,No
Http://opendatacommunities.org/id/metropolitan-district-council/leeds,Leeds City Council as Accountable Body,31/08/2018,Social Services Pooled Budgets,Jcs For People With Learning Disabilitie,Third Party Payments,Home Care,568,06/08/2018,1805-00358,0.00,3274.46,R,Affinity Trust,No
Http://opendatacommunities.org/id/metropolitan-district-council/leeds,Leeds City Council as Accountable Body,31/08/2018,Social Services Pooled Budgets,Jcs For People With Learning Disabilitie,Third Party Payments,Day Centre,564,06/08/2018,1805-00359,0.00,670.40,R,Affinity Trust,No
Http://opendatacommunities.org/id/metropolitan-district-council/leeds,Leeds City Council as Accountable Body,31/08/2018,Social Services Pooled Budgets,Jcs For People With Learning Disabilitie,Third Party Payments,Home Care,568,06/08/2018,1805-00360,0.00,454.95,R,Affinity Trust,No
Http://opendatacommunities.org/id/metropolitan-district-council/leeds,Leeds City Council as Accountable Body,31/08/2018,Social Services Pooled Budgets,Jcs For People With Learning Disabilitie,Third Party Payments,Day Centre,564,06/08/2018,1805-00361,0.00,3278.28,R,Affinity Trust,No
Http://opendatacommunities.org/id/metropolitan-district-council/leeds,Leeds City Council as Accountable Body,31/08/2018,Social Services Pooled Budgets,Jcs For People With Learning Disabilitie,Third Party Payments,Home Care,568,06/08/2018,1805-00362,0.00,754.20,R,Affinity Trust,No
Http://opendatacommunities.org/id/metropolitan-district-council/leeds,Leeds City Council as Accountable Body,31/08/2018,Social Services Pooled Budgets,Jcs For People With Learning Disabilitie,Third Party Payments,Home Care,568,06/08/2018,1805-00363,0.00,1247.75,R,Affinity Trust,No
Http://opendatacommunities.org/id/metropolitan-district-council/leeds,Leeds City Council as Accountable Body,31/08/2018,Social Services Pooled Budgets,Jcs For People With Learning Disabilitie,Third Party Payments,Home Care,568,06/08/2018,1805-00364,0.00,1636.65,R,Affinity Trust,No
Http://opendatacommunities.org/id/metropolitan-district-council/leeds,Leeds City Council as Accountable Body,31/08/2018,Social Services Pooled Budgets,Jcs For People With Learning Disabilitie,Third Party Payments,Home Care,568,06/08/2018,1805-00365,0.00,1005.60,R,Affinity Trust,No
Http://opendatacommunities.org/id/metropolitan-district-council/leeds,Leeds City Council as Accountable Body,31/08/2018,Social Services Pooled Budgets,Jcs For People With Learning Disabilitie,Third Party Payments,Home Care,568,06/08/2018,1805-00366,0.00,360.00,R,Affinity Trust,No
Http://opendatacommunities.org/id/metropolitan-district-council/leeds,Leeds City Council as Accountable Body,31/08/2018,Social Services Pooled Budgets,Jcs For People With Learning Disabilitie,Third Party Payments,Day Centre,564,06/08/2018,1805-00367,0.00,583.11,R,Affinity Trust,No
Http://opendatacommunities.org/id/metropolitan-district-council/leeds,Leeds City Council as Accountable Body,31/08/2018,Social Services Pooled Budgets,Jcs For People With Learning Disabilitie,Third Party Payments,Day Centre,564,06/08/2018,1805-00368,0.00,2229.08,R,Affinity Trust,No
Http://opendatacommunities.org/id/metropolitan-district-council/leeds,Leeds City Council as Accountable Body,31/08/2018,Social Services Pooled Budgets,Jcs For People With Learning Disabilitie,Third Party Payments,Day Centre,564,06/08/2018,1805-00369,0.00,1027.26,R,Affinity Trust,No
Http://opendatacommunities.org/id/metropolitan-district-council/leeds,Leeds City Council as Accountable Body,31/08/2018,Social Services Pooled Budgets,Jcs For People With Learning Disabilitie,Third Party Payments,Day Centre,564,06/08/2018,1805-00370,0.00,1899.81,R,Affinity Trust,No
Http://opendatacommunities.org/id/metropolitan-district-council/leeds,Leeds City Council as Accountable Body,31/08/2018,Social Services Pooled Budgets,Jcs For People With Learning Disabilitie,Third Party Payments,Home Care,568,06/08/2018,1805-00371,0.00,1382.37,R,Affinity Trust,No
Http://opendatacommunities.org/id/metropolitan-district-council/leeds,Leeds City Council as Accountable Body,31/08/2018,Social Services Pooled Budgets,Jcs For People With Learning Disabilitie,Third Party Payments,Day Centre,564,10/08/2018,1805-00372,0.00,1350.00,R,Affinity Trust,No
Http://opendatacommunities.org/id/metropolitan-district-council/leeds,Leeds City Council as Accountable Body,31/08/2018,Social Services Pooled Budgets,Jcs For People With Learning Disabilitie,Third Party Payments,Day Centre,564,10/08/2018,1805-00373,0.00,1021.32,R,Affinity Trust,No
Http://opendatacommunities.org/id/metropolitan-district-council/leeds,Leeds City Council as Accountable Body,31/08/2018,Social Services Pooled Budgets,Jcs For People With Learning Disabilitie,Third Party Payments,Home Care,568,10/08/2018,1805-00374,0.00,1050.00,R,Affinity Trust,No
Http://opendatacommunities.org/id/metropolitan-district-council/leeds,Leeds City Council as Accountable Body,31/08/2018,Social Services Pooled Budgets,Jcs For People With Learning Disabilitie,Third Party Payments,Home Care,568,16/08/2018,1805-00375,0.00,719.10,R,Affinity Trust,No
Http://opendatacommunities.org/id/metropolitan-district-council/leeds,Leeds City Council as Accountable Body,31/08/2018,Social Services Pooled Budgets,Jcs For People With Learning Disabilitie,Third Party Payments,Home Care,568,16/08/2018,1805-00376,0.00,1342.32,R,Affinity Trust,No
Http://opendatacommunities.org/id/metropolitan-district-council/leeds,Leeds City Council as Accountable Body,31/08/2018,Social Services Pooled Budgets,Jcs For People With Learning Disabilitie,Third Party Payments,Home Care,568,16/08/2018,1805-00377,0.00,351.56,R,Affinity Trust,No
Http://opendatacommunities.org/id/metropolitan-district-council/leeds,Leeds City Council as Accountable Body,31/08/2018,Social Services Pooled Budgets,Jcs For People With Learning Disabilitie,Third Party Payments,Day Centre,564,16/08/2018,1805-00378,0.00,416.64,R,Affinity Trust,No
Http://opendatacommunities.org/id/metropolitan-district-council/leeds,Leeds City Council as Accountable Body,31/08/2018,Social Services Pooled Budgets,Jcs For People With Learning Disabilitie,Third Party Payments,Home Care,568,16/08/2018,1805-00379,0.00,1518.00,R,Affinity Trust,No
Http://opendatacommunities.org/id/metropolitan-district-council/leeds,Leeds City Council as Accountable Body,31/08/2018,Social Services Pooled Budgets,Jcs For People With Learning Disabilitie,Third Party Payments,Home Care,568,16/08/2018,1805-00380,0.00,941.92,R,Affinity Trust,No
Http://opendatacommunities.org/id/metropolitan-district-council/leeds,Leeds City Council as Accountable Body,31/08/2018,Social Services Pooled Budgets,Jcs For People With Learning Disabilitie,Third Party Payments,Home Care,568,16/08/2018,1805-00381,0.00,639.20,R,Affinity Trust,No
Http://opendatacommunities.org/id/metropolitan-district-council/leeds,Leeds City Council as Accountable Body,31/08/2018,Social Services Pooled Budgets,Jcs For People With Learning Disabilitie,Third Party Payments,Home Care,568,16/08/2018,1805-00382,0.00,191.76,R,Affinity Trust,No
Http://opendatacommunities.org/id/metropolitan-district-council/leeds,Leeds City Council as Accountable Body,31/08/2018,Social Services Pooled Budgets,Jcs For People With Learning Disabilitie,Third Party Payments,Home Care,568,16/08/2018,1805-00383,0.00,639.20,R,Affinity Trust,No
Http://opendatacommunities.org/id/metropolitan-district-council/leeds,Leeds City Council as Accountable Body,31/08/2018,Social Services Pooled Budgets,Jcs For People With Learning Disabilitie,Third Party Payments,Home Care,568,16/08/2018,1805-00384,0.00,306.00,R,Affinity Trust,No
Http://opendatacommunities.org/id/metropolitan-district-council/leeds,Leeds City Council as Accountable Body,31/08/2018,Social Services Pooled Budgets,Jcs For People With Learning Disabilitie,Third Party Payments,Home Care,568,16/08/2018,1805-00385,0.00,1094.63,R,Affinity Trust,No
Http://opendatacommunities.org/id/metropolitan-district-council/leeds,Leeds City Council as Accountable Body,31/08/2018,Social Services Pooled Budgets,Jcs For People With Learning Disabilitie,Third Party Payments,Home Care,568,16/08/2018,1805-00386,0.00,2748.56,R,Affinity Trust,No
Http://opendatacommunities.org/id/metropolitan-district-council/leeds,Leeds City Council as Accountable Body,31/08/2018,Social Services Pooled Budgets,Jcs For People With Learning Disabilitie,Third Party Payments,Home Care,568,16/08/2018,1805-00387,0.00,408.64,R,Affinity Trust,No
Http://opendatacommunities.org/id/metropolitan-district-council/leeds,Leeds City Council as Accountable Body,31/08/2018,Social Services Pooled Budgets,Jcs For People With Learning Disabilitie,Third Party Payments,Home Care,568,16/08/2018,1805-00388,0.00,941.92,R,Affinity Trust,No
Http://opendatacommunities.org/id/metropolitan-district-council/leeds,Leeds City Council as Accountable Body,31/08/2018,Social Services Pooled Budgets,Jcs For People With Learning Disabilitie,Third Party Payments,Home Care,568,16/08/2018,1805-00389,0.00,958.80,R,Affinity Trust,No
Http://opendatacommunities.org/id/metropolitan-district-council/leeds,Leeds City Council as Accountable Body,31/08/2018,Social Services Pooled Budgets,Jcs For People With Learning Disabilitie,Third Party Payments,Home Care,568,16/08/2018,1805-00390,0.00,439.45,R,Affinity Trust,No
Http://opendatacommunities.org/id/metropolitan-district-council/leeds,Leeds City Council as Accountable Body,31/08/2018,Social Services Pooled Budgets,Jcs For People With Learning Disabilitie,Third Party Payments,Home Care,568,16/08/2018,1805-00391,0.00,703.12,R,Affinity Trust,No
Http://opendatacommunities.org/id/metropolitan-district-council/leeds,Leeds City Council as Accountable Body,31/08/2018,Social Services Pooled Budgets,Jcs For People With Learning Disabilitie,Third Party Payments,Home Care,568,16/08/2018,1805-00392,0.00,255.68,R,Affinity Trust,No
Http://opendatacommunities.org/id/metropolitan-district-council/leeds,Leeds City Council as Accountable Body,31/08/2018,Social Services Pooled Budgets,Jcs For People With Learning Disabilitie,Third Party Payments,Home Care,568,16/08/2018,1805-00393,0.00,1034.71,R,Affinity Trust,No
Http://opendatacommunities.org/id/metropolitan-district-council/leeds,Leeds City Council as Accountable Body,31/08/2018,Social Services Pooled Budgets,Jcs For People With Learning Disabilitie,Third Party Payments,Home Care,568,16/08/2018,1805-00394,0.00,319.60,R,Affinity Trust,No
Http://opendatacommunities.org/id/metropolitan-district-council/leeds,Leeds City Council as Accountable Body,31/08/2018,Social Services Pooled Budgets,Jcs For People With Learning Disabilitie,Third Party Payments,Day Centre,564,16/08/2018,1805-00395,0.00,255.68,R,Affinity Trust,No
Http://opendatacommunities.org/id/metropolitan-district-council/leeds,Leeds City Council as Accountable Body,31/08/2018,Social Services Pooled Budgets,Jcs For People With Learning Disabilitie,Third Party Payments,Home Care,568,16/08/2018,1805-00396,0.00,335.58,R,Affinity Trust,No
Http://opendatacommunities.org/id/metropolitan-district-council/leeds,Leeds City Council,31/08/2018,Adults and Health,Services For Older People Under 65 P/Dis,Third Party Payments,Home Care,568,17/08/2018,1805-00397,0.00,239.70,R,Affinity Trust,No
Http://opendatacommunities.org/id/metropolitan-district-council/leeds,Leeds City Council as Accountable Body,31/08/2018,Social Services Pooled Budgets,Jcs For People With Learning Disabilitie,Third Party Payments,Home Care,568,21/08/2018,1805-00398,0.00,1050.00,R,Affinity Trust,No
Http://opendatacommunities.org/id/metropolitan-district-council/leeds,Leeds City Council as Accountable Body,31/08/2018,Social Services Pooled Budgets,Jcs For People With Learning Disabilitie,Third Party Payments,Home Care,568,21/08/2018,1805-00399,0.00,615.33,R,Affinity Trust,No
Http://opendatacommunities.org/id/metropolitan-district-council/leeds,Leeds City Council as Accountable Body,31/08/2018,Social Services Pooled Budgets,Jcs For People With Learning Disabilitie,Third Party Payments,Home Care,568,21/08/2018,1805-00400,0.00,2752.80,R,Affinity Trust,No
Http://opendatacommunities.org/id/metropolitan-district-council/leeds,Leeds City Council as Accountable Body,31/08/2018,Social Services Pooled Budgets,Jcs For People With Learning Disabilitie,Third Party Payments,Home Care,568,21/08/2018,1805-00401,0.00,1391.40,R,Affinity Trust,No
Http://opendatacommunities.org/id/metropolitan-district-council/leeds,Leeds City Council as Accountable Body,31/08/2018,Social Services Pooled Budgets,Jcs For People With Learning Disabilitie,Third Party Payments,Home Care,568,21/08/2018,1805-00402,0.00,735.08,R,Affinity Trust,No
Http://opendatacommunities.org/id/metropolitan-district-council/leeds,Leeds City Council as Accountable Body,31/08/2018,Social Services Pooled Budgets,Jcs For People With Learning Disabilitie,Third Party Payments,Home Care,568,21/08/2018,1805-00403,0.00,1286.39,R,Affinity Trust,No
Http://opendatacommunities.org/id/metropolitan-district-council/leeds,Leeds City Council as Accountable Body,31/08/2018,Social Services Pooled Budgets,Jcs For People With Learning Disabilitie,Third Party Payments,Home Care,568,21/08/2018,1805-00404,0.00,287.64,R,Affinity Trust,No
Http://opendatacommunities.org/id/metropolitan-district-council/leeds,Leeds City Council as Accountable Body,31/08/2018,Social Services Pooled Budgets,Jcs For People With Learning Disabilitie,Third Party Payments,Day Centre,564,21/08/2018,1805-00405,0.00,364.56,R,Affinity Trust,No
Http://opendatacommunities.org/id/metropolitan-district-council/leeds,Leeds City Council as Accountable Body,31/08/2018,Social Services Pooled Budgets,Jcs For People With Learning Disabilitie,Third Party Payments,Home Care,568,21/08/2018,1805-00406,0.00,1518.00,R,Affinity Trust,No
Http://opendatacommunities.org/id/metropolitan-district-council/leeds,Leeds City Council as Accountable Body,31/08/2018,Social Services Pooled Budgets,Jcs For People With Learning Disabilitie,Third Party Payments,Home Care,568,21/08/2018,1805-00407,0.00,941.92,R,Affinity Trust,No
Http://opendatacommunities.org/id/metropolitan-district-council/leeds,Leeds City Council as Accountable Body,31/08/2018,Social Services Pooled Budgets,Jcs For People With Learning Disabilitie,Third Party Payments,Home Care,568,21/08/2018,1805-00408,0.00,2516.85,R,Affinity Trust,No
Http://opendatacommunities.org/id/metropolitan-district-council/leeds,Leeds City Council as Accountable Body,31/08/2018,Social Services Pooled Budgets,Jcs For People With Learning Disabilitie,Third Party Payments,Home Care,568,21/08/2018,1805-00409,0.00,191.76,R,Affinity Trust,No
Http://opendatacommunities.org/id/metropolitan-district-council/leeds,Leeds City Council as Accountable Body,31/08/2018,Social Services Pooled Budgets,Jcs For People With Learning Disabilitie,Third Party Payments,Home Care,568,21/08/2018,1805-00410,0.00,639.20,R,Affinity Trust,No
Http://opendatacommunities.org/id/metropolitan-district-council/leeds,Leeds City Council as Accountable Body,31/08/2018,Social Services Pooled Budgets,Jcs For People With Learning Disabilitie,Third Party Payments,Home Care,568,21/08/2018,1805-00411,0.00,306.00,R,Affinity Trust,No
Http://opendatacommunities.org/id/metropolitan-district-council/leeds,Leeds City Council as Accountable Body,31/08/2018,Social Services Pooled Budgets,Jcs For People With Learning Disabilitie,Third Party Payments,Home Care,568,21/08/2018,1805-00412,0.00,1086.64,R,Affinity Trust,No
Http://opendatacommunities.org/id/metropolitan-district-council/leeds,Leeds City Council as Accountable Body,31/08/2018,Social Services Pooled Budgets,Jcs For People With Learning Disabilitie,Third Party Payments,Home Care,568,21/08/2018,1805-00413,0.00,2812.48,R,Affinity Trust,No
Http://opendatacommunities.org/id/metropolitan-district-council/leeds,Leeds City Council as Accountable Body,31/08/2018,Social Services Pooled Budgets,Jcs For People With Learning Disabilitie,Third Party Payments,Home Care,568,21/08/2018,1805-00414,0.00,408.64,R,Affinity Trust,No
Http://opendatacommunities.org/id/metropolitan-district-council/leeds,Leeds City Council as Accountable Body,31/08/2018,Social Services Pooled Budgets,Jcs For People With Learning Disabilitie,Third Party Payments,Home Care,568,21/08/2018,1805-00415,0.00,941.92,R,Affinity Trust,No
Http://opendatacommunities.org/id/metropolitan-district-council/leeds,Leeds City Council as Accountable Body,31/08/2018,Social Services Pooled Budgets,Jcs For People With Learning Disabilitie,Third Party Payments,Home Care,568,21/08/2018,1805-00416,0.00,958.80,R,Affinity Trust,No
Http://opendatacommunities.org/id/metropolitan-district-council/leeds,Leeds City Council as Accountable Body,31/08/2018,Social Services Pooled Budgets,Jcs For People With Learning Disabilitie,Third Party Payments,Home Care,568,21/08/2018,1805-00417,0.00,367.54,R,Affinity Trust,No
Http://opendatacommunities.org/id/metropolitan-district-council/leeds,Leeds City Council as Accountable Body,31/08/2018,Social Services Pooled Budgets,Jcs For People With Learning Disabilitie,Third Party Payments,Home Care,568,21/08/2018,1805-00418,0.00,639.20,R,Affinity Trust,No
Http://opendatacommunities.org/id/metropolitan-district-council/leeds,Leeds City Council as Accountable Body,31/08/2018,Social Services Pooled Budgets,Jcs For People With Learning Disabilitie,Third Party Payments,Home Care,568,21/08/2018,1805-00419,0.00,255.68,R,Affinity Trust,No
Http://opendatacommunities.org/id/metropolitan-district-council/leeds,Leeds City Council as Accountable Body,31/08/2018,Social Services Pooled Budgets,Jcs For People With Learning Disabilitie,Third Party Payments,Home Care,568,21/08/2018,1805-00420,0.00,1246.44,R,Affinity Trust,No
Http://opendatacommunities.org/id/metropolitan-district-council/leeds,Leeds City Council as Accountable Body,31/08/2018,Social Services Pooled Budgets,Jcs For People With Learning Disabilitie,Third Party Payments,Home Care,568,21/08/2018,1805-00421,0.00,319.60,R,Affinity Trust,No
Http://opendatacommunities.org/id/metropolitan-district-council/leeds,Leeds City Council as Accountable Body,31/08/2018,Social Services Pooled Budgets,Jcs For People With Learning Disabilitie,Third Party Payments,Day Centre,564,21/08/2018,1805-00422,0.00,255.68,R,Affinity Trust,No
Http://opendatacommunities.org/id/metropolitan-district-council/leeds,Leeds City Council as Accountable Body,31/08/2018,Social Services Pooled Budgets,Jcs For People With Learning Disabilitie,Third Party Payments,Home Care,568,21/08/2018,1805-00423,0.00,1134.58,R,Affinity Trust,No
Http://opendatacommunities.org/id/metropolitan-district-council/leeds,Leeds City Council as Accountable Body,31/08/2018,Social Services Pooled Budgets,Jcs For People With Learning Disabilitie,Third Party Payments,Home Care,568,21/08/2018,1805-00424,0.00,731.00,R,Affinity Trust,No
Http://opendatacommunities.org/id/metropolitan-district-council/leeds,Leeds City Council,31/08/2018,Adults and Health,Services For Older People - 65 And Over,Third Party Payments,Home Care,568,21/08/2018,1805-00425,0.00,487.39,R,Affinity Trust,No
Http://opendatacommunities.org/id/metropolitan-district-council/leeds,Leeds City Council,31/08/2018,Adults and Health,Services For Adults Under 65 Mental/Dis,Third Party Payments,Home Care,568,23/08/2018,1805-00426,0.00,191.76,R,Affinity Trust,No
Http://opendatacommunities.org/id/metropolitan-district-council/leeds,Leeds City Council,31/08/2018,Adults and Health,Services For Older People - 65 And Over,Third Party Payments,Home Care,568,23/08/2018,1805-00427,0.00,336.40,R,Affinity Trust,No
Http://opendatacommunities.org/id/metropolitan-district-council/leeds,Leeds City Council,31/08/2018,Adults and Health,Services For Older People Under 65 P/Dis,Third Party Payments,Home Care,568,23/08/2018,1805-00428,0.00,2253.18,R,Affinity Trust,No
Http://opendatacommunities.org/id/metropolitan-district-council/leeds,Leeds City Council,31/08/2018,Adults and Health,Assessment And Care Management,Third Party Payments,Home Care,568,24/08/2018,1805-00429,0.00,511.36,R,Affinity Trust,No
Http://opendatacommunities.org/id/metropolitan-district-council/leeds,Leeds City Council,31/08/2018,Adults and Health,Services For Older People Under 65 P/Dis,Third Party Payments,Home Care,568,24/08/2018,1805-00430,0.00,605.52,R,Affinity Trust,No
Http://opendatacommunities.org/id/metropolitan-district-council/leeds,Leeds City Council as Accountable Body,31/08/2018,Social Services Pooled Budgets,Jcs For People With Learning Disabilitie,Third Party Payments,Day Centre,564,24/08/2018,1805-00431,0.00,1440.00,R,Affinity Trust,No
Http://opendatacommunities.org/id/metropolitan-district-council/leeds,Leeds City Council as Accountable Body,31/08/2018,Social Services Pooled Budgets,Jcs For People With Learning Disabilitie,Third Party Payments,Day Centre,564,24/08/2018,1805-00432,0.00,1021.32,R,Affinity Trust,No
Http://opendatacommunities.org/id/metropolitan-district-council/leeds,Leeds City Council as Accountable Body,31/08/2018,Social Services Pooled Budgets,Jcs For People With Learning Disabilitie,Third Party Payments,Home Care,568,24/08/2018,1805-00433,0.00,1050.00,R,Affinity Trust,No
Http://opendatacommunities.org/id/metropolitan-district-council/leeds,Leeds City Council as Accountable Body,31/08/2018,Social Services Pooled Budgets,Jcs For People With Learning Disabilitie,Third Party Payments,Home Care,568,24/08/2018,1805-00434,0.00,602.64,R,Affinity Trust,No
Http://opendatacommunities.org/id/metropolitan-district-council/leeds,Leeds City Council as Accountable Body,31/08/2018,Social Services Pooled Budgets,Jcs For People With Learning Disabilitie,Third Party Payments,Home Care,568,24/08/2018,1805-00435,0.00,1365.00,R,Affinity Trust,No
Http://opendatacommunities.org/id/metropolitan-district-council/leeds,Leeds City Council as Accountable Body,31/08/2018,Social Services Pooled Budgets,Jcs For People With Learning Disabilitie,Third Party Payments,Home Care,568,24/08/2018,1805-00436,0.00,2512.80,R,Affinity Trust,No
Http://opendatacommunities.org/id/metropolitan-district-council/leeds,Leeds City Council as Accountable Body,31/08/2018,Social Services Pooled Budgets,Jcs For People With Learning Disabilitie,Third Party Payments,Home Care,568,24/08/2018,1805-00437,0.00,1791.75,R,Affinity Trust,No
Http://opendatacommunities.org/id/metropolitan-district-council/leeds,Leeds City Council as Accountable Body,31/08/2018,Social Services Pooled Budgets,Jcs For People With Learning Disabilitie,Third Party Payments,Home Care,568,24/08/2018,1805-00438,0.00,1035.99,R,Affinity Trust,No
Http://opendatacommunities.org/id/metropolitan-district-council/leeds,Leeds City Council as Accountable Body,31/08/2018,Social Services Pooled Budgets,Jcs For People With Learning Disabilitie,Third Party Payments,Home Care,568,24/08/2018,1805-00439,0.00,3446.80,R,Affinity Trust,No
Http://opendatacommunities.org/id/metropolitan-district-council/leeds,Leeds City Council as Accountable Body,31/08/2018,Social Services Pooled Budgets,Jcs For People With Learning Disabilitie,Third Party Payments,Day Centre,564,24/08/2018,1805-00440,0.00,670.40,R,Affinity Trust,No
Http://opendatacommunities.org/id/metropolitan-district-council/leeds,Leeds City Council as Accountable Body,31/08/2018,Social Services Pooled Budgets,Jcs For People With Learning Disabilitie,Third Party Payments,Home Care,568,24/08/2018,1805-00441,0.00,525.72,R,Affinity Trust,No
Http://opendatacommunities.org/id/metropolitan-district-council/leeds,Leeds City Council as Accountable Body,31/08/2018,Social Services Pooled Budgets,Jcs For People With Learning Disabilitie,Third Party Payments,Day Centre,564,24/08/2018,1805-00442,0.00,2149.92,R,Affinity Trust,No
Http://opendatacommunities.org/id/metropolitan-district-council/leeds,Leeds City Council as Accountable Body,31/08/2018,Social Services Pooled Budgets,Jcs For People With Learning Disabilitie,Third Party Payments,Home Care,568,24/08/2018,1805-00443,0.00,804.48,R,Affinity Trust,No
Http://opendatacommunities.org/id/metropolitan-district-council/leeds,Leeds City Council as Accountable Body,31/08/2018,Social Services Pooled Budgets,Jcs For People With Learning Disabilitie,Third Party Payments,Home Care,568,24/08/2018,1805-00444,0.00,942.34,R,Affinity Trust,No
Http://opendatacommunities.org/id/metropolitan-district-council/leeds,Leeds City Council as Accountable Body,31/08/2018,Social Services Pooled Budgets,Jcs For People With Learning Disabilitie,Third Party Payments,Home Care,568,24/08/2018,1805-00445,0.00,1755.99,R,Affinity Trust,No
Http://opendatacommunities.org/id/metropolitan-district-council/leeds,Leeds City Council as Accountable Body,31/08/2018,Social Services Pooled Budgets,Jcs For People With Learning Disabilitie,Third Party Payments,Home Care,568,24/08/2018,1805-00446,0.00,1005.60,R,Affinity Trust,No
Http://opendatacommunities.org/id/metropolitan-district-council/leeds,Leeds City Council as Accountable Body,31/08/2018,Social Services Pooled Budgets,Jcs For People With Learning Disabilitie,Third Party Payments,Home Care,568,24/08/2018,1805-00447,0.00,360.00,R,Affinity Trust,No
Http://opendatacommunities.org/id/metropolitan-district-council/leeds,Leeds City Council as Accountable Body,31/08/2018,Social Services Pooled Budgets,Jcs For People With Learning Disabilitie,Third Party Payments,Day Centre,564,24/08/2018,1805-00448,0.00,648.95,R,Affinity Trust,No
Http://opendatacommunities.org/id/metropolitan-district-council/leeds,Leeds City Council as Accountable Body,31/08/2018,Social Services Pooled Budgets,Jcs For People With Learning Disabilitie,Third Party Payments,Day Centre,564,24/08/2018,1805-00449,0.00,2346.40,R,Affinity Trust,No
Http://opendatacommunities.org/id/metropolitan-district-council/leeds,Leeds City Council as Accountable Body,31/08/2018,Social Services Pooled Budgets,Jcs For People With Learning Disabilitie,Third Party Payments,Day Centre,564,24/08/2018,1805-00450,0.00,1131.93,R,Affinity Trust,No
Http://opendatacommunities.org/id/metropolitan-district-council/leeds,Leeds City Council as Accountable Body,31/08/2018,Social Services Pooled Budgets,Jcs For People With Learning Disabilitie,Third Party Payments,Home Care,568,24/08/2018,1805-00451,0.00,2031.48,R,Affinity Trust,No
Http://opendatacommunities.org/id/metropolitan-district-council/leeds,Leeds City Council as Accountable Body,31/08/2018,Social Services Pooled Budgets,Jcs For People With Learning Disabilitie,Third Party Payments,Home Care,568,24/08/2018,1805-00452,0.00,1423.89,R,Affinity Trust,No
Http://opendatacommunities.org/id/metropolitan-district-council/leeds,Leeds City Council as Accountable Body,31/08/2018,Social Services Pooled Budgets,Jcs For People With Learning Disabilitie,Third Party Payments,Day Centre,564,29/08/2018,1805-00453,0.00,9142.77,R,Affinity Trust,No
Http://opendatacommunities.org/id/metropolitan-district-council/leeds,Leeds City Council as Accountable Body,31/08/2018,Social Services Pooled Budgets,Jcs For People With Learning Disabilitie,Third Party Payments,Day Centre,564,29/08/2018,1805-00454,0.00,17538.00,R,Affinity Trust,No
Http://opendatacommunities.org/id/metropolitan-district-council/leeds,Leeds City Council as Accountable Body,31/08/2018,Social Services Pooled Budgets,Jcs For People With Learning Disabilitie,Third Party Payments,Sheltered Accommodation,569,22/08/2018,1805-00455,0.00,155230.64,R,Affinity Trust North Divisional Office,No
Http://opendatacommunities.org/id/metropolitan-district-council/leeds,Leeds City Council,31/08/2018,Resources and Housing,Human Resources,Employees,Occupational Health,85,17/08/2018,1805-00456,0.00,100.00,R,Agam Jung,No
Http://opendatacommunities.org/id/metropolitan-district-council/leeds,Leeds City Council,31/08/2018,City Development,Highways,Premises,Maintenance Of Traffic Signals,108,10/08/2018,1805-00457,0.00,2800.00,R,Agd Systems Ltd,No
Http://opendatacommunities.org/id/metropolitan-district-council/leeds,Leeds City Council,31/08/2018,City Development,Recreation,Supplies and Services,Other Hired And Contracted Services,265,30/08/2018,1805-00458,0.00,3211.90,R,Age Uk Leeds,No
Http://opendatacommunities.org/id/metropolitan-district-council/leeds,Leeds City Council,31/08/2018,City Development,Recreation,Supplies and Services,Other Hired And Contracted Services,265,07/08/2018,1805-00459,0.00,1972.41,R,Age Uk Leeds Enterprises,No
Http://opendatacommunities.org/id/metropolitan-district-council/leeds,Leeds City Council,31/08/2018,City Development,Libraries  Arts & Heritage,Supplies and Services,Other Hired And Contracted Services,265,17/08/2018,1805-00460,0.00,235.00,R,Agnis Smallwood,No
Http://opendatacommunities.org/id/metropolitan-district-council/leeds,Leeds City Council,31/08/2018,Children and Families,Learning,Supplies and Services,Teaching Materials,202,10/08/2018,1805-00461,0.00,56.02,R,Aid Training & Operations Ltd,No
Http://opendatacommunities.org/id/metropolitan-district-council/leeds,Leeds City Council,31/08/2018,Children and Families,Learning,Supplies and Services,Teaching Materials,202,24/08/2018,1805-00462,0.00,31.02,R,Aid Training & Operations Ltd,No
Http://opendatacommunities.org/id/metropolitan-district-council/leeds,Leeds City Council as Accountable Body,31/08/2018,Social Services Pooled Budgets,Leeds Community Equip Store Pooled Budgt,Supplies and Services,Other Equipment,203,03/08/2018,1805-00463,0.00,153.90,R,Aidapt Bathrooms Ltd,No
Http://opendatacommunities.org/id/metropolitan-district-council/leeds,Leeds City Council as Accountable Body,31/08/2018,Social Services Pooled Budgets,Leeds Community Equip Store Pooled Budgt,Supplies and Services,Other Equipment,203,03/08/2018,1805-00464,0.00,1116.85,R,Aidapt Bathrooms Ltd,No
Http://opendatacommunities.org/id/metropolitan-district-council/leeds,Leeds City Council as Accountable Body,31/08/2018,Social Services Pooled Budgets,Leeds Community Equip Store Pooled Budgt,Supplies and Services,Other Equipment,203,03/08/2018,1805-00465,0.00,1099.40,R,Aidapt Bathrooms Ltd,No
Http://opendatacommunities.org/id/metropolitan-district-council/leeds,Leeds City Council as Accountable Body,31/08/2018,Social Services Pooled Budgets,Leeds Community Equip Store Pooled Budgt,Supplies and Services,Other Equipment,203,03/08/2018,1805-00466,0.00,220.00,R,Aidapt Bathrooms Ltd,No
Http://opendatacommunities.org/id/metropolitan-district-council/leeds,Leeds City Council as Accountable Body,31/08/2018,Social Services Pooled Budgets,Leeds Community Equip Store Pooled Budgt,Supplies and Services,Other Equipment,203,10/08/2018,1805-00467,0.00,119.70,R,Aidapt Bathrooms Ltd,No
Http://opendatacommunities.org/id/metropolitan-district-council/leeds,Leeds City Council as Accountable Body,31/08/2018,Social Services Pooled Budgets,Leeds Community Equip Store Pooled Budgt,Supplies and Services,Other Equipment,203,10/08/2018,1805-00468,0.00,1349.85,R,Aidapt Bathrooms Ltd,No
Http://opendatacommunities.org/id/metropolitan-district-council/leeds,Leeds City Council as Accountable Body,31/08/2018,Social Services Pooled Budgets,Leeds Community Equip Store Pooled Budgt,Supplies and Services,Other Equipment,203,15/08/2018,1805-00469,0.00,82.50,R,Aidapt Bathrooms Ltd,No
Http://opendatacommunities.org/id/metropolitan-district-council/leeds,Leeds City Council as Accountable Body,31/08/2018,Social Services Pooled Budgets,Leeds Community Equip Store Pooled Budgt,Supplies and Services,Other Equipment,203,17/08/2018,1805-00470,0.00,427.90,R,Aidapt Bathrooms Ltd,No
Http://opendatacommunities.org/id/metropolitan-district-council/leeds,Leeds City Council as Accountable Body,31/08/2018,Social Services Pooled Budgets,Leeds Community Equip Store Pooled Budgt,Supplies and Services,Other Equipment,203,24/08/2018,1805-00471,0.00,938.60,R,Aidapt Bathrooms Ltd,No
Http://opendatacommunities.org/id/metropolitan-district-council/leeds,Leeds City Council as Accountable Body,31/08/2018,Social Services Pooled Budgets,Leeds Community Equip Store Pooled Budgt,Supplies and Services,Other Equipment,203,24/08/2018,1805-00472,0.00,941.00,R,Aidapt Bathrooms Ltd,No
Http://opendatacommunities.org/id/metropolitan-district-council/leeds,Leeds City Council as Accountable Body,31/08/2018,Social Services Pooled Budgets,Leeds Community Equip Store Pooled Budgt,Supplies and Services,Other Equipment,203,24/08/2018,1805-00473,0.00,643.35,R,Aidapt Bathrooms Ltd,No
Http://opendatacommunities.org/id/metropolitan-district-council/leeds,Leeds City Council as Accountable Body,31/08/2018,Social Services Pooled Budgets,Leeds Community Equip Store Pooled Budgt,Supplies and Services,Other Equipment,203,24/08/2018,1805-00474,0.00,1099.40,R,Aidapt Bathrooms Ltd,No
Http://opendatacommunities.org/id/metropolitan-district-council/leeds,Leeds City Council as Accountable Body,31/08/2018,Social Services Pooled Budgets,Leeds Community Equip Store Pooled Budgt,Supplies and Services,Other Equipment,203,24/08/2018,1805-00475,0.00,960.25,R,Aidapt Bathrooms Ltd,No
Http://opendatacommunities.org/id/metropolitan-district-council/leeds,Leeds City Council,31/08/2018,Adults and Health,Services For Older People - 65 And Over,Supplies and Services,Operational Furniture And Equipment,203,24/08/2018,1805-00476,0.00,203.92,R,Aidapt Bathrooms Ltd,No
Http://opendatacommunities.org/id/metropolitan-district-council/leeds,Leeds City Council as Accountable Body,31/08/2018,Social Services Pooled Budgets,Leeds Community Equip Store Pooled Budgt,Supplies and Services,Other Equipment,203,24/08/2018,1805-00477,0.00,399.80,R,Aidapt Bathrooms Ltd,No
Http://opendatacommunities.org/id/metropolitan-district-council/leeds,Leeds City Council,31/08/2018,Adults and Health,Services For Older People - 65 And Over,Supplies and Services,Operational Furniture And Equipment,203,31/08/2018,1805-00478,0.00,29.40,R,Aidapt Bathrooms Ltd,No
Http://opendatacommunities.org/id/metropolitan-district-council/leeds,Leeds City Council,31/08/2018,Insurance,Insurance,Supplies and Services,Insurance Claims,248,03/08/2018,1805-00479,0.00,90.00,R,REDACTED PERSONAL DATA,No
Http://opendatacommunities.org/id/metropolitan-district-council/leeds,Leeds City Council,31/08/2018,City Development,Recreation,Income,Swimming Bath Charges,923,17/08/2018,1805-00480,0.00,60.00,R,REDACTED PERSONAL DATA,No
Http://opendatacommunities.org/id/metropolitan-district-council/leeds,Leeds City Council,31/08/2018,Resources and Housing,Leeds Building Services,Supplies and Services,Operational Materials,205,10/08/2018,1805-00481,0.00,650.18,R,Air Conditioning Accessories,No
Http://opendatacommunities.org/id/metropolitan-district-council/leeds,Leeds City Council,31/08/2018,Resources and Housing,Leeds Building Services,Supplies and Services,Operational Materials,205,10/08/2018,1805-00482,0.00,100.56,R,Air Conditioning Accessories,No
Http://opendatacommunities.org/id/metropolitan-district-council/leeds,Leeds City Council,31/08/2018,Resources and Housing,Leeds Building Services,Supplies and Services,Operational Materials,205,10/08/2018,1805-00483,0.00,80.00,R,Air Conditioning Accessories,No
Http://opendatacommunities.org/id/metropolitan-district-council/leeds,Leeds City Council,31/08/2018,Resources and Housing,Leeds Building Services,Supplies and Services,Operational Materials,205,20/08/2018,1805-00484,0.00,6.51,R,Air Conditioning Accessories,No
Http://opendatacommunities.org/id/metropolitan-district-council/leeds,Leeds City Council,31/08/2018,Resources and Housing,Leeds Building Services,Supplies and Services,Operational Materials,205,24/08/2018,1805-00485,0.00,87.00,R,Air Conditioning Accessories,No
Http://opendatacommunities.org/id/metropolitan-district-council/leeds,Leeds City Council,31/08/2018,Resources and Housing,Leeds Building Services,Supplies and Services,Operational Materials,205,24/08/2018,1805-00486,0.00,66.00,R,Air Conditioning Accessories,No
Http://opendatacommunities.org/id/metropolitan-district-council/leeds,Leeds City Council,31/08/2018,Resources and Housing,Leeds Building Services,Supplies and Services,Operational Materials,205,24/08/2018,1805-00487,0.00,124.98,R,Air Conditioning Accessories,No
Http://opendatacommunities.org/id/metropolitan-district-council/leeds,Leeds City Council,31/08/2018,Resources and Housing,Leeds Building Services,Supplies and Services,Operational Materials,205,24/08/2018,1805-00488,0.00,70.61,R,Air Conditioning Accessories,No
Http://opendatacommunities.org/id/metropolitan-district-council/leeds,Leeds City Council,31/08/2018,Resources and Housing,Leeds Building Services,Supplies and Services,Operational Materials,205,24/08/2018,1805-00489,0.00,44.10,R,Air Conditioning Accessories,No
Http://opendatacommunities.org/id/metropolitan-district-council/leeds,Leeds City Council,31/08/2018,Resources and Housing,Leeds Building Services,Supplies and Services,Operational Materials,205,31/08/2018,1805-00490,0.00,36.68,R,Air Conditioning Accessories,No
Http://opendatacommunities.org/id/metropolitan-district-council/leeds,Leeds City Council,31/08/2018,Resources and Housing,Commercial Services  ,Supplies and Services,Operational Materials,205,09/07/2018,1805-00491,0.00,156.28,R,Air Force Pneumati,Yes
Http://opendatacommunities.org/id/metropolitan-district-council/leeds,Leeds City Council,31/08/2018,Resources and Housing,Leeds Building Services,Supplies and Services,Operational Materials,205,24/08/2018,1805-00492,0.00,85.51,R,Air Force Pneumatics & Hydraulics,No
Http://opendatacommunities.org/id/metropolitan-district-council/leeds,Leeds City Council,31/08/2018,Resources and Housing,Leeds Building Services,Supplies and Services,Operational Materials,205,24/08/2018,1805-00493,0.00,35.41,R,Air Force Pneumatics & Hydraulics,No
Http://opendatacommunities.org/id/metropolitan-district-council/leeds,Leeds City Council,31/08/2018,Resources and Housing,Leeds Building Services,Supplies and Services,Operational Materials,205,24/08/2018,1805-00494,0.00,79.45,R,Air Force Pneumatics & Hydraulics,No
Http://opendatacommunities.org/id/metropolitan-district-council/leeds,Leeds City Council,31/08/2018,Communities and Environment,Elections  Licensing and Registration,Income,Admissions  Booking Fees & Ticket Sales,933,21/08/2018,1805-00495,0.00,70.00,R,Air Line Connections,No
Http://opendatacommunities.org/id/metropolitan-district-council/leeds,Leeds City Council,31/08/2018,Communities and Environment,Environmental Health,Supplies and Services,Other Hired And Contracted Services,265,01/08/2018,1805-00496,0.00,9.86,R,Air Liquide Uk,No
Http://opendatacommunities.org/id/metropolitan-district-council/leeds,Leeds City Council,31/08/2018,Communities and Environment,Environmental Health,Supplies and Services,Other Hired And Contracted Services,265,01/08/2018,1805-00497,0.00,9.86,R,Air Liquide Uk,No
Http://opendatacommunities.org/id/metropolitan-district-council/leeds,Leeds City Council,31/08/2018,Communities and Environment,Environmental Health,Supplies and Services,Other Hired And Contracted Services,265,01/08/2018,1805-00498,0.00,15.03,R,Air Liquide Uk,No
Http://opendatacommunities.org/id/metropolitan-district-council/leeds,Leeds City Council,31/08/2018,Communities and Environment,Environmental Health,Supplies and Services,Other Hired And Contracted Services,265,01/08/2018,1805-00499,0.00,69.02,R,Air Liquide Uk,No
Http://opendatacommunities.org/id/metropolitan-district-council/leeds,Leeds City Council,31/08/2018,Resources and Housing,Leeds Building Services,Supplies and Services,Operational Materials,205,31/08/2018,1805-00500,0.00,189.71,R,Air Liquide Uk,No
Http://opendatacommunities.org/id/metropolitan-district-council/leeds,Leeds City Council,31/08/2018,City Development,Libraries  Arts & Heritage,Supplies and Services,Other Hired And Contracted Services,265,22/08/2018,1805-00501,0.00,144.76,R,Aire Valley Gas Ltd,No
Http://opendatacommunities.org/id/metropolitan-district-council/leeds,Leeds City Council,31/08/2018,Adults and Health,Services For Older People - 65 And Over,Third Party Payments,Residential Care Dementia,571,22/08/2018,1805-00502,0.00,47139.45,R,Aire View Residential Home,No
Http://opendatacommunities.org/id/metropolitan-district-council/leeds,Leeds City Council,31/08/2018,Adults and Health,Services For Older People - 65 And Over,Third Party Payments,Residential,580,22/08/2018,1805-00503,0.00,14112.20,R,Aire View Residential Home,No
Http://opendatacommunities.org/id/metropolitan-district-council/leeds,Leeds City Council,31/08/2018,Adults and Health,Public Health,Third Party Payments,Public Health Commissioned Services,526,20/08/2018,1805-00504,0.00,670.00,R,Aireborough Family Practice,No
Http://opendatacommunities.org/id/metropolitan-district-council/leeds,Leeds City Council,31/08/2018,Communities and Environment,Communities,Supplies and Services,Well Being Small Grants Projects,228,01/08/2018,1805-00505,0.00,435.00,R,Aireborough Supported Activities Scheme,No
Http://opendatacommunities.org/id/metropolitan-district-council/leeds,Leeds City Council,31/08/2018,Adults and Health,Services For Older People - 65 And Over,Third Party Payments,Residential Care Dementia,571,22/08/2018,1805-00506,0.00,4185.48,R,Airedale Care Home,No
Http://opendatacommunities.org/id/metropolitan-district-council/leeds,Leeds City Council,31/08/2018,Adults and Health,Services For Older People - 65 And Over,Third Party Payments,Residential,580,22/08/2018,1805-00507,0.00,25042.62,R,Airedale Care Home,No
Http://opendatacommunities.org/id/metropolitan-district-council/leeds,Leeds City Council,31/08/2018,Resources and Housing,Commercial Services,Supplies and Services,Operational Furniture And Equipment,203,17/08/2018,1805-00508,0.00,145.00,R,Airedale Catering Equipment Ltd,No
Http://opendatacommunities.org/id/metropolitan-district-council/leeds,Leeds City Council,31/08/2018,Resources and Housing,Commercial Services,Supplies and Services,Operational Furniture And Equipment,203,17/08/2018,1805-00509,0.00,1275.00,R,Airedale Catering Equipment Ltd,No
Http://opendatacommunities.org/id/metropolitan-district-council/leeds,Leeds City Council,31/08/2018,Resources and Housing,Commercial Services,Supplies and Services,Operational Furniture And Equipment,203,30/08/2018,1805-00510,0.00,889.00,R,Airedale Catering Equipment Ltd,No
Http://opendatacommunities.org/id/metropolitan-district-council/leeds,Leeds City Council as Accountable Body,31/08/2018,Social Services Pooled Budgets,Jcs For People With Learning Disabilitie,Third Party Payments,Home Care,568,02/08/2018,1805-00511,0.00,203.06,R,Airedale Nhs Foundation Trust,No
Http://opendatacommunities.org/id/metropolitan-district-council/leeds,Leeds City Council as Accountable Body,31/08/2018,Social Services Pooled Budgets,Jcs For People With Learning Disabilitie,Third Party Payments,Home Care,568,29/08/2018,1805-00512,0.00,101.53,R,Airedale Nhs Foundation Trust,No
Http://opendatacommunities.org/id/metropolitan-district-council/leeds,Leeds City Council,31/08/2018,Communities and Environment,Community Safety,Supplies and Services,Bought In Professional Services,277,13/08/2018,1805-00513,0.00,832.44,R,Airwave Solutions Ltd,No
Http://opendatacommunities.org/id/metropolitan-district-council/leeds,Leeds City Council,31/08/2018,Resources and Housing,Commercial Services,Supplies and Services,Other Hired And Contracted Services,265,17/08/2018,1805-00514,0.00,225.00,R,Air-Weigh Europe Limited,No
Http://opendatacommunities.org/id/metropolitan-district-council/leeds,Leeds City Council,31/08/2018,Adults and Health,Services For Adults Under 65 Mental/Dis,Third Party Payments,Services Provided By Other NHS Bodies,522,07/08/2018,1805-00515,0.00,175.00,R,Ait Mitra Limited,No
Http://opendatacommunities.org/id/metropolitan-district-council/leeds,Leeds City Council,31/08/2018,Adults and Health,Services For Adults Under 65 Mental/Dis,Third Party Payments,Services Provided By Other NHS Bodies,522,08/08/2018,1805-00516,0.00,175.00,R,Ait Mitra Limited,No
Http://opendatacommunities.org/id/metropolitan-district-council/leeds,Leeds City Council,31/08/2018,Adults and Health,Services For Adults Under 65 Mental/Dis,Third Party Payments,Services Provided By Other NHS Bodies,522,15/08/2018,1805-00517,0.00,175.00,R,Ait Mitra Limited,No
Http://opendatacommunities.org/id/metropolitan-district-council/leeds,Leeds City Council,31/08/2018,Adults and Health,Services For Adults Under 65 Mental/Dis,Third Party Payments,Services Provided By Other NHS Bodies,522,15/08/2018,1805-00518,0.00,175.00,R,Ait Mitra Limited,No
Http://opendatacommunities.org/id/metropolitan-district-council/leeds,Leeds City Council,31/08/2018,Adults and Health,Services For Adults Under 65 Mental/Dis,Third Party Payments,Services Provided By Other NHS Bodies,522,17/08/2018,1805-00519,0.00,175.00,R,Ait Mitra Limited,No
Http://opendatacommunities.org/id/metropolitan-district-council/leeds,Leeds City Council,31/08/2018,Adults and Health,Services For Adults Under 65 Mental/Dis,Third Party Payments,Services Provided By Other NHS Bodies,522,17/08/2018,1805-00520,0.00,175.00,R,Ait Mitra Limited,No
Http://opendatacommunities.org/id/metropolitan-district-council/leeds,Leeds City Council,31/08/2018,Adults and Health,Services For Adults Under 65 Mental/Dis,Third Party Payments,Services Provided By Other NHS Bodies,522,17/08/2018,1805-00521,0.00,175.00,R,Ait Mitra Limited,No
Http://opendatacommunities.org/id/metropolitan-district-council/leeds,Leeds City Council,31/08/2018,Adults and Health,Services For Adults Under 65 Mental/Dis,Third Party Payments,Services Provided By Other NHS Bodies,522,17/08/2018,1805-00522,0.00,175.00,R,Ait Mitra Limited,No
Http://opendatacommunities.org/id/metropolitan-district-council/leeds,Leeds City Council,31/08/2018,Adults and Health,Services For Adults Under 65 Mental/Dis,Third Party Payments,Services Provided By Other NHS Bodies,522,17/08/2018,1805-00523,0.00,175.00,R,Ait Mitra Limited,No
Http://opendatacommunities.org/id/metropolitan-district-council/leeds,Leeds City Council,31/08/2018,Adults and Health,Services For Adults Under 65 Mental/Dis,Third Party Payments,Services Provided By Other NHS Bodies,522,24/08/2018,1805-00524,0.00,239.50,R,Ait Mitra Limited,No
Http://opendatacommunities.org/id/metropolitan-district-council/leeds,Leeds City Council as Accountable Body,31/08/2018,Social Services Pooled Budgets,Jcs For People With Learning Disabilitie,Third Party Payments,Residential,580,22/08/2018,1805-00525,0.00,6173.24,R,Aitch Care Homes,No
Http://opendatacommunities.org/id/metropolitan-district-council/leeds,Leeds City Council,31/08/2018,City Development,Recreation,Supplies and Services,Operational Materials,205,24/08/2018,1805-00526,0.00,1104.00,R,Aitkens Sportsturf Ltd,No
Http://opendatacommunities.org/id/metropolitan-district-council/leeds,Leeds City Council,31/08/2018,Adults and Health,Services For Older People - 65 And Over,Third Party Payments,Home Care,568,24/08/2018,1805-00527,0.00,6851.67,R,Aj Community Care Ltd,No
Http://opendatacommunities.org/id/metropolitan-district-council/leeds,Leeds City Council,31/08/2018,Adults and Health,Services For Older People Under 65 P/Dis,Third Party Payments,Home Care,568,24/08/2018,1805-00528,0.00,3251.64,R,Aj Community Care Ltd,No
Http://opendatacommunities.org/id/metropolitan-district-council/leeds,Leeds City Council,31/08/2018,Adults and Health,Services For Older People - 65 And Over,Third Party Payments,Home Care,568,24/08/2018,1805-00529,0.00,21234.73,R,Aj Community Care Ltd,No
Http://opendatacommunities.org/id/metropolitan-district-council/leeds,Leeds City Council,31/08/2018,Adults and Health,Services For Older People Under 65 P/Dis,Third Party Payments,Home Care,568,24/08/2018,1805-00530,0.00,5288.76,R,Aj Community Care Ltd,No
Http://opendatacommunities.org/id/metropolitan-district-council/leeds,Leeds City Council,31/08/2018,Resources and Housing,Leeds Building Services,Supplies and Services,Operational Furniture And Equipment,203,03/08/2018,1805-00531,0.00,1550.88,R,Ajm Fixings & Power Tools Ltd,No
Http://opendatacommunities.org/id/metropolitan-district-council/leeds,Leeds City Council,31/08/2018,Resources and Housing,Leeds Building Services,Supplies and Services,Operational Furniture And Equipment,203,07/08/2018,1805-00532,0.00,68.00,R,Ajm Fixings & Power Tools Ltd,No
Http://opendatacommunities.org/id/metropolitan-district-council/leeds,Leeds City Council,31/08/2018,Resources and Housing,Leeds Building Services,Supplies and Services,Operational Furniture And Equipment,203,10/08/2018,1805-00533,0.00,482.00,R,Ajm Fixings & Power Tools Ltd,No
Http://opendatacommunities.org/id/metropolitan-district-council/leeds,Leeds City Council,31/08/2018,Resources and Housing,Leeds Building Services,Supplies and Services,Operational Furniture And Equipment,203,13/08/2018,1805-00534,0.00,1215.00,R,Ajm Fixings & Power Tools Ltd,No
Http://opendatacommunities.org/id/metropolitan-district-council/leeds,Leeds City Council,31/08/2018,Resources and Housing,Leeds Building Services,Supplies and Services,Operational Furniture And Equipment,203,13/08/2018,1805-00535,0.00,1346.00,R,Ajm Fixings & Power Tools Ltd,No
Http://opendatacommunities.org/id/metropolitan-district-council/leeds,Leeds City Council,31/08/2018,Resources and Housing,Leeds Building Services,Supplies and Services,Stores - Central And Other Depots,005,13/08/2018,1805-00536,0.00,32.60,R,Ajm Fixings & Power Tools Ltd,No
Http://opendatacommunities.org/id/metropolitan-district-council/leeds,Leeds City Council,31/08/2018,Resources and Housing,Leeds Building Services,Supplies and Services,Operational Furniture And Equipment,203,24/08/2018,1805-00537,0.00,19.99,R,Ajm Fixings & Power Tools Ltd,No
Http://opendatacommunities.org/id/metropolitan-district-council/leeds,Leeds City Council,31/08/2018,Resources and Housing,Leeds Building Services,Supplies and Services,Operational Furniture And Equipment,203,24/08/2018,1805-00538,0.00,2442.48,R,Ajm Fixings & Power Tools Ltd,No
Http://opendatacommunities.org/id/metropolitan-district-council/leeds,Leeds City Council,31/08/2018,Resources and Housing,Leeds Building Services,Supplies and Services,Operational Furniture And Equipment,203,24/08/2018,1805-00539,0.00,95.00,R,Ajm Fixings & Power Tools Ltd,No
Http://opendatacommunities.org/id/metropolitan-district-council/leeds,Leeds City Council,31/08/2018,Resources and Housing,Leeds Building Services,Supplies and Services,Operational Furniture And Equipment,203,24/08/2018,1805-00540,0.00,3807.00,R,Ajm Fixings & Power Tools Ltd,No
Http://opendatacommunities.org/id/metropolitan-district-council/leeds,Leeds City Council,31/08/2018,Resources and Housing,Leeds Building Services,Supplies and Services,Stores - Central And Other Depots,005,30/08/2018,1805-00541,0.00,355.30,R,Ajm Fixings & Power Tools Ltd,No
Http://opendatacommunities.org/id/metropolitan-district-council/leeds,Leeds City Council,31/08/2018,Resources and Housing,Leeds Building Services,Supplies and Services,Operational Materials,205,30/08/2018,1805-00542,0.00,43.20,R,Ajm Fixings & Power Tools Ltd,No
Http://opendatacommunities.org/id/metropolitan-district-council/leeds,Leeds City Council,31/08/2018,Resources and Housing,Leeds Building Services,Supplies and Services,Stores - Central And Other Depots,005,31/08/2018,1805-00543,0.00,647.40,R,Ajm Fixings & Power Tools Ltd,No
Http://opendatacommunities.org/id/metropolitan-district-council/leeds,Leeds City Council,31/08/2018,Resources and Housing,Leeds Building Services,Supplies and Services,Stores - Central And Other Depots,005,31/08/2018,1805-00544,0.00,169.50,R,Ajm Fixings & Power Tools Ltd,No
Http://opendatacommunities.org/id/metropolitan-district-council/leeds,Leeds City Council,31/08/2018,Resources and Housing,Commercial Services,Premises,Maintenance Of Buildings,101,07/08/2018,1805-00545,0.00,200.90,R,Akua Uk Ltd,No
Http://opendatacommunities.org/id/metropolitan-district-council/leeds,Leeds City Council,31/08/2018,Resources and Housing,Commercial Services,Premises,Maintenance Of Buildings,101,07/08/2018,1805-00546,0.00,482.40,R,Akua Uk Ltd,No
Http://opendatacommunities.org/id/metropolitan-district-council/leeds,Leeds City Council,31/08/2018,Resources and Housing,Commercial Services,Premises,Maintenance Of Buildings,101,07/08/2018,1805-00547,0.00,826.65,R,Akua Uk Ltd,No
Http://opendatacommunities.org/id/metropolitan-district-council/leeds,Leeds City Council,31/08/2018,Resources and Housing,Commercial Services,Premises,Maintenance Of Buildings,101,08/08/2018,1805-00548,0.00,57.33,R,Akua Uk Ltd,No
Http://opendatacommunities.org/id/metropolitan-district-council/leeds,Leeds City Council,31/08/2018,Resources and Housing,Commercial Services,Premises,Maintenance Of Buildings,101,08/08/2018,1805-00549,0.00,166.90,R,Akua Uk Ltd,No
Http://opendatacommunities.org/id/metropolitan-district-council/leeds,Leeds City Council,31/08/2018,Resources and Housing,Commercial Services,Premises,Maintenance Of Buildings,101,08/08/2018,1805-00550,0.00,581.75,R,Akua Uk Ltd,No
Http://opendatacommunities.org/id/metropolitan-district-council/leeds,Leeds City Council,31/08/2018,Resources and Housing,Commercial Services,Premises,Maintenance Of Buildings,101,08/08/2018,1805-00551,0.00,1141.80,R,Akua Uk Ltd,No
Http://opendatacommunities.org/id/metropolitan-district-council/leeds,Leeds City Council,31/08/2018,Resources and Housing,Commercial Services,Premises,Maintenance Of Buildings,101,24/08/2018,1805-00552,0.00,185.50,R,Akua Uk Ltd,No
Http://opendatacommunities.org/id/metropolitan-district-council/leeds,Leeds City Council,31/08/2018,Resources and Housing,Commercial Services,Premises,Maintenance Of Buildings,101,24/08/2018,1805-00553,0.00,84.00,R,Akua Uk Ltd,No
Http://opendatacommunities.org/id/metropolitan-district-council/leeds,Leeds City Council,31/08/2018,Resources and Housing,Commercial Services,Premises,Maintenance Of Buildings,101,24/08/2018,1805-00554,0.00,195.21,R,Akua Uk Ltd,No
Http://opendatacommunities.org/id/metropolitan-district-council/leeds,Leeds City Council,31/08/2018,Resources and Housing,Commercial Services,Premises,Maintenance Of Buildings,101,24/08/2018,1805-00555,0.00,348.71,R,Akua Uk Ltd,No
Http://opendatacommunities.org/id/metropolitan-district-council/leeds,Leeds City Council,31/08/2018,Resources and Housing,Commercial Services,Premises,Maintenance Of Buildings,101,24/08/2018,1805-00556,0.00,348.14,R,Akua Uk Ltd,No
Http://opendatacommunities.org/id/metropolitan-district-council/leeds,Leeds City Council,31/08/2018,Resources and Housing,Commercial Services,Premises,Maintenance Of Buildings,101,31/08/2018,1805-00557,0.00,563.27,R,Akua Uk Ltd,No
Http://opendatacommunities.org/id/metropolitan-district-council/leeds,Leeds City Council,31/08/2018,Resources and Housing,Leeds Building Services,Supplies and Services,Operational Materials,205,20/08/2018,1805-00558,0.00,56.31,R,Akw Medicare Ltd,No
Http://opendatacommunities.org/id/metropolitan-district-council/leeds,Leeds City Council,31/08/2018,Resources and Housing,Leeds Building Services,Supplies and Services,Operational Materials,205,20/08/2018,1805-00559,0.00,112.62,R,Akw Medicare Ltd,No
Http://opendatacommunities.org/id/metropolitan-district-council/leeds,Leeds City Council,31/08/2018,Resources and Housing,Leeds Building Services,Supplies and Services,Operational Materials,205,24/08/2018,1805-00560,0.00,56.31,R,Akw Medicare Ltd,No
Http://opendatacommunities.org/id/metropolitan-district-council/leeds,Leeds City Council,31/08/2018,Resources and Housing,Democratic Services  ,Premises,Grounds Maintenance Work,111,30/07/2018,1805-00561,0.00,12.00,R,Alan Brown Flowers,Yes
Http://opendatacommunities.org/id/metropolitan-district-council/leeds,Leeds City Council,31/08/2018,Adults and Health,Public Health,Third Party Payments,Public Health Commissioned Services,526,03/08/2018,1805-00562,0.00,10000.00,R,Alan White,No
Http://opendatacommunities.org/id/metropolitan-district-council/leeds,Leeds City Council,31/08/2018,Adults and Health,Services For Older People - 65 And Over,Third Party Payments,Residential Care Dementia,571,22/08/2018,1805-00563,0.00,5988.40,R,Albemarle,No
Http://opendatacommunities.org/id/metropolitan-district-council/leeds,Leeds City Council,31/08/2018,Resources and Housing,Commercial Services,Transport,Vehicle Spares,345,17/08/2018,1805-00564,0.00,66.61,R,Albert Jagger Limited,No
Http://opendatacommunities.org/id/metropolitan-district-council/leeds,Leeds City Council,31/08/2018,Communities and Environment,Parks And Countryside  ,Supplies and Services,Operational Materials,205,11/07/2018,1805-00565,0.00,10.99,R,Albion Electric Stores Lt,Yes
Http://opendatacommunities.org/id/metropolitan-district-council/leeds,Leeds City Council,31/08/2018,Communities and Environment,Parks And Countryside  ,Supplies and Services,Operational Materials,205,12/07/2018,1805-00566,0.00,20.23,R,Albion Electric Stores Lt,Yes
Http://opendatacommunities.org/id/metropolitan-district-council/leeds,Leeds City Council,31/08/2018,Communities and Environment,Communities,Supplies and Services,Computer Software & Equipment,214,17/08/2018,1805-00567,0.00,1075.00,R,Alcium Software Ltd,No
Http://opendatacommunities.org/id/metropolitan-district-council/leeds,Leeds City Council,31/08/2018,Children and Families,Social Care  ,Supplies and Services,Food & Drink,231,10/07/2018,1805-00568,0.00,64.43,R,Aldi,Yes
Http://opendatacommunities.org/id/metropolitan-district-council/leeds,Leeds City Council,31/08/2018,Children and Families,Social Care  ,Supplies and Services,Food & Drink,231,15/07/2018,1805-00569,0.00,39.21,R,Aldi,Yes
Http://opendatacommunities.org/id/metropolitan-district-council/leeds,Leeds City Council,31/08/2018,Children and Families,Social Care  ,Supplies and Services,Food & Drink,231,20/07/2018,1805-00570,0.00,13.19,R,Aldi,Yes
Http://opendatacommunities.org/id/metropolitan-district-council/leeds,Leeds City Council,31/08/2018,Children and Families,Social Care  ,Supplies and Services,Food & Drink,231,23/07/2018,1805-00571,0.00,42.64,R,Aldi,Yes
Http://opendatacommunities.org/id/metropolitan-district-council/leeds,Leeds City Council,31/08/2018,Children and Families,Social Care  ,Supplies and Services,Food & Drink,231,29/07/2018,1805-00572,0.00,64.28,R,Aldi,Yes
Http://opendatacommunities.org/id/metropolitan-district-council/leeds,Leeds City Council,31/08/2018,City Development,Employment & Skills  ,Supplies and Services,Operational Materials,205,17/07/2018,1805-00573,0.00,6.35,R,Aldi 40 779,Yes
Http://opendatacommunities.org/id/metropolitan-district-council/leeds,Leeds City Council,31/08/2018,Children and Families,Social Care  ,Supplies and Services,Food & Drink,231,02/07/2018,1805-00574,0.00,65.55,R,Aldi 49 779,Yes
Http://opendatacommunities.org/id/metropolitan-district-council/leeds,Leeds City Council,31/08/2018,City Development,Libraries  Arts & Heritage  ,Supplies and Services,Operational Materials,205,12/07/2018,1805-00575,0.00,12.48,R,Aldi 49 779,Yes
Http://opendatacommunities.org/id/metropolitan-district-council/leeds,Leeds City Council,31/08/2018,City Development,Libraries  Arts & Heritage  ,Supplies and Services,Operational Materials,205,19/07/2018,1805-00576,0.00,-4.16,R,Aldi 49 779,Yes
Http://opendatacommunities.org/id/metropolitan-district-council/leeds,Leeds City Council,31/08/2018,Communities and Environment,Communities  ,Supplies and Services,'Well Being' Large Grants Projects,230,05/07/2018,1805-00577,0.00,16.92,R,Aldi 71 779,Yes
Http://opendatacommunities.org/id/metropolitan-district-council/leeds,Leeds City Council,31/08/2018,Communities and Environment,Communities  ,Supplies and Services,'Well Being' Large Grants Projects,230,13/07/2018,1805-00578,0.00,27.87,R,Aldi 71 779,Yes
Http://opendatacommunities.org/id/metropolitan-district-council/leeds,Leeds City Council,31/08/2018,City Development,Highways  ,Supplies and Services,Food & Drink,231,23/07/2018,1805-00579,0.00,26.82,R,Aldi 71 779,Yes
Http://opendatacommunities.org/id/metropolitan-district-council/leeds,Leeds City Council,31/08/2018,City Development,Highways  ,Supplies and Services,Food & Drink,231,26/07/2018,1805-00580,0.00,26.82,R,Aldi 71 779,Yes
Http://opendatacommunities.org/id/metropolitan-district-council/leeds,Leeds City Council,31/08/2018,Children and Families,Social Care  ,Supplies and Services,Food & Drink,231,15/07/2018,1805-00581,0.00,92.70,R,Aldi 85 779,Yes
Http://opendatacommunities.org/id/metropolitan-district-council/leeds,Leeds City Council,31/08/2018,Children and Families,Social Care  ,Supplies and Services,Food & Drink,231,23/07/2018,1805-00582,0.00,155.68,R,Aldi 85 779,Yes
Http://opendatacommunities.org/id/metropolitan-district-council/leeds,Leeds City Council,31/08/2018,Children and Families,Social Care  ,Supplies and Services,Food & Drink,231,02/07/2018,1805-00583,0.00,30.08,R,Aldi 88 779,Yes
Http://opendatacommunities.org/id/metropolitan-district-council/leeds,Leeds City Council,31/08/2018,Children and Families,Social Care  ,Supplies and Services,Food & Drink,231,11/07/2018,1805-00584,0.00,31.94,R,Aldi 88 779,Yes
Http://opendatacommunities.org/id/metropolitan-district-council/leeds,Leeds City Council,31/08/2018,Children and Families,Social Care  ,Supplies and Services,Food & Drink,231,23/07/2018,1805-00585,0.00,8.39,R,Aldi 88 779,Yes
Http://opendatacommunities.org/id/metropolitan-district-council/leeds,Leeds City Council,31/08/2018,Communities and Environment,Customer Access,Supplies and Services,Other Hired And Contracted Services,265,03/08/2018,1805-00586,0.00,67.50,R,Alena Zueva,No
Http://opendatacommunities.org/id/metropolitan-district-council/leeds,Leeds City Council,31/08/2018,Children and Families,Social Care,Support Services,Legal Disbursements,411,06/08/2018,1805-00587,0.00,77.75,R,Alere Toxicology Plc,No
Http://opendatacommunities.org/id/metropolitan-district-council/leeds,Leeds City Council,31/08/2018,Children and Families,Social Care,Support Services,Legal Disbursements,411,06/08/2018,1805-00588,0.00,77.75,R,Alere Toxicology Plc,No
Http://opendatacommunities.org/id/metropolitan-district-council/leeds,Leeds City Council,31/08/2018,Children and Families,Social Care,Support Services,Legal Disbursements,411,06/08/2018,1805-00589,0.00,77.75,R,Alere Toxicology Plc,No
Http://opendatacommunities.org/id/metropolitan-district-council/leeds,Leeds City Council,31/08/2018,Children and Families,Social Care,Support Services,Legal Disbursements,411,06/08/2018,1805-00590,0.00,187.92,R,Alere Toxicology Plc,No
Http://opendatacommunities.org/id/metropolitan-district-council/leeds,Leeds City Council,31/08/2018,Children and Families,Social Care,Support Services,Legal Disbursements,411,06/08/2018,1805-00591,0.00,24.75,R,Alere Toxicology Plc,No
Http://opendatacommunities.org/id/metropolitan-district-council/leeds,Leeds City Council,31/08/2018,Children and Families,Social Care,Support Services,Legal Disbursements,411,06/08/2018,1805-00592,0.00,77.75,R,Alere Toxicology Plc,No
Http://opendatacommunities.org/id/metropolitan-district-council/leeds,Leeds City Council,31/08/2018,Children and Families,Social Care,Support Services,Legal Disbursements,411,06/08/2018,1805-00593,0.00,77.75,R,Alere Toxicology Plc,No
Http://opendatacommunities.org/id/metropolitan-district-council/leeds,Leeds City Council,31/08/2018,Children and Families,Social Care,Support Services,Legal Disbursements,411,10/08/2018,1805-00594,0.00,131.75,R,Alere Toxicology Plc,No
Http://opendatacommunities.org/id/metropolitan-district-council/leeds,Leeds City Council,31/08/2018,Children and Families,Social Care,Support Services,Legal Disbursements,411,23/08/2018,1805-00595,0.00,299.25,R,Alere Toxicology Plc,No
Http://opendatacommunities.org/id/metropolitan-district-council/leeds,Leeds City Council,31/08/2018,Children and Families,Social Care,Support Services,Legal Disbursements,411,23/08/2018,1805-00596,0.00,131.75,R,Alere Toxicology Plc,No
Http://opendatacommunities.org/id/metropolitan-district-council/leeds,Leeds City Council,31/08/2018,City Development,Employment & Skills,Supplies and Services,Advertising,211,06/08/2018,1805-00597,0.00,30.00,R,Alex Mcintosh,No
Http://opendatacommunities.org/id/metropolitan-district-council/leeds,Leeds City Council,31/08/2018,Children and Families,Social Care,Support Services,Legal Disbursements,411,03/08/2018,1805-00598,0.00,447.00,R,Alex Taylor,No
Http://opendatacommunities.org/id/metropolitan-district-council/leeds,Leeds City Council,31/08/2018,Resources and Housing,Commercial Services,Supplies and Services,Other Hired And Contracted Services,265,02/08/2018,1805-00599,0.00,240.00,R,Alex Wagg,No
Http://opendatacommunities.org/id/metropolitan-district-council/leeds,Leeds City Council,31/08/2018,Resources and Housing,Commercial Services,Supplies and Services,Other Hired And Contracted Services,265,02/08/2018,1805-00600,0.00,66.00,R,Alex Wagg,No
Http://opendatacommunities.org/id/metropolitan-district-council/leeds,Leeds City Council,31/08/2018,Resources and Housing,Commercial Services,Supplies and Services,Other Hired And Contracted Services,265,16/08/2018,1805-00601,0.00,100.00,R,Alex Wagg,No
Http://opendatacommunities.org/id/metropolitan-district-council/leeds,Leeds City Council,31/08/2018,Resources and Housing,Commercial Services,Supplies and Services,Other Hired And Contracted Services,265,16/08/2018,1805-00602,0.00,95.00,R,Alex Wagg,No
Http://opendatacommunities.org/id/metropolitan-district-council/leeds,Leeds City Council,31/08/2018,Resources and Housing,Commercial Services,Supplies and Services,Other Hired And Contracted Services,265,16/08/2018,1805-00603,0.00,40.00,R,Alex Wagg,No
Http://opendatacommunities.org/id/metropolitan-district-council/leeds,Leeds City Council,31/08/2018,Adults and Health,Services For Older People - 65 And Over,Third Party Payments,Residential Care Dementia,571,22/08/2018,1805-00604,0.00,41913.17,R,Alexander Residential Home,No
Http://opendatacommunities.org/id/metropolitan-district-council/leeds,Leeds City Council,31/08/2018,Adults and Health,Services For Older People - 65 And Over,Third Party Payments,Residential,580,22/08/2018,1805-00605,0.00,10518.53,R,Alexander Residential Home,No
Http://opendatacommunities.org/id/metropolitan-district-council/leeds,Leeds City Council,31/08/2018,Communities and Environment,Customer Access,Supplies and Services,Other Hired And Contracted Services,265,03/08/2018,1805-00606,0.00,782.25,R,Alexandra Costenco,No
Http://opendatacommunities.org/id/metropolitan-district-council/leeds,Leeds City Council,31/08/2018,Adults and Health,Services For Older People - 65 And Over,Third Party Payments,Residential,580,22/08/2018,1805-00607,0.00,11833.87,R,Alexandra Court,No
Http://opendatacommunities.org/id/metropolitan-district-council/leeds,Leeds City Council,31/08/2018,City Development,Libraries  Arts & Heritage,Supplies and Services,Other Hired And Contracted Services,265,31/08/2018,1805-00608,0.00,300.00,R,Alexandra Docherty (Sandy),No
Http://opendatacommunities.org/id/metropolitan-district-council/leeds,Leeds City Council,31/08/2018,Children and Families,Social Care  ,Supplies and Services,Clothing & Uniforms,241,22/06/2018,1805-00609,0.00,-41.97,R,Alexandra Website,Yes
Http://opendatacommunities.org/id/metropolitan-district-council/leeds,Leeds City Council,31/08/2018,Resources and Housing,Leeds Building Services,Supplies and Services,Other Hired And Contracted Services,265,02/08/2018,1805-00610,0.00,10145.00,R,Alfred Bagnall & Sons (Leeds) Ltd,No
Http://opendatacommunities.org/id/metropolitan-district-council/leeds,Leeds City Council,31/08/2018,Resources and Housing,Leeds Building Services,Supplies and Services,Other Hired And Contracted Services,265,02/08/2018,1805-00611,0.00,200.00,R,Alfred Bagnall & Sons (Leeds) Ltd,No
Http://opendatacommunities.org/id/metropolitan-district-council/leeds,Leeds City Council,31/08/2018,Resources and Housing,Leeds Building Services,Supplies and Services,Other Hired And Contracted Services,265,02/08/2018,1805-00612,0.00,200.00,R,Alfred Bagnall & Sons (Leeds) Ltd,No
Http://opendatacommunities.org/id/metropolitan-district-council/leeds,Leeds City Council,31/08/2018,Resources and Housing,Leeds Building Services,Supplies and Services,Other Hired And Contracted Services,265,02/08/2018,1805-00613,0.00,1500.00,R,Alfred Bagnall & Sons (Leeds) Ltd,No
Http://opendatacommunities.org/id/metropolitan-district-council/leeds,Leeds City Council,31/08/2018,Resources and Housing,Leeds Building Services,Supplies and Services,Other Hired And Contracted Services,265,08/08/2018,1805-00614,0.00,400.00,R,Alfred Bagnall & Sons (Leeds) Ltd,No
Http://opendatacommunities.org/id/metropolitan-district-council/leeds,Leeds City Council,31/08/2018,Resources and Housing,Leeds Building Services,Supplies and Services,Other Hired And Contracted Services,265,08/08/2018,1805-00615,0.00,1200.00,R,Alfred Bagnall & Sons (Leeds) Ltd,No
Http://opendatacommunities.org/id/metropolitan-district-council/leeds,Leeds City Council,31/08/2018,Resources and Housing,Leeds Building Services,Supplies and Services,Other Hired And Contracted Services,265,08/08/2018,1805-00616,0.00,200.00,R,Alfred Bagnall & Sons (Leeds) Ltd,No
Http://opendatacommunities.org/id/metropolitan-district-council/leeds,Leeds City Council,31/08/2018,Resources and Housing,Leeds Building Services,Supplies and Services,Other Hired And Contracted Services,265,08/08/2018,1805-00617,0.00,600.00,R,Alfred Bagnall & Sons (Leeds) Ltd,No
Http://opendatacommunities.org/id/metropolitan-district-council/leeds,Leeds City Council,31/08/2018,Resources and Housing,Corporate Property Management,Capital,Construction,3,13/08/2018,1805-00618,0.00,9000.00,C,Alfred Bagnall & Sons (Leeds) Ltd,No
Http://opendatacommunities.org/id/metropolitan-district-council/leeds,Leeds City Council,31/08/2018,Resources and Housing,Corporate Property Management,Capital,Construction,3,13/08/2018,1805-00619,0.00,1620.00,C,Alfred Bagnall & Sons (Leeds) Ltd,No
Http://opendatacommunities.org/id/metropolitan-district-council/leeds,Leeds City Council,31/08/2018,Resources and Housing,Corporate Property Management,Capital,Construction,3,13/08/2018,1805-00620,0.00,1200.00,C,Alfred Bagnall & Sons (Leeds) Ltd,No
Http://opendatacommunities.org/id/metropolitan-district-council/leeds,Leeds City Council,31/08/2018,Resources and Housing,Leeds Building Services,Supplies and Services,Other Hired And Contracted Services,265,14/08/2018,1805-00621,0.00,200.00,R,Alfred Bagnall & Sons (Leeds) Ltd,No
Http://opendatacommunities.org/id/metropolitan-district-council/leeds,Leeds City Council,31/08/2018,Resources and Housing,Leeds Building Services,Supplies and Services,Other Hired And Contracted Services,265,14/08/2018,1805-00622,0.00,17386.34,R,Alfred Bagnall & Sons (Leeds) Ltd,No
Http://opendatacommunities.org/id/metropolitan-district-council/leeds,Leeds City Council,31/08/2018,Resources and Housing,Leeds Building Services,Supplies and Services,Other Hired And Contracted Services,265,24/08/2018,1805-00623,0.00,800.00,R,Alfred Bagnall & Sons (Leeds) Ltd,No
Http://opendatacommunities.org/id/metropolitan-district-council/leeds,Leeds City Council,31/08/2018,Resources and Housing,Leeds Building Services,Supplies and Services,Other Hired And Contracted Services,265,24/08/2018,1805-00624,0.00,1600.00,R,Alfred Bagnall & Sons (Leeds) Ltd,No
Http://opendatacommunities.org/id/metropolitan-district-council/leeds,Leeds City Council,31/08/2018,City Development,Libraries  Arts & Heritage,Supplies and Services,Other Hired And Contracted Services,265,24/08/2018,1805-00625,0.00,4999.00,R,Alfred Bagnall & Sons (Leeds) Ltd,No
Http://opendatacommunities.org/id/metropolitan-district-council/leeds,Leeds City Council,31/08/2018,Communities and Environment,Customer Access,Supplies and Services,Other Hired And Contracted Services,265,03/08/2018,1805-00626,0.00,465.00,R,Ali Pourakaberian,No
Http://opendatacommunities.org/id/metropolitan-district-council/leeds,Leeds City Council,31/08/2018,Children and Families,Partnerships & Health,Employees,Training & Development,70,16/08/2018,1805-00627,0.00,1416.64,R,REDACTED PERSONAL DATA,No
Http://opendatacommunities.org/id/metropolitan-district-council/leeds,Leeds City Council,31/08/2018,Children and Families,Social Care,Third Party Payments,Services Rendered By Other Organisations,511,03/08/2018,1805-00628,0.00,165.75,R,REDACTED PERSONAL DATA,No
Http://opendatacommunities.org/id/metropolitan-district-council/leeds,Leeds City Council,31/08/2018,City Development,Libraries  Arts & Heritage,Supplies and Services,Bought In Professional Services,277,17/08/2018,1805-00629,0.00,1468.59,R,Alison Mcintyre,No
Http://opendatacommunities.org/id/metropolitan-district-council/leeds,Leeds City Council,31/08/2018,Children and Families,Social Care,Transfer Payments,Leaving Care Allowances,634,03/08/2018,1805-00630,0.00,220.00,R,All Abode,No
Http://opendatacommunities.org/id/metropolitan-district-council/leeds,Leeds City Council,31/08/2018,Resources and Housing,Leeds Building Services,Supplies and Services,Other Hired And Contracted Services,265,10/08/2018,1805-00631,0.00,195.00,R,All Clear Solutions Ltd,No
Http://opendatacommunities.org/id/metropolitan-district-council/leeds,Leeds City Council,31/08/2018,Resources and Housing,Leeds Building Services,Supplies and Services,Other Hired And Contracted Services,265,10/08/2018,1805-00632,0.00,195.00,R,All Clear Solutions Ltd,No
Http://opendatacommunities.org/id/metropolitan-district-council/leeds,Leeds City Council,31/08/2018,Resources and Housing,Leeds Building Services,Supplies and Services,Other Hired And Contracted Services,265,10/08/2018,1805-00633,0.00,195.00,R,All Clear Solutions Ltd,No
Http://opendatacommunities.org/id/metropolitan-district-council/leeds,Leeds City Council,31/08/2018,Resources and Housing,Leeds Building Services,Supplies and Services,Other Hired And Contracted Services,265,10/08/2018,1805-00634,0.00,195.00,R,All Clear Solutions Ltd,No
Http://opendatacommunities.org/id/metropolitan-district-council/leeds,Leeds City Council,31/08/2018,Resources and Housing,Leeds Building Services,Supplies and Services,Other Hired And Contracted Services,265,10/08/2018,1805-00635,0.00,195.00,R,All Clear Solutions Ltd,No
Http://opendatacommunities.org/id/metropolitan-district-council/leeds,Leeds City Council,31/08/2018,Resources and Housing,Leeds Building Services,Supplies and Services,Other Hired And Contracted Services,265,10/08/2018,1805-00636,0.00,195.00,R,All Clear Solutions Ltd,No
Http://opendatacommunities.org/id/metropolitan-district-council/leeds,Leeds City Council,31/08/2018,Resources and Housing,Leeds Building Services,Supplies and Services,Other Hired And Contracted Services,265,17/08/2018,1805-00637,0.00,195.00,R,All Clear Solutions Ltd,No
Http://opendatacommunities.org/id/metropolitan-district-council/leeds,Leeds City Council,31/08/2018,Resources and Housing,Leeds Building Services,Supplies and Services,Other Hired And Contracted Services,265,17/08/2018,1805-00638,0.00,195.00,R,All Clear Solutions Ltd,No
Http://opendatacommunities.org/id/metropolitan-district-council/leeds,Leeds City Council,31/08/2018,Resources and Housing,Leeds Building Services,Supplies and Services,Other Hired And Contracted Services,265,17/08/2018,1805-00639,0.00,195.00,R,All Clear Solutions Ltd,No
Http://opendatacommunities.org/id/metropolitan-district-council/leeds,Leeds City Council,31/08/2018,Resources and Housing,Leeds Building Services,Supplies and Services,Other Hired And Contracted Services,265,17/08/2018,1805-00640,0.00,195.00,R,All Clear Solutions Ltd,No
Http://opendatacommunities.org/id/metropolitan-district-council/leeds,Leeds City Council,31/08/2018,Resources and Housing,Leeds Building Services,Supplies and Services,Other Hired And Contracted Services,265,17/08/2018,1805-00641,0.00,195.00,R,All Clear Solutions Ltd,No
Http://opendatacommunities.org/id/metropolitan-district-council/leeds,Leeds City Council,31/08/2018,Resources and Housing,Leeds Building Services,Supplies and Services,Other Hired And Contracted Services,265,17/08/2018,1805-00642,0.00,195.00,R,All Clear Solutions Ltd,No
Http://opendatacommunities.org/id/metropolitan-district-council/leeds,Leeds City Council,31/08/2018,Resources and Housing,Leeds Building Services,Supplies and Services,Other Hired And Contracted Services,265,29/08/2018,1805-00643,0.00,195.00,R,All Clear Solutions Ltd,No
Http://opendatacommunities.org/id/metropolitan-district-council/leeds,Leeds City Council,31/08/2018,Resources and Housing,Leeds Building Services,Supplies and Services,Other Hired And Contracted Services,265,31/08/2018,1805-00644,0.00,545.00,R,All Clear Solutions Ltd,No
Http://opendatacommunities.org/id/metropolitan-district-council/leeds,Leeds City Council,31/08/2018,Resources and Housing,Leeds Building Services,Supplies and Services,Other Hired And Contracted Services,265,31/08/2018,1805-00645,0.00,795.00,R,All Clear Solutions Ltd,No
Http://opendatacommunities.org/id/metropolitan-district-council/leeds,Leeds City Council,31/08/2018,Resources and Housing,Leeds Building Services,Supplies and Services,Other Hired And Contracted Services,265,31/08/2018,1805-00646,0.00,445.00,R,All Clear Solutions Ltd,No
Http://opendatacommunities.org/id/metropolitan-district-council/leeds,Leeds City Council,31/08/2018,Resources and Housing,Leeds Building Services,Supplies and Services,Other Hired And Contracted Services,265,31/08/2018,1805-00647,0.00,195.00,R,All Clear Solutions Ltd,No
Http://opendatacommunities.org/id/metropolitan-district-council/leeds,Leeds City Council,31/08/2018,Children and Families,Learning,Supplies and Services,Other Hired And Contracted Services,265,22/08/2018,1805-00648,0.00,64.00,R,All Hallows,No
Http://opendatacommunities.org/id/metropolitan-district-council/leeds,Leeds City Council,31/08/2018,Children and Families,Social Care,Supplies and Services,Operational Furniture And Equipment,203,24/08/2018,1805-00649,0.00,150.00,R,All Safe & Secure Ltd,No
Http://opendatacommunities.org/id/metropolitan-district-council/leeds,Leeds City Council as Accountable Body,31/08/2018,Social Services Pooled Budgets,Jcs For People With Learning Disabilitie,Third Party Payments,Sheltered Accommodation,569,22/08/2018,1805-00650,0.00,13578.36,R,Allerton Avenue,No
Http://opendatacommunities.org/id/metropolitan-district-council/leeds,Leeds City Council,31/08/2018,Adults and Health,Public Health,Third Party Payments,Public Health Commissioned Services,526,20/08/2018,1805-00651,0.00,665.00,R,Allerton Medical Centre,No
Http://opendatacommunities.org/id/metropolitan-district-council/leeds,Leeds City Council,31/08/2018,Adults and Health,Services For Older People - 65 And Over,Third Party Payments,Nursing Care Dementia,574,22/08/2018,1805-00652,0.00,2094.28,R,Allerton Park N H,No
Http://opendatacommunities.org/id/metropolitan-district-council/leeds,Leeds City Council,31/08/2018,Resources and Housing,Finance,Supplies and Services,Bank Charges,263,01/08/2018,1805-00653,0.00,-126.82,R,Alliance & Leicester Commercial Bank,No
Http://opendatacommunities.org/id/metropolitan-district-council/leeds,Leeds City Council,31/08/2018,Resources and Housing,Finance,Supplies and Services,Bank Charges,263,06/08/2018,1805-00654,0.00,807.11,R,Alliance & Leicester Commercial Bank,No
Http://opendatacommunities.org/id/metropolitan-district-council/leeds,Leeds City Council,31/08/2018,Resources and Housing,Finance,Supplies and Services,Bank Charges,263,06/08/2018,1805-00655,0.00,100.00,R,Alliance & Leicester Commercial Bank,No
Http://opendatacommunities.org/id/metropolitan-district-council/leeds,Leeds City Council,31/08/2018,City Development,Highways,Supplies and Services,Other Hired And Contracted Services,265,07/08/2018,1805-00656,0.00,908.10,R,Allied Exploration & Geotechnics Ltd,No
Http://opendatacommunities.org/id/metropolitan-district-council/leeds,Leeds City Council,31/08/2018,City Development,Highways,Supplies and Services,Other Hired And Contracted Services,265,07/08/2018,1805-00657,0.00,2188.40,R,Allied Exploration & Geotechnics Ltd,No
Http://opendatacommunities.org/id/metropolitan-district-council/leeds,Leeds City Council,31/08/2018,City Development,Highways,Supplies and Services,Other Hired And Contracted Services,265,08/08/2018,1805-00658,0.00,2039.00,R,Allied Exploration & Geotechnics Ltd,No
Http://opendatacommunities.org/id/metropolitan-district-council/leeds,Leeds City Council,31/08/2018,City Development,Highways,Supplies and Services,Other Hired And Contracted Services,265,13/08/2018,1805-00659,0.00,270.40,R,Allied Exploration & Geotechnics Ltd,No
Http://opendatacommunities.org/id/metropolitan-district-council/leeds,Leeds City Council,31/08/2018,City Development,Highways,Supplies and Services,Other Hired And Contracted Services,265,13/08/2018,1805-00660,0.00,171.00,R,Allied Exploration & Geotechnics Ltd,No
Http://opendatacommunities.org/id/metropolitan-district-council/leeds,Leeds City Council,31/08/2018,City Development,Highways,Supplies and Services,Other Hired And Contracted Services,265,22/08/2018,1805-00661,0.00,18597.25,R,Allied Exploration & Geotechnics Ltd,No
Http://opendatacommunities.org/id/metropolitan-district-council/leeds,Leeds City Council,31/08/2018,City Development,Highways,Supplies and Services,Other Hired And Contracted Services,265,31/08/2018,1805-00662,0.00,17425.80,R,Allied Exploration & Geotechnics Ltd,No
Http://opendatacommunities.org/id/metropolitan-district-council/leeds,Leeds City Council,31/08/2018,City Development,Highways,Supplies and Services,Other Hired And Contracted Services,265,31/08/2018,1805-00663,0.00,7021.43,R,Allied Exploration & Geotechnics Ltd,No
Http://opendatacommunities.org/id/metropolitan-district-council/leeds,Leeds City Council,31/08/2018,Adults and Health,Services For Older People - 65 And Over,Third Party Payments,Home Care,568,02/08/2018,1805-00664,0.00,8707.93,R,Allied Healthcare,No
Http://opendatacommunities.org/id/metropolitan-district-council/leeds,Leeds City Council,31/08/2018,Adults and Health,Services For Older People Under 65 P/Dis,Third Party Payments,Home Care,568,02/08/2018,1805-00665,0.00,4404.76,R,Allied Healthcare,No
Http://opendatacommunities.org/id/metropolitan-district-council/leeds,Leeds City Council,31/08/2018,Adults and Health,Services For Older People - 65 And Over,Third Party Payments,Home Care,568,03/08/2018,1805-00666,0.00,813.41,R,Allied Healthcare,No
Http://opendatacommunities.org/id/metropolitan-district-council/leeds,Leeds City Council,31/08/2018,Adults and Health,Services For Older People - 65 And Over,Third Party Payments,Home Care,568,03/08/2018,1805-00667,0.00,1713.32,R,Allied Healthcare,No
Http://opendatacommunities.org/id/metropolitan-district-council/leeds,Leeds City Council,31/08/2018,Adults and Health,Services For Older People - 65 And Over,Third Party Payments,Home Care,568,03/08/2018,1805-00668,0.00,11674.41,R,Allied Healthcare,No
Http://opendatacommunities.org/id/metropolitan-district-council/leeds,Leeds City Council,31/08/2018,Adults and Health,Services For Older People Under 65 P/Dis,Third Party Payments,Home Care,568,03/08/2018,1805-00669,0.00,1101.83,R,Allied Healthcare,No
Http://opendatacommunities.org/id/metropolitan-district-council/leeds,Leeds City Council,31/08/2018,Adults and Health,Services For Older People - 65 And Over,Third Party Payments,Home Care,568,03/08/2018,1805-00670,0.00,13911.98,R,Allied Healthcare,No
Http://opendatacommunities.org/id/metropolitan-district-council/leeds,Leeds City Council,31/08/2018,Adults and Health,Services For Older People Under 65 P/Dis,Third Party Payments,Home Care,568,03/08/2018,1805-00671,0.00,7145.06,R,Allied Healthcare,No
Http://opendatacommunities.org/id/metropolitan-district-council/leeds,Leeds City Council as Accountable Body,31/08/2018,Social Services Pooled Budgets,Jcs For People With Learning Disabilitie,Third Party Payments,Home Care,568,03/08/2018,1805-00672,0.00,2660.00,R,Allied Healthcare,No
Http://opendatacommunities.org/id/metropolitan-district-council/leeds,Leeds City Council as Accountable Body,31/08/2018,Social Services Pooled Budgets,Jcs For People With Learning Disabilitie,Third Party Payments,Home Care,568,08/08/2018,1805-00673,0.00,-105.00,R,Allied Healthcare,No
Http://opendatacommunities.org/id/metropolitan-district-council/leeds,Leeds City Council as Accountable Body,31/08/2018,Social Services Pooled Budgets,Jcs For People With Learning Disabilitie,Third Party Payments,Home Care,568,08/08/2018,1805-00674,0.00,14972.06,R,Allied Healthcare,No
Http://opendatacommunities.org/id/metropolitan-district-council/leeds,Leeds City Council as Accountable Body,31/08/2018,Social Services Pooled Budgets,Jcs For People With Learning Disabilitie,Third Party Payments,Home Care,568,08/08/2018,1805-00675,0.00,100.08,R,Allied Healthcare,No
Http://opendatacommunities.org/id/metropolitan-district-council/leeds,Leeds City Council,31/08/2018,Children and Families,Social Care,Third Party Payments,Services Rendered By Voluntary Sector,505,08/08/2018,1805-00676,0.00,684.00,R,Allied Healthcare,No
Http://opendatacommunities.org/id/metropolitan-district-council/leeds,Leeds City Council as Accountable Body,31/08/2018,Social Services Pooled Budgets,Jcs For People With Learning Disabilitie,Third Party Payments,Home Care,568,15/08/2018,1805-00677,0.00,16863.48,R,Allied Healthcare,No
Http://opendatacommunities.org/id/metropolitan-district-council/leeds,Leeds City Council as Accountable Body,31/08/2018,Social Services Pooled Budgets,Jcs For People With Learning Disabilitie,Third Party Payments,Home Care,568,15/08/2018,1805-00678,0.00,12757.50,R,Allied Healthcare,No
Http://opendatacommunities.org/id/metropolitan-district-council/leeds,Leeds City Council,31/08/2018,Adults and Health,Other Generic Services,Third Party Payments,Home Care,568,16/08/2018,1805-00679,0.00,13327.11,R,Allied Healthcare,No
Http://opendatacommunities.org/id/metropolitan-district-council/leeds,Leeds City Council,31/08/2018,Adults and Health,Other Generic Services,Third Party Payments,Home Care,568,16/08/2018,1805-00680,0.00,5747.95,R,Allied Healthcare,No
Http://opendatacommunities.org/id/metropolitan-district-council/leeds,Leeds City Council,31/08/2018,Adults and Health,Services For Older People - 65 And Over,Third Party Payments,Home Care,568,16/08/2018,1805-00681,0.00,586.92,R,Allied Healthcare,No
Http://opendatacommunities.org/id/metropolitan-district-council/leeds,Leeds City Council as Accountable Body,31/08/2018,Social Services Pooled Budgets,Jcs For People With Learning Disabilitie,Third Party Payments,Home Care,568,29/08/2018,1805-00682,0.00,14728.57,R,Allied Healthcare,No
Http://opendatacommunities.org/id/metropolitan-district-council/leeds,Leeds City Council as Accountable Body,31/08/2018,Social Services Pooled Budgets,Jcs For People With Learning Disabilitie,Third Party Payments,Home Care,568,29/08/2018,1805-00683,0.00,-2660.00,R,Allied Healthcare,No
Http://opendatacommunities.org/id/metropolitan-district-council/leeds,Leeds City Council,31/08/2018,Adults and Health,Services For Older People - 65 And Over,Third Party Payments,Home Care,568,30/08/2018,1805-00684,0.00,217.99,R,Allied Healthcare,No
Http://opendatacommunities.org/id/metropolitan-district-council/leeds,Leeds City Council,31/08/2018,Adults and Health,Services For Older People - 65 And Over,Third Party Payments,Home Care,568,30/08/2018,1805-00685,0.00,11690.70,R,Allied Healthcare,No
Http://opendatacommunities.org/id/metropolitan-district-council/leeds,Leeds City Council,31/08/2018,Adults and Health,Services For Older People Under 65 P/Dis,Third Party Payments,Home Care,568,30/08/2018,1805-00686,0.00,1049.09,R,Allied Healthcare,No
Http://opendatacommunities.org/id/metropolitan-district-council/leeds,Leeds City Council,31/08/2018,Adults and Health,Services For Older People - 65 And Over,Third Party Payments,Home Care,568,30/08/2018,1805-00687,0.00,7985.13,R,Allied Healthcare,No
Http://opendatacommunities.org/id/metropolitan-district-council/leeds,Leeds City Council,31/08/2018,Adults and Health,Services For Older People Under 65 P/Dis,Third Party Payments,Home Care,568,30/08/2018,1805-00688,0.00,3548.55,R,Allied Healthcare,No
Http://opendatacommunities.org/id/metropolitan-district-council/leeds,Leeds City Council,31/08/2018,Adults and Health,Services For Older People - 65 And Over,Third Party Payments,Home Care,568,30/08/2018,1805-00689,0.00,10593.05,R,Allied Healthcare,No
Http://opendatacommunities.org/id/metropolitan-district-council/leeds,Leeds City Council,31/08/2018,Adults and Health,Services For Older People Under 65 P/Dis,Third Party Payments,Home Care,568,30/08/2018,1805-00690,0.00,6731.52,R,Allied Healthcare,No
Http://opendatacommunities.org/id/metropolitan-district-council/leeds,Leeds City Council,31/08/2018,Adults and Health,Services For Older People - 65 And Over,Third Party Payments,Home Care,568,30/08/2018,1805-00691,0.00,1654.24,R,Allied Healthcare,No
Http://opendatacommunities.org/id/metropolitan-district-council/leeds,Leeds City Council,31/08/2018,Adults and Health,Services For Older People Under 65 P/Dis,Third Party Payments,Home Care,568,31/08/2018,1805-00692,0.00,67.23,R,Allied Healthcare,No
Http://opendatacommunities.org/id/metropolitan-district-council/leeds,Leeds City Council,31/08/2018,Adults and Health,Services For Older People - 65 And Over,Third Party Payments,Home Care,568,31/08/2018,1805-00693,0.00,1673.28,R,Allied Healthcare,No
Http://opendatacommunities.org/id/metropolitan-district-council/leeds,Leeds City Council,31/08/2018,Adults and Health,Services For Older People Under 65 P/Dis,Third Party Payments,Home Care,568,31/08/2018,1805-00694,0.00,7.47,R,Allied Healthcare,No
Http://opendatacommunities.org/id/metropolitan-district-council/leeds,Leeds City Council,31/08/2018,Adults and Health,Services For Older People - 65 And Over,Third Party Payments,Home Care,568,31/08/2018,1805-00695,0.00,418.32,R,Allied Healthcare,No
Http://opendatacommunities.org/id/metropolitan-district-council/leeds,Leeds City Council,31/08/2018,Communities and Environment,Parks And Countryside  ,Supplies and Services,Operational Materials,205,30/07/2018,1805-00696,0.00,220.28,R,Alloy Sales Ltd,Yes
Http://opendatacommunities.org/id/metropolitan-district-council/leeds,Leeds City Council,31/08/2018,Children and Families,Social Care  ,Transfer Payments,Leaving Care Allowances,634,24/07/2018,1805-00697,0.00,988.57,R,Allpay *leeds Federated H,Yes
Http://opendatacommunities.org/id/metropolitan-district-council/leeds,Leeds City Council,31/08/2018,Resources and Housing,Finance,Supplies and Services,Bank Charges,263,01/08/2018,1805-00698,0.00,5331.39,R,Allpay Limted,No
Http://opendatacommunities.org/id/metropolitan-district-council/leeds,Leeds City Council,31/08/2018,Resources and Housing,Finance,Supplies and Services,Bank Charges,263,01/08/2018,1805-00699,0.00,10770.55,R,Allpay Limted,No
Http://opendatacommunities.org/id/metropolitan-district-council/leeds,Leeds City Council,31/08/2018,Resources and Housing,Finance,Supplies and Services,Bank Charges,263,01/08/2018,1805-00700,0.00,476.08,R,Allpay Limted,No
Http://opendatacommunities.org/id/metropolitan-district-council/leeds,Leeds City Council,31/08/2018,Strategic Landlord,Housing Management,Supplies and Services,Other Hired And Contracted Services,265,01/08/2018,1805-00701,0.00,332.11,R,Allpay Limted,No
Http://opendatacommunities.org/id/metropolitan-district-council/leeds,Leeds City Council,31/08/2018,Strategic Landlord,Housing Management,Supplies and Services,Other Hired And Contracted Services,265,01/08/2018,1805-00702,0.00,0.15,R,Allpay Limted,No
Http://opendatacommunities.org/id/metropolitan-district-council/leeds,Leeds City Council,31/08/2018,Strategic Landlord,Housing Management,Supplies and Services,Other Hired And Contracted Services,265,01/08/2018,1805-00703,0.00,21.59,R,Allpay Limted,No
Http://opendatacommunities.org/id/metropolitan-district-council/leeds,Leeds City Council,31/08/2018,Resources and Housing,Finance,Supplies and Services,Bank Charges,263,01/08/2018,1805-00704,0.00,2679.78,R,Allpay Limted,No
Http://opendatacommunities.org/id/metropolitan-district-council/leeds,Leeds City Council,31/08/2018,Resources and Housing,Finance,Supplies and Services,Bank Charges,263,01/08/2018,1805-00705,0.00,6.37,R,Allpay Limted,No
Http://opendatacommunities.org/id/metropolitan-district-council/leeds,Leeds City Council,31/08/2018,Resources and Housing,Finance,Supplies and Services,Bank Charges,263,01/08/2018,1805-00706,0.00,113.32,R,Allpay Limted,No
Http://opendatacommunities.org/id/metropolitan-district-council/leeds,Leeds City Council,31/08/2018,Resources and Housing,Finance,Supplies and Services,Bank Charges,263,06/08/2018,1805-00707,0.00,5338.04,R,Allpay Limted,No
Http://opendatacommunities.org/id/metropolitan-district-council/leeds,Leeds City Council,31/08/2018,Resources and Housing,Finance,Supplies and Services,Bank Charges,263,31/08/2018,1805-00708,0.00,5261.90,R,Allpay Limted,No
Http://opendatacommunities.org/id/metropolitan-district-council/leeds,Leeds City Council,31/08/2018,Resources and Housing,Finance,Supplies and Services,Bank Charges,263,31/08/2018,1805-00709,0.00,10751.88,R,Allpay Limted,No
Http://opendatacommunities.org/id/metropolitan-district-council/leeds,Leeds City Council,31/08/2018,Resources and Housing,Finance,Supplies and Services,Bank Charges,263,31/08/2018,1805-00710,0.00,349.44,R,Allpay Limted,No
Http://opendatacommunities.org/id/metropolitan-district-council/leeds,Leeds City Council,31/08/2018,Resources and Housing,Finance,Supplies and Services,Bank Charges,263,31/08/2018,1805-00711,0.00,6.10,R,Allpay Limted,No
Http://opendatacommunities.org/id/metropolitan-district-council/leeds,Leeds City Council,31/08/2018,Resources and Housing,Finance,Supplies and Services,Bank Charges,263,31/08/2018,1805-00712,0.00,107.65,R,Allpay Limted,No
Http://opendatacommunities.org/id/metropolitan-district-council/leeds,Leeds City Council,31/08/2018,Resources and Housing,Finance,Supplies and Services,Bank Charges,263,31/08/2018,1805-00713,0.00,2728.12,R,Allpay Limted,No
Http://opendatacommunities.org/id/metropolitan-district-council/leeds,Leeds City Council,31/08/2018,Resources and Housing,Democratic Services,Transport,Fuel (Non LCC Supplies),321,07/08/2018,1805-00714,0.00,4.18,R,Allstar Business Solutions Ltd,No
Http://opendatacommunities.org/id/metropolitan-district-council/leeds,Leeds City Council,31/08/2018,Communities and Environment,Parks and Countryside,Transport,Fuel (Non LCC Supplies),321,07/08/2018,1805-00715,0.00,416.39,R,Allstar Business Solutions Ltd,No
Http://opendatacommunities.org/id/metropolitan-district-council/leeds,Leeds City Council,31/08/2018,City Development,Highways,Transport,Fuel (Non LCC Supplies),321,07/08/2018,1805-00716,0.00,305.76,R,Allstar Business Solutions Ltd,No
Http://opendatacommunities.org/id/metropolitan-district-council/leeds,Leeds City Council,31/08/2018,Children and Families,Learning,Transport,Fuel (Non LCC Supplies),321,07/08/2018,1805-00717,0.00,1502.72,R,Allstar Business Solutions Ltd,No
Http://opendatacommunities.org/id/metropolitan-district-council/leeds,Leeds City Council,31/08/2018,Resources and Housing,Leeds Building Services,Transport,Fuel (Non LCC Supplies),321,13/08/2018,1805-00718,0.00,23.00,R,Allstar Business Solutions Ltd,No
Http://opendatacommunities.org/id/metropolitan-district-council/leeds,Leeds City Council,31/08/2018,Resources and Housing,Leeds Building Services,Transport,Fuel (Non LCC Supplies),321,28/08/2018,1805-00719,0.00,100.15,R,Allstar Business Solutions Ltd,No
Http://opendatacommunities.org/id/metropolitan-district-council/leeds,Leeds City Council,31/08/2018,Strategic Landlord,Housing Management,Supplies and Services,Grants To Voluntary Organisations,293,29/08/2018,1805-00720,0.00,50.00,R,Alpha Awards Ltd,No
Http://opendatacommunities.org/id/metropolitan-district-council/leeds,Leeds City Council,31/08/2018,Children and Families,Social Care,Support Services,Legal Disbursements,411,16/08/2018,1805-00721,0.00,68.34,R,Alphabiolabs,No
Http://opendatacommunities.org/id/metropolitan-district-council/leeds,Leeds City Council,31/08/2018,Children and Families,Social Care,Support Services,Legal Disbursements,411,17/08/2018,1805-00722,0.00,330.00,R,Alphabiolabs,No
Http://opendatacommunities.org/id/metropolitan-district-council/leeds,Leeds City Council,31/08/2018,Children and Families,Social Care,Support Services,Legal Disbursements,411,17/08/2018,1805-00723,0.00,146.00,R,Alphabiolabs,No
Http://opendatacommunities.org/id/metropolitan-district-council/leeds,Leeds City Council,31/08/2018,Children and Families,Social Care,Support Services,Legal Disbursements,411,23/08/2018,1805-00724,0.00,210.01,R,Alphabiolabs,No
Http://opendatacommunities.org/id/metropolitan-district-council/leeds,Leeds City Council,31/08/2018,Children and Families,Social Care,Support Services,Legal Disbursements,411,29/08/2018,1805-00725,0.00,95.00,R,Alphabiolabs,No
Http://opendatacommunities.org/id/metropolitan-district-council/leeds,Leeds City Council,31/08/2018,Communities and Environment,Environmental Health,Supplies and Services,Other Hired And Contracted Services,265,02/08/2018,1805-00726,0.00,75.00,R,Als Environmental Limited,No
Http://opendatacommunities.org/id/metropolitan-district-council/leeds,Leeds City Council,31/08/2018,Communities and Environment,Environmental Health,Supplies and Services,Other Hired And Contracted Services,265,10/08/2018,1805-00727,0.00,84.23,R,Als Environmental Limited,No
Http://opendatacommunities.org/id/metropolitan-district-council/leeds,Leeds City Council,31/08/2018,Communities and Environment,Waste Management,Supplies and Services,Other Hired And Contracted Services,265,14/08/2018,1805-00728,0.00,85.00,R,Als Life Sciences Limited,No
Http://opendatacommunities.org/id/metropolitan-district-council/leeds,Leeds City Council,31/08/2018,Communities and Environment,Waste Management,Supplies and Services,Contingency-Supplies & Services,268,14/08/2018,1805-00729,0.00,35.00,R,Als Life Sciences Limited,No
Http://opendatacommunities.org/id/metropolitan-district-council/leeds,Leeds City Council,31/08/2018,Communities and Environment,Waste Management,Supplies and Services,Other Hired And Contracted Services,265,24/08/2018,1805-00730,0.00,100.00,R,Als Life Sciences Limited,No
Http://opendatacommunities.org/id/metropolitan-district-council/leeds,Leeds City Council,31/08/2018,City Development,Libraries  Arts & Heritage,Supplies and Services,Other Hired And Contracted Services,265,17/08/2018,1805-00731,0.00,600.00,R,Altofts & Normanton Brass Band,No
Http://opendatacommunities.org/id/metropolitan-district-council/leeds,Leeds City Council,31/08/2018,Children and Families,Social Care  ,Supplies and Services,Admission Charges To Schools,283,17/07/2018,1805-00732,0.00,440.00,R,Alton Towers Park,Yes
Http://opendatacommunities.org/id/metropolitan-district-council/leeds,Leeds City Council,31/08/2018,Children and Families,Social Care  ,Supplies and Services,Admission Charges To Schools,283,17/07/2018,1805-00733,0.00,458.33,R,Alton Towers Park,Yes
Http://opendatacommunities.org/id/metropolitan-district-council/leeds,Leeds City Council,31/08/2018,City Development,Planning & Sustainable Development,Support Services,Legal Disbursements,411,23/08/2018,1805-00734,0.00,44200.00,R,Alun Alesbury,No
Http://opendatacommunities.org/id/metropolitan-district-council/leeds,Leeds City Council,31/08/2018,Adults and Health,Public Health,Third Party Payments,Public Health Commissioned Services,526,20/08/2018,1805-00735,0.00,3750.00,R,Alwoodley Medical Centre,No
Http://opendatacommunities.org/id/metropolitan-district-council/leeds,Leeds City Council,31/08/2018,City Development,Planning & Sustainable Development,Support Services,Legal Disbursements,411,20/08/2018,1805-00736,0.00,5373.50,R,Alyn Nicholls & Associates Client,No
Http://opendatacommunities.org/id/metropolitan-district-council/leeds,Leeds City Council,31/08/2018,Communities and Environment,Customer Access,Supplies and Services,Other Hired And Contracted Services,265,03/08/2018,1805-00737,0.00,377.00,R,Amad Mezori,No
Http://opendatacommunities.org/id/metropolitan-district-council/leeds,Leeds City Council,31/08/2018,Communities and Environment,Waste Management,Supplies and Services,Food & Drink,231,03/08/2018,1805-00738,0.00,41.96,R,REDACTED PERSONAL DATA,No
Http://opendatacommunities.org/id/metropolitan-district-council/leeds,Leeds City Council,31/08/2018,Resources and Housing,Leeds Building Services,Supplies and Services,Operational Materials,205,06/08/2018,1805-00739,0.00,34.98,R,Amari Plastics Plc,No
Http://opendatacommunities.org/id/metropolitan-district-council/leeds,Leeds City Council,31/08/2018,Resources and Housing,Shared Services,Supplies and Services,Operational Materials,205,08/08/2018,1805-00740,0.00,321.00,R,Amari Plastics Plc,No
Http://opendatacommunities.org/id/metropolitan-district-council/leeds,Leeds City Council,31/08/2018,Resources and Housing,Shared Services,Supplies and Services,Operational Materials,205,08/08/2018,1805-00741,0.00,480.00,R,Amari Plastics Plc,No
Http://opendatacommunities.org/id/metropolitan-district-council/leeds,Leeds City Council,31/08/2018,Resources and Housing,Leeds Building Services,Supplies and Services,Operational Materials,205,10/08/2018,1805-00742,0.00,73.36,R,Amari Plastics Plc,No
Http://opendatacommunities.org/id/metropolitan-district-council/leeds,Leeds City Council,31/08/2018,Resources and Housing,Leeds Building Services,Supplies and Services,Operational Materials,205,10/08/2018,1805-00743,0.00,30.00,R,Amari Plastics Plc,No
Http://opendatacommunities.org/id/metropolitan-district-council/leeds,Leeds City Council,31/08/2018,Resources and Housing,Shared Services,Supplies and Services,Operational Materials,205,10/08/2018,1805-00744,0.00,720.00,R,Amari Plastics Plc,No
Http://opendatacommunities.org/id/metropolitan-district-council/leeds,Leeds City Council,31/08/2018,Resources and Housing,Leeds Building Services,Supplies and Services,Operational Materials,205,17/08/2018,1805-00745,0.00,73.00,R,Amari Plastics Plc,No
Http://opendatacommunities.org/id/metropolitan-district-council/leeds,Leeds City Council,31/08/2018,Resources and Housing,Leeds Building Services,Supplies and Services,Operational Materials,205,17/08/2018,1805-00746,0.00,34.98,R,Amari Plastics Plc,No
Http://opendatacommunities.org/id/metropolitan-district-council/leeds,Leeds City Council,31/08/2018,Resources and Housing,Leeds Building Services,Supplies and Services,Operational Materials,205,30/08/2018,1805-00747,0.00,58.00,R,Amari Plastics Plc,No
Http://opendatacommunities.org/id/metropolitan-district-council/leeds,Leeds City Council,31/08/2018,Adults and Health,Public Health  ,Employees,Best Value Training,70,16/07/2018,1805-00748,0.00,9.99,R,Amazon Digital Svcs,Yes
Http://opendatacommunities.org/id/metropolitan-district-council/leeds,Leeds City Council,31/08/2018,Children and Families,Social Care  ,Supplies and Services,Teaching Materials,202,22/07/2018,1805-00749,0.00,3.99,R,Amazon Digital Svcs,Yes
Http://opendatacommunities.org/id/metropolitan-district-council/leeds,Leeds City Council,31/08/2018,Children and Families,Social Care  ,Supplies and Services,Teaching Furniture & Equipment,207,29/06/2018,1805-00750,0.00,83.32,R,Amazon Eu Amazon.Co.Uk,Yes
Http://opendatacommunities.org/id/metropolitan-district-council/leeds,Leeds City Council,31/08/2018,Children and Families,Social Care  ,Supplies and Services,Teaching Materials,202,01/07/2018,1805-00751,0.00,22.95,R,Amazon Eu Amazon.Co.Uk,Yes
Http://opendatacommunities.org/id/metropolitan-district-council/leeds,Leeds City Council,31/08/2018,Resources and Housing,Commercial Services  ,Supplies and Services,Operational Furniture And Equipment,203,03/07/2018,1805-00752,0.00,37.98,R,Amazon Eu Amazon.Co.Uk,Yes
Http://opendatacommunities.org/id/metropolitan-district-council/leeds,Leeds City Council,31/08/2018,Resources and Housing,Commercial Services  ,Supplies and Services,Operational Materials,205,04/07/2018,1805-00753,0.00,179.99,R,Amazon Eu Amazon.Co.Uk,Yes
Http://opendatacommunities.org/id/metropolitan-district-council/leeds,Leeds City Council,31/08/2018,Communities and Environment,Parks And Countryside  ,Supplies and Services,Teaching Materials,202,09/07/2018,1805-00754,0.00,42.25,R,Amazon Eu Amazon.Co.Uk,Yes
Http://opendatacommunities.org/id/metropolitan-district-council/leeds,Leeds City Council,31/08/2018,Communities and Environment,Parks And Countryside  ,Supplies and Services,Teaching Materials,202,09/07/2018,1805-00755,0.00,14.11,R,Amazon Eu Amazon.Co.Uk,Yes
Http://opendatacommunities.org/id/metropolitan-district-council/leeds,Leeds City Council,31/08/2018,Children and Families,Social Care  ,Supplies and Services,Operational Furniture And Equipment,203,10/07/2018,1805-00756,0.00,49.99,R,Amazon Eu Amazon.Co.Uk,Yes
Http://opendatacommunities.org/id/metropolitan-district-council/leeds,Leeds City Council,31/08/2018,Children and Families,Social Care  ,Supplies and Services,Operational Furniture And Equipment,203,10/07/2018,1805-00757,0.00,49.99,R,Amazon Eu Amazon.Co.Uk,Yes
Http://opendatacommunities.org/id/metropolitan-district-council/leeds,Leeds City Council,31/08/2018,Children and Families,Social Care  ,Transfer Payments,Payments To Residents,622,13/07/2018,1805-00758,0.00,23.98,R,Amazon Eu Amazon.Co.Uk,Yes
Http://opendatacommunities.org/id/metropolitan-district-council/leeds,Leeds City Council,31/08/2018,Children and Families,Social Care  ,Supplies and Services,Office Consumables,210,15/07/2018,1805-00759,0.00,12.44,R,Amazon Eu Amazon.Co.Uk,Yes
Http://opendatacommunities.org/id/metropolitan-district-council/leeds,Leeds City Council,31/08/2018,Communities and Environment,Parks And Countryside  ,Supplies and Services,Operational Materials,205,16/07/2018,1805-00760,0.00,49.57,R,Amazon Eu Amazon.Co.Uk,Yes
Http://opendatacommunities.org/id/metropolitan-district-council/leeds,Leeds City Council,31/08/2018,Resources and Housing,Technology  ,Supplies and Services,Computer Software & Equipment,214,19/07/2018,1805-00761,0.00,66.66,R,Amazon Eu Amazon.Co.Uk,Yes
Http://opendatacommunities.org/id/metropolitan-district-council/leeds,Leeds City Council,31/08/2018,Children and Families,Learning  ,Supplies and Services,Teaching Materials,202,26/07/2018,1805-00762,0.00,46.40,R,Amazon Eu Amazon.Co.Uk,Yes
Http://opendatacommunities.org/id/metropolitan-district-council/leeds,Leeds City Council,31/08/2018,City Development,Libraries  Arts & Heritage  ,Supplies and Services,Operational Materials,205,27/07/2018,1805-00763,0.00,-18.96,R,Amazon Eu Amazon.Co.Uk,Yes
Http://opendatacommunities.org/id/metropolitan-district-council/leeds,Leeds City Council,31/08/2018,City Development,Recreation,Supplies and Services,Operational Furniture And Equipment,203,03/08/2018,1805-00764,0.00,3499.79,R,Amazon Leisure Uk Ltd,No
Http://opendatacommunities.org/id/metropolitan-district-council/leeds,Leeds City Council,31/08/2018,City Development,Recreation,Supplies and Services,Operational Furniture And Equipment,203,17/08/2018,1805-00765,0.00,105.00,R,Amazon Leisure Uk Ltd,No
